Department Family,Entity,Date,Expense Type,Expense Area,Supplier,Transaction Number,Amount,Description,Supplier Postcode,
Department for Transport,Department for Transport,01/12/2014,Agency Staff Costs,Group Human Resource,CAPITA BUSINESS SERVICES LTD,2000018067,2274,#,DL1 9HN,
Department for Transport,Department for Transport,01/12/2014,Agency Staff Costs,Rail Commercial & Programme Office,BROOK STREET (UK) LIMITED,2000018072,519.74,#,AL1 4JB,
Department for Transport,Department for Transport,01/12/2014,Agency Staff Costs,Rail Commercial & Programme Office,CAPITA BUSINESS SERVICES LTD,2000018067,8568.72,#,DL1 9HN,
Department for Transport,Department for Transport,01/12/2014,Agency Staff Costs,Group Finance,CAPITA BUSINESS SERVICES LTD,2000018067,2144.11,#,DL1 9HN,
Department for Transport,Department for Transport,01/12/2014,Agency Staff Costs,Rail Commercial & Programme Office,CAPITA BUSINESS SERVICES LTD,2000018067,2310.34,#,DL1 9HN,
Department for Transport,Department for Transport,01/12/2014,Agency Staff Costs,Rail Franchising,CAPITA BUSINESS SERVICES LTD,2000018067,8900.28,#,DL1 9HN,
Department for Transport,Department for Transport,01/12/2014,Agency Staff Costs,Rail Strategy & Funding,CAPITA BUSINESS SERVICES LTD,2000018067,4510.62,#,DL1 9HN,
Department for Transport,Department for Transport,01/12/2014,Agency Staff Costs,Rail Strategy & Funding,CAPITA BUSINESS SERVICES LTD,2000018067,10572.84,#,DL1 9HN,
Department for Transport,Department for Transport,01/12/2014,Agency Staff Costs,Rail Franchising,CAPITA BUSINESS SERVICES LTD,2000018067,2030.64,#,DL1 9HN,
Department for Transport,Department for Transport,01/12/2014,Agency Staff Costs,Rail Strategy & Funding,CAPITA BUSINESS SERVICES LTD,2000018067,4510.62,#,DL1 9HN,
Department for Transport,Department for Transport,01/12/2014,Agency Staff Costs,Rail Strategy & Funding,CAPITA BUSINESS SERVICES LTD,2000018067,4510.62,#,DL1 9HN,
Department for Transport,Department for Transport,01/12/2014,Agency Staff Costs,Highspeed 2,Experis Ltd,2000018068,3286.94,#,EC2M 2RB,
Department for Transport,Department for Transport,01/12/2014,Agency Staff Costs,Rail Franchising,FIRST CLASS PARTNERSHIPS LTD,2000018075,39330,#,YO10 3EB,
Department for Transport,Department for Transport,01/12/2014,Agency Staff Costs,Highspeed 2,SPRING TECHNOLOGY LTD  ALSO T/A,2000018077,3720,#,B37 7YE,
Department for Transport,Department for Transport,01/12/2014,Cap Grt Pri Sec-Cos.,Network Rail Sponsorship,Network Rail Infstrcture (Treasury),2000018063,380000000,#,N1 9AG,
Department for Transport,Department for Transport,01/12/2014,Car Hire and Leasing,Motoring Services,LEX AUTOLEASE LTD,2000018066,760.1,#,BL9 8RT,
Department for Transport,Department for Transport,01/12/2014,Cars Maintenance,Motoring Services,THE PCC FOR AVON & SOMERSET,2000018089,682.77,#,BS20 8QJ,
Department for Transport,Department for Transport,01/12/2014,Computer equipment,Air Accident Investigation Branch,Novatech Ltd,2000018092,1560,NOVATECH CISCO TRANSCIEVER X2 15/10/14,PO6 4PU,
Department for Transport,Department for Transport,01/12/2014,Conferences / Semina,Portfolio Office,Principal Hayley Ltd T/A Troy,2000018069,6479.17,#,WC2B 5DA,
Department for Transport,Department for Transport,01/12/2014,CurrGrt Las in AEF/A,Local,DURHAM COUNTY COUNCIL,2000018065,476000,LSTF 2014-15 Revenue Q2,DH1 5UE,
Department for Transport,Department for Transport,01/12/2014,CurrGrt Las in AEF/A,Local,NORTH YORKSHIRE CC,2000018074,62687,LSTF 2014-15 Revenue Q2,DL7 8AL,
Department for Transport,Department for Transport,01/12/2014,CurrGrtPriSec-P&NPIS,Local,CarPlus Trust,2000018079,500000,Car Plus Grant Payment (#500k),LS1 4ND,
Department for Transport,Department for Transport,01/12/2014,CurrGrtPriSec-P&NPIS,Local,CTC,2000018080,240000,CTC - Propensity to Cycle Grant (#240k),GU2 9JX,
Department for Transport,Department for Transport,01/12/2014,Financial Consultanc,Rail Franchising,GRANT THORNTON UK LLP,2000018076,108557.87,#,NN4 7YE,
Department for Transport,Department for Transport,01/12/2014,Financial Consultanc,Rail Franchising,GRANT THORNTON UK LLP,2000018076,70173.78,#,NN4 7YE,
Department for Transport,Department for Transport,01/12/2014,Gas,Group Procurement & Estate,CORONA ENERGY RETAIL 4 LTD,100021741,-1899.59,Credit May 2010 to June 2010 a/c No.20105593,WD17 1JW,
Department for Transport,Department for Transport,01/12/2014,Gas,Group Procurement & Estate,CORONA ENERGY RETAIL 4 LTD,100021741,1899.59,Corona - 55 Victoria St Apr-May 2010,WD17 1JW,
Department for Transport,Department for Transport,01/12/2014,Gas,Group Procurement & Estate,CORONA ENERGY RETAIL 4 LTD,100021742,-2827.38,"Credit incorrect match, Apr/-May10 20105593",WD17 1JW,
Department for Transport,Department for Transport,01/12/2014,Gas,Group Procurement & Estate,CORONA ENERGY RETAIL 4 LTD,100021742,2827.38,Corona - 55 Victoria St Apr-May 2010,WD17 1JW,
Department for Transport,Department for Transport,01/12/2014,Gas,Group Procurement & Estate,CORONA ENERGY RETAIL 4 LTD,100021743,-1250.33,Jul 10 to Aug 10 - Acc No. 20105593,WD17 1JW,
Department for Transport,Department for Transport,01/12/2014,Gas,Group Procurement & Estate,CORONA ENERGY RETAIL 4 LTD,100021743,1250.33,Corona - 55 Victoria St July-Aug 2010,WD17 1JW,
Department for Transport,Department for Transport,01/12/2014,Gas,Group Procurement & Estate,CORONA ENERGY RETAIL 4 LTD,100021744,-1349.33,June 2010 to Jul 2010 - Acc No. 20105593,WD17 1JW,
Department for Transport,Department for Transport,01/12/2014,Gas,Group Procurement & Estate,CORONA ENERGY RETAIL 4 LTD,100021744,1349.33,Corona - 55 Victoria St June-July 2010,WD17 1JW,
Department for Transport,Department for Transport,01/12/2014,Gas,Group Procurement & Estate,CORONA ENERGY RETAIL 4 LTD,100021745,-1508.88,Sep 10 to Oct 10 - Acc No.20105593,WD17 1JW,
Department for Transport,Department for Transport,01/12/2014,Gas,Group Procurement & Estate,CORONA ENERGY RETAIL 4 LTD,100021745,1508.88,Corona - 55 Victoria St Sept-Oct 2010,WD17 1JW,
Department for Transport,Department for Transport,01/12/2014,Gas,Group Procurement & Estate,CORONA ENERGY RETAIL 4 LTD,1500000022,-2580.01,Oct 2010 to Nov 2010 - Acc No. 20105593,WD17 1JW,
Department for Transport,Department for Transport,01/12/2014,Gas,Group Procurement & Estate,CORONA ENERGY RETAIL 4 LTD,1500000022,-3421.17,Dec 2010 to Jan 2011 - Acc No. 20105593,WD17 1JW,
Department for Transport,Department for Transport,01/12/2014,Gas,Group Procurement & Estate,CORONA ENERGY RETAIL 4 LTD,1500000022,-3492.52,Nov 2010 to Dec 2010 - Acc No. 20105593,WD17 1JW,
Department for Transport,Department for Transport,01/12/2014,Gas,Group Procurement & Estate,CORONA ENERGY RETAIL 4 LTD,1500000022,-885.96,Apr 2012 to May 2012 Acc No. 20105593,WD17 1JW,
Department for Transport,Department for Transport,01/12/2014,Gas,Group Procurement & Estate,CORONA ENERGY RETAIL 4 LTD,1500000022,-47768.34,Dec 2011 to Jan 2012 - Acc No. 20105593,WD17 1JW,
Department for Transport,Department for Transport,01/12/2014,Gas,Group Procurement & Estate,CORONA ENERGY RETAIL 4 LTD,1500000022,-50908.24,Jan 2012 - Feb 2012 Acc No. 20105593,WD17 1JW,
Department for Transport,Department for Transport,01/12/2014,Gas,Group Procurement & Estate,CORONA ENERGY RETAIL 4 LTD,1500000022,-3537.72,March 2011 Acc No. 20105593,WD17 1JW,
Department for Transport,Department for Transport,01/12/2014,Gas,Group Procurement & Estate,CORONA ENERGY RETAIL 4 LTD,1500000022,-908.68,June 2011 to June 2011 - Acc No.20105593,WD17 1JW,
Department for Transport,Department for Transport,01/12/2014,Gas,Group Procurement & Estate,CORONA ENERGY RETAIL 4 LTD,1500000022,-22219.14,Billing Apr 11 to May 11,WD17 1JW,
Department for Transport,Department for Transport,01/12/2014,Gas,Group Procurement & Estate,CORONA ENERGY RETAIL 4 LTD,1500000022,-33055.5,Sept 2011 to Oct 2011 - Acc No.20105593,WD17 1JW,
Department for Transport,Department for Transport,01/12/2014,Gas,Group Procurement & Estate,CORONA ENERGY RETAIL 4 LTD,1500000022,-39253.13,Gas Supplied to 55 Victoria St Oct 11 to Nov 11,WD17 1JW,
Department for Transport,Department for Transport,01/12/2014,Gas,Group Procurement & Estate,CORONA ENERGY RETAIL 4 LTD,1500000022,-45030.47,Corona - Nov 11 to Dec 11 CREDIT,WD17 1JW,
Department for Transport,Department for Transport,01/12/2014,Gas,Group Procurement & Estate,CORONA ENERGY RETAIL 4 LTD,1500000022,-3449.87,Gas Supplied to 55 Victoria St Feb 11 to March 11,WD17 1JW,
Department for Transport,Department for Transport,01/12/2014,Gas,Group Procurement & Estate,CORONA ENERGY RETAIL 4 LTD,1500000022,-3299.53,Gas Supplied to 55 Victoria St Jan 11 to Feb 11,WD17 1JW,
Department for Transport,Department for Transport,01/12/2014,Gas,Group Procurement & Estate,CORONA ENERGY RETAIL 4 LTD,1500000022,-1299.68,Corona - 01.08.2010,WD17 1JW,
Department for Transport,Department for Transport,01/12/2014,Gas,Group Procurement & Estate,CORONA ENERGY RETAIL 4 LTD,1500000022,-33029.93,Corona - 01.05.2011,WD17 1JW,
Department for Transport,Department for Transport,01/12/2014,Gas,Group Procurement & Estate,CORONA ENERGY RETAIL 4 LTD,1500000022,2918.77,Gas Supplied to 55 Victoria St April to May 2010,WD17 1JW,
Department for Transport,Department for Transport,01/12/2014,Gas,Group Procurement & Estate,CORONA ENERGY RETAIL 4 LTD,1500000022,1953.43,20105593 May 10-June 10,WD17 1JW,
Department for Transport,Department for Transport,01/12/2014,Gas,Group Procurement & Estate,CORONA ENERGY RETAIL 4 LTD,1500000022,960.87,Aug 10 - Sep 10 Acc No.20105593,WD17 1JW,
Department for Transport,Department for Transport,01/12/2014,Gas,Group Procurement & Estate,CORONA ENERGY RETAIL 4 LTD,1500000022,1183.48,Jul 10 to Aug 10 - Acc No. 20105593,WD17 1JW,
Department for Transport,Department for Transport,01/12/2014,Gas,Group Procurement & Estate,CORONA ENERGY RETAIL 4 LTD,1500000022,1848.87,Jun 2010 to Jul 2010 - Acc No. 20105593,WD17 1JW,
Department for Transport,Department for Transport,01/12/2014,Gas,Group Procurement & Estate,CORONA ENERGY RETAIL 4 LTD,1500000022,3416.82,Dec 2010 to Jan 2011 Acc No. 20105593,WD17 1JW,
Department for Transport,Department for Transport,01/12/2014,Gas,Group Procurement & Estate,CORONA ENERGY RETAIL 4 LTD,1500000022,3612.36,Nov 2010 to Dec 2010 - Acc No. 20105593,WD17 1JW,
Department for Transport,Department for Transport,01/12/2014,Gas,Group Procurement & Estate,CORONA ENERGY RETAIL 4 LTD,1500000022,2661.33,Oct 2010 to Nov 2010  - Acc No. 20105593,WD17 1JW,
Department for Transport,Department for Transport,01/12/2014,Gas,Group Procurement & Estate,CORONA ENERGY RETAIL 4 LTD,1500000022,3657.52,March 2011 Acc No. 20105593,WD17 1JW,
Department for Transport,Department for Transport,01/12/2014,Gas,Group Procurement & Estate,CORONA ENERGY RETAIL 4 LTD,1500000022,3923.41,Billing May 11 to June 11,WD17 1JW,
Department for Transport,Department for Transport,01/12/2014,Gas,Group Procurement & Estate,CORONA ENERGY RETAIL 4 LTD,1500000022,3878.99,Billing Apr 11 to May 11,WD17 1JW,
Department for Transport,Department for Transport,01/12/2014,Gas,Group Procurement & Estate,CORONA ENERGY RETAIL 4 LTD,1500000022,3696.67,Billing Feb 11 to Mar 11,WD17 1JW,
Department for Transport,Department for Transport,01/12/2014,Gas,Group Procurement & Estate,CORONA ENERGY RETAIL 4 LTD,1500000022,3397.62,Corona - Jan 11 to Feb 11 55 Victoria St,WD17 1JW,
Department for Transport,Department for Transport,01/12/2014,Gas,Group Procurement & Estate,CORONA ENERGY RETAIL 4 LTD,1500000022,1548.09,Billing Sept 10 - Oct 10,WD17 1JW,
Department for Transport,Department for Transport,01/12/2014,Gas,Group Procurement & Estate,CORONA ENERGY RETAIL 4 LTD,1500000022,4977.4,Corona - 55 Victoria St Nov-Dec 2011,WD17 1JW,
Department for Transport,Department for Transport,01/12/2014,Gas,Group Procurement & Estate,CORONA ENERGY RETAIL 4 LTD,1500000022,1295.65,Corona - 01.12.2013,WD17 1JW,
Department for Transport,Department for Transport,01/12/2014,Grt Aid to NDPBs,"Policy, Legislation and Funding",High Speed Two (HS2) Ltd,2000018004,5000000,HS2 Dec 14 1st Tranche,E14 5AB,
Department for Transport,Department for Transport,01/12/2014,L&B Excl Dwellings,Maritime,FAITHFUL & GOULD LTD,2000018095,3207.6,#,CF24 0AD,
Department for Transport,Department for Transport,01/12/2014,Legal Consultancy,Major Projects & Growth,HOGAN LOVELLS,2000018081,287915.76,#,EC1A 2FG,
Department for Transport,Department for Transport,01/12/2014,Legal Consultancy,Major Projects & Growth,HOGAN LOVELLS,2000018081,235147.05,#,EC1A 2FG,
Department for Transport,Department for Transport,01/12/2014,Legal Consultancy,Major Projects & Growth,HOGAN LOVELLS,2000018081,91486.2,#,EC1A 2FG,
Department for Transport,Department for Transport,01/12/2014,Maps & Charts,Portfolio Office,Principal Hayley Ltd T/A Troy,2000018069,13760,#,WC2B 5DA,
Department for Transport,Department for Transport,01/12/2014,Recruitment Fees,Group Human Resource,Green Park Interim & Executive Ltd,2000018073,6000,#,W1B 1PT,
Department for Transport,Department for Transport,01/12/2014,Research,Strategy and Engagement,Independent Transport Commission,2000018078,17000,#,EC1M 6EJ,
Department for Transport,Department for Transport,01/12/2014,Research,Strategy and Engagement,Independent Transport Commission,2000018078,2000,#,EC1M 6EJ,
Department for Transport,Department for Transport,01/12/2014,Security,Group Human Resource,HM REVENUE & CUSTOMS,2000018064,1975,#,BN12 4XH,
Department for Transport,Department for Transport,01/12/2014,Security,Group Human Resource,HM REVENUE & CUSTOMS,2000018064,3050,#,BN12 4XH,
Department for Transport,Department for Transport,01/12/2014,Training,DG's Office,DFT ONE TIME VENDOR,2000018094,2160,Second Part Payment,SW1P 4DR,
Department for Transport,Department for Transport,01/12/2014,Training,Marine Accident Investigation Branch,Eastern Seafish,2000018093,600,#,IP25 7NF,
Department for Transport,Department for Transport,01/12/2014,Transport  Consult,Major Projects & Growth,PARSONS BRINCKERHOFF LTD,2000018071,27194.05,#,NE4 7YQ,
Department for Transport,Department for Transport,01/12/2014,Transport  Consult,Major Projects & Growth,OVE ARUP & PARTNERS,2000018070,25901.36,#,NE1 3PL,
Department for Transport,Department for Transport,01/12/2014,Transport  Consult,Major Projects & Growth,FIRST CLASS PARTNERSHIPS LTD,2000018075,22806,#,YO10 3EB,
Department for Transport,Department for Transport,01/12/2014,Transport  Consult,Major Projects & Growth,PARSONS BRINCKERHOFF LTD,2000018071,3793.16,#,NE4 7YQ,
Department for Transport,Department for Transport,02/12/2014,Agency Staff Costs,Air Accident Investigation Branch,HAYS PERSONNEL SERVICE LTD,2000018168,739.68,#,KT3 4JQ,
Department for Transport,Department for Transport,02/12/2014,Agency Staff Costs,Local,BROOK STREET (UK) LIMITED,2000018192,555.89,#,AL1 4JB,
Department for Transport,Department for Transport,02/12/2014,Agency Staff Costs,Local,BROOK STREET (UK) LIMITED,2000018192,555.89,#,AL1 4JB,
Department for Transport,Department for Transport,02/12/2014,Agency Staff Costs,Local,BROOK STREET (UK) LIMITED,2000018192,555.89,#,AL1 4JB,
Department for Transport,Department for Transport,02/12/2014,Agency Staff Costs,Group Finance,MICHAEL PAGE INTERNATIONAL,2000018194,2880,#,SL1 3SA,
Department for Transport,Department for Transport,02/12/2014,Agency Staff Costs,Major Projects & Growth,SPRING TECHNOLOGY LTD  ALSO T/A,2000018201,1320,#,B37 7YE,
Department for Transport,Department for Transport,02/12/2014,Agency Staff Costs,Major Projects & Growth,Experis Ltd,2000018180,6040.02,#,EC2M 2RB,
Department for Transport,Department for Transport,02/12/2014,Agency Staff Costs,Rail Commercial & Programme Office,BROOK STREET (UK) LIMITED,2000018192,519.74,#,AL1 4JB,
Department for Transport,Department for Transport,02/12/2014,Agency Staff Costs,Rail Commercial & Programme Office,BROOK STREET (UK) LIMITED,2000018192,519.74,#,AL1 4JB,
Department for Transport,Department for Transport,02/12/2014,Agency Staff Costs,Rail Commercial & Programme Office,CAPITA BUSINESS SERVICES LTD,100021869,2615.16,Credit for 5106004025,DL1 9HN,
Department for Transport,Department for Transport,02/12/2014,Agency Staff Costs,Rail Commercial & Programme Office,CAPITA BUSINESS SERVICES LTD,100021869,-2615.16,Credit 5100007351 (Parked Disputed),DL1 9HN,
Department for Transport,Department for Transport,02/12/2014,Agency Staff Costs,Group Finance,NETWORKERS INTERNATIONAL (UK) PLC,2000018198,1925.7,#,BR1 1HP,
Department for Transport,Department for Transport,02/12/2014,Agency Staff Costs,Rail Franchising,Capita Resourcing Limited,2000018195,7708.32,#,EC4A 1EN,
Department for Transport,Department for Transport,02/12/2014,Agency Staff Costs,Rail Franchising,Capita Resourcing Limited,2000018195,15960,#,EC4A 1EN,
Department for Transport,Department for Transport,02/12/2014,Agency Staff Costs,Rail Franchising,Capita Resourcing Limited,2000018195,18731.27,#,EC4A 1EN,
Department for Transport,Department for Transport,02/12/2014,Agency Staff Costs,Rail Franchising,Capita Resourcing Limited,2000018195,8071.92,#,EC4A 1EN,
Department for Transport,Department for Transport,02/12/2014,Agency Staff Costs,Rail Franchising,Experis Ltd,2000018180,11053.44,#,EC2M 2RB,
Department for Transport,Department for Transport,02/12/2014,Agency Staff Costs,Group Finance,Experis Ltd,2000018180,3850.32,#,EC2M 2RB,
Department for Transport,Department for Transport,02/12/2014,Agency Staff Costs,Highspeed 2,SPRING TECHNOLOGY LTD  ALSO T/A,2000018201,2520,#,B37 7YE,
Department for Transport,Department for Transport,02/12/2014,Cap Grt Pri Sec-Cos.,"Energy, Technology and International",3rd Group Limited,2000018225,3832.08,3RD GROUP APRIL 2014 #3832.08,LN2 4WP,
Department for Transport,Department for Transport,02/12/2014,Cap Grt Pri Sec-Cos.,Network Rail Sponsorship,Network Rail Infstrcture (Treasury),2000018164,300000000,Network Rail Loan Payment UR014,N1 9AG,
Department for Transport,Department for Transport,02/12/2014,Cap Grt Pri Sec-Cos.,"Energy, Technology and International",Schneider Electric,2000018219,7560,SCHNIEDER ELEC Dec 2013 #7560,W1W 6XX,
Department for Transport,Department for Transport,02/12/2014,Cap Grt Pri Sec-Cos.,"Energy, Technology and International",W. T. Parker Ltd,2000018218,3000,WT PARKER AUG 2014 #3000,DE14 3SX,
Department for Transport,Department for Transport,02/12/2014,Cars Maintenance,Motoring Services,Goodyear Dunlop Tyres UK Ltd,2000018215,566.72,#,B24 9HY,
Department for Transport,Department for Transport,02/12/2014,Computer equipment,Air Accident Investigation Branch,SOFTWARE BOX LTD,2000018167,3313.54,SBL NON ETHOS EQUALOGIC SUPPORT 06/11/14,YO61 1ET,
Department for Transport,Department for Transport,02/12/2014,Computer equipment,Marine Accident Investigation Branch,Probrand Ltd,2000018173,14.4,Delivery Charges,B1 3BP,
Department for Transport,Department for Transport,02/12/2014,Computer equipment,Marine Accident Investigation Branch,Probrand Ltd,2000018173,533.64,Non-Ethos Hard Drives,B1 3BP,
Department for Transport,Department for Transport,02/12/2014,Conferences / Semina,Maritime,LODGE CATERING LTD,2000018200,2857.75,#,W10 6AU,
Department for Transport,Department for Transport,02/12/2014,Conferences / Semina,Analysis & Strategy,UNIVERSITY COLLEGE LONDON,2000018189,2444.5,#,WC1E 6BT,
Department for Transport,Department for Transport,02/12/2014,Contract Cleaning,Marine Accident Investigation Branch,PROGRESS CLEANING SERVICES,2000018169,702,#,SO30 2FQ,
Department for Transport,Department for Transport,02/12/2014,CurrGrt Las in AEF/A,Rail Strategy & Funding,MERSEY TRAVEL,2000018197,6616146.02,Mersey Travel Grant P9 Payment,L3   2AN,
Department for Transport,Department for Transport,02/12/2014,Data Supply - TD,Transport Direct&Travel,BASEMAP LIMITED,2000018209,2936.8,#,GU2 7YG,
Department for Transport,Department for Transport,02/12/2014,Data Supply - TD,Transport Direct&Travel,LANDMARK INFORMATION GROUP LTD,2000018183,15050.6,#,EX2 7HY,
Department for Transport,Department for Transport,02/12/2014,Data Supply - TD,Transport Direct&Travel,LANDMARK INFORMATION GROUP LTD,2000018183,8629.5,#,EX2 7HY,
Department for Transport,Department for Transport,02/12/2014,Data Supply - TD,Marine Accident Investigation Branch,MET OFFICE,2000018184,880.8,Marine Weather Data,EX1 3PB,
Department for Transport,Department for Transport,02/12/2014,Eurotunnel Admin Pay,Rail Commercial & Programme Office,SNCF Caisse Generale,2000018163,5182865.29,NOVEMBER 2014 FUNDS,93633,
Department for Transport,Department for Transport,02/12/2014,Eurotunnel Admin Pay,Rail Commercial & Programme Office,SNCF TRESORERIE ENC RHT VFE,2000018162,4720629.44,MPL SNCF EURO PAY,75014,
Department for Transport,Department for Transport,02/12/2014,Financial Consultanc,Network Rail Sponsorship,ERNST & YOUNG LLP,2000018181,87439.37,#,SE1 2AF,
Department for Transport,Department for Transport,02/12/2014,Gas,Group Procurement & Estate,CORONA ENERGY RETAIL 4 LTD,2000018179,1149.5,Corona - 1.10.14,WD17 1JW,
Department for Transport,Department for Transport,02/12/2014,Gas,Group Procurement & Estate,CORONA ENERGY RETAIL 4 LTD,2000018179,1386.13,Corona - 01.11.2014,WD17 1JW,
Department for Transport,Department for Transport,02/12/2014,IT Consultancy,Portfolio Office,ATOS IT Services UK Ltd,2000018175,14071.36,#,WV10 6UH,
Department for Transport,Department for Transport,02/12/2014,Legal Consultancy,General Counsel's Office,LANDMARK CHAMBERS,2000018182,930,#,EC4A 2HG,
Department for Transport,Department for Transport,02/12/2014,Legal Consultancy,Rail Franchising,Eversheds LLP,2000018208,54979.01,#,EC2V 7WS,
Department for Transport,Department for Transport,02/12/2014,Legal Consultancy,Rail Franchising,Eversheds LLP,2000018208,34182.6,#,EC2V 7WS,
Department for Transport,Department for Transport,02/12/2014,Legal Consultancy,Rail Franchising,Eversheds LLP,2000018208,30761.2,#,EC2V 7WS,
Department for Transport,Department for Transport,02/12/2014,Legal Consultancy,Rail Franchising,Eversheds LLP,2000018208,826.8,#,EC2V 7WS,
Department for Transport,Department for Transport,02/12/2014,Legal Consultancy,Rail Franchising,Eversheds LLP,2000018208,31931.74,#,EC2V 7WS,
Department for Transport,Department for Transport,02/12/2014,Legal Consultancy,Rail Franchising,Eversheds LLP,2000018208,13684.08,#,EC2V 7WS,
Department for Transport,Department for Transport,02/12/2014,Legal Consultancy,Rail Franchising,NORTON ROSE LLP,2000018199,90992.86,#,SE1 2AQ,
Department for Transport,Department for Transport,02/12/2014,Maintenance Other,Motoring Services,ARVAL,2000018172,4415.01,#,SN5 6PE,
Department for Transport,Department for Transport,02/12/2014,NLF Interest pay,Group Finance,HM TREASURY - NATIONAL LOANS FUND,2000018160,571.42,NLF HA 23.11.14 Laon interest -loan repayemnt,SW1A 2HQ,
Department for Transport,Department for Transport,02/12/2014,NLF Principal Paid,Group Finance,HM TREASURY - NATIONAL LOANS FUND,2000018160,3044.51,NLF HA 23.11.14 Laon Repayment,SW1A 2HQ,
Department for Transport,Department for Transport,02/12/2014,Other Advertising,Local,PENNA COMMUNICATIONS,2000018202,4144.1,#,EC4M 7RD,
Department for Transport,Department for Transport,02/12/2014,Prog&ProjMgmt Consul,Local,ATKINS LTD (TRANSPORT PLANNING),2000018174,13333.33,#,WR5 1TX,
Department for Transport,Department for Transport,02/12/2014,Publicity,Group Communication,FORSTER LAMOND LTD,2000018210,13239,#,SE1 1RU,
Department for Transport,Department for Transport,02/12/2014,Rates,Group Finance,THE FINANCIAL REPORTING COUNCIL,2000018204,7401,#,LN5 5ET,
Department for Transport,Department for Transport,02/12/2014,Recruitment,Group Human Resource,ODGERS RAY & BERNDSTON,2000018186,3960,#,EC4M 6XD,
Department for Transport,Department for Transport,02/12/2014,Rent - L&B (non-PFI),Group Procurement & Estate,Network Rail Infra Ltd (Property),2000018170,330000,Q4 Rent 25/12/2014-24/04/2015 @ Waterloo,M60 3BP,
Department for Transport,Department for Transport,02/12/2014,Rent - L&B (non-PFI),Group Procurement & Estate,GMN No2 Limited,2000018223,1703910,25/12/2014-24/03/2014 @ GMH,W1G 0PN,
Department for Transport,Department for Transport,02/12/2014,Rent - L&B (non-PFI),Group Procurement & Estate,Salisbury Limited Directors,2000018226,23000,Rent Q4 25/12/14-24/03/2015 @ St James Road,W1G 9TB,
Department for Transport,Department for Transport,02/12/2014,Research,Analysis & Strategy,NATURAL ENV RESEARCH COUNCIL,2000018166,23457,#,SN2 1FF,
Department for Transport,Department for Transport,02/12/2014,Research,Local,NATIONAL CENTRE FOR SOCIAL RESEARCH,2000018185,20071,#,EC1V 0AX,
Department for Transport,Department for Transport,02/12/2014,Research,Local,NATIONAL CENTRE FOR SOCIAL RESEARCH,2000018185,135746.6,#,EC1V 0AX,
Department for Transport,Department for Transport,02/12/2014,Services prov by OGD,Motoring Services,TREASURY SOLICITOR,2000018165,7755,#,WC2B 4TS,
Department for Transport,Department for Transport,02/12/2014,Support Services,Aviation,Civil Aviation Authority,2000018178,13097.75,#,RH6 0YR,
Department for Transport,Department for Transport,02/12/2014,Support Services,"Motoring, Freight & London",Environmental Scientifics Group,2000018171,2827.2,#,OX9 3SZ,
Department for Transport,Department for Transport,02/12/2014,Support Services,"Motoring, Freight & London",Environmental Scientifics Group,2000018171,5803.2,#,OX9 3SZ,
Department for Transport,Department for Transport,02/12/2014,Support Services,General Counsel's Office,Armstrong James LLP,2000018227,67000,Industrial Injury Claim,SO17 1AX,
Department for Transport,Department for Transport,02/12/2014,Support Services,General Counsel's Office,Charles Lucas & Marshall,2000018222,129908.5,Industrial Injury Claim,RG14 5EU,
Department for Transport,Department for Transport,02/12/2014,Support Services,Group Finance,DD ACCRAILWAY PENS TRUSTEE,2000018196,3456.92,#,DL3 6XR,
Department for Transport,Department for Transport,02/12/2014,Support Services,General Counsel's Office,Thompsons Solicitors,2000018221,128000,Industrial Injury Claim,HA1 3AP,
Department for Transport,Department for Transport,02/12/2014,Telecom Equipment,Motoring Services,BT IT Services Ltd,2000018206,7501.46,#,OX4 2RW,
Department for Transport,Department for Transport,02/12/2014,Training,Air Accident Investigation Branch,HELI AIR LIMITED,2000018211,571.5,#,CV35 9EU,
Department for Transport,Department for Transport,02/12/2014,Training,Group Communication,C I M HOLDINGS LTD,2000018177,575,#,SL6 9QH,
Department for Transport,Department for Transport,02/12/2014,Transport  Consult,Rail Strategy & Funding,PARSONS BRINCKERHOFF LTD,2000018187,4885.65,#,NE4 7YQ,
Department for Transport,Department for Transport,02/12/2014,Transport  Consult,Rail Commercial & Programme Office,PARSONS BRINCKERHOFF LTD,2000018187,15555.79,#,NE4 7YQ,
Department for Transport,Department for Transport,02/12/2014,Transport  Consult,Rail Commercial & Programme Office,PARSONS BRINCKERHOFF LTD,2000018187,15241.02,#,NE4 7YQ,
Department for Transport,Department for Transport,02/12/2014,Transport  Consult,Rail Commercial & Programme Office,PARSONS BRINCKERHOFF LTD,2000018187,41059.3,#,NE4 7YQ,
Department for Transport,Department for Transport,02/12/2014,Transport  Consult,Rail Franchising,PARSONS BRINCKERHOFF LTD,2000018187,128151.42,#,NE4 7YQ,
Department for Transport,Department for Transport,02/12/2014,Transport  Consult,Rail Commercial & Programme Office,PARSONS BRINCKERHOFF LTD,2000018187,5225.76,#,NE4 7YQ,
Department for Transport,Department for Transport,02/12/2014,Transport  Consult,Rail Commercial & Programme Office,PARSONS BRINCKERHOFF LTD,2000018187,5120.88,#,NE4 7YQ,
Department for Transport,Department for Transport,02/12/2014,Travel Exp Overseas,"Motoring, Freight & London",Environmental Scientifics Group,2000018171,728.3,#,OX9 3SZ,
Department for Transport,Department for Transport,03/12/2014,Agency Staff Costs,Group Human Resource,NETWORKERS INTERNATIONAL (UK) PLC,2000018308,1013.52,#,BR1 1HP,
Department for Transport,Department for Transport,03/12/2014,Agency Staff Costs,Group Finance,MICHAEL PAGE INTERNATIONAL,2000018303,2880,#,SL1 3SA,
Department for Transport,Department for Transport,03/12/2014,Agency Staff Costs,Group Finance,NETWORKERS INTERNATIONAL (UK) PLC,2000018308,3391.26,#,BR1 1HP,
Department for Transport,Department for Transport,03/12/2014,Agency Staff Costs,"Energy, Technology and International",BROOK STREET (UK) LIMITED,2000018291,642.18,#,AL1 4JB,
Department for Transport,Department for Transport,03/12/2014,Agency Staff Costs,"Energy, Technology and International",BROOK STREET (UK) LIMITED,2000018291,609.12,#,AL1 4JB,
Department for Transport,Department for Transport,03/12/2014,Agency Staff Costs,"Energy, Technology and International",BROOK STREET (UK) LIMITED,2000018291,604.88,#,AL1 4JB,
Department for Transport,Department for Transport,03/12/2014,Agency Staff Costs,"Energy, Technology and International",BROOK STREET (UK) LIMITED,2000018291,541.44,#,AL1 4JB,
Department for Transport,Department for Transport,03/12/2014,Agency Staff Costs,"Energy, Technology and International",BROOK STREET (UK) LIMITED,2000018291,647.18,#,AL1 4JB,
Department for Transport,Department for Transport,03/12/2014,Agency Staff Costs,"Energy, Technology and International",BROOK STREET (UK) LIMITED,2000018291,647.18,#,AL1 4JB,
Department for Transport,Department for Transport,03/12/2014,Agency Staff Costs,"Energy, Technology and International",BROOK STREET (UK) LIMITED,2000018291,638.72,#,AL1 4JB,
Department for Transport,Department for Transport,03/12/2014,Agency Staff Costs,"Energy, Technology and International",BROOK STREET (UK) LIMITED,2000018291,647.18,#,AL1 4JB,
Department for Transport,Department for Transport,03/12/2014,Agency Staff Costs,"Energy, Technology and International",BROOK STREET (UK) LIMITED,2000018291,638.72,#,AL1 4JB,
Department for Transport,Department for Transport,03/12/2014,Agency Staff Costs,"Energy, Technology and International",BROOK STREET (UK) LIMITED,2000018291,647.18,#,AL1 4JB,
Department for Transport,Department for Transport,03/12/2014,Agency Staff Costs,"Energy, Technology and International",BROOK STREET (UK) LIMITED,2000018291,592.2,#,AL1 4JB,
Department for Transport,Department for Transport,03/12/2014,Agency Staff Costs,"Energy, Technology and International",BROOK STREET (UK) LIMITED,2000018291,668.34,#,AL1 4JB,
Department for Transport,Department for Transport,03/12/2014,Agency Staff Costs,"Energy, Technology and International",BROOK STREET (UK) LIMITED,2000018291,689.48,#,AL1 4JB,
Department for Transport,Department for Transport,03/12/2014,Agency Staff Costs,"Energy, Technology and International",BROOK STREET (UK) LIMITED,2000018291,701.4,#,AL1 4JB,
Department for Transport,Department for Transport,03/12/2014,Agency Staff Costs,"Energy, Technology and International",BROOK STREET (UK) LIMITED,2000018291,596.42,#,AL1 4JB,
Department for Transport,Department for Transport,03/12/2014,Agency Staff Costs,"Energy, Technology and International",BROOK STREET (UK) LIMITED,2000018291,613.34,#,AL1 4JB,
Department for Transport,Department for Transport,03/12/2014,Agency Staff Costs,Major Projects & Growth,Badenoch & Clark c/o Lauren Rogers,2000018283,2978.16,#,B37 7YE,
Department for Transport,Department for Transport,03/12/2014,Agency Staff Costs,Rail Commercial & Programme Office,NETWORKERS INTERNATIONAL (UK) PLC,2000018308,4126.26,#,BR1 1HP,
Department for Transport,Department for Transport,03/12/2014,Agency Staff Costs,Rail Commercial & Programme Office,CAPITA BUSINESS SERVICES LTD,2000018279,2615.16,#,DL1 9HN,
Department for Transport,Department for Transport,03/12/2014,Agency Staff Costs,Rail Commercial & Programme Office,CAPITA BUSINESS SERVICES LTD,2000018279,-2615.16,Credit for 5106000998,DL1 9HN,
Department for Transport,Department for Transport,03/12/2014,Agency Staff Costs,Rail Commercial & Programme Office,CAPITA BUSINESS SERVICES LTD,2000018279,9414.58,#,DL1 9HN,
Department for Transport,Department for Transport,03/12/2014,Agency Staff Costs,Rail Commercial & Programme Office,CAPITA BUSINESS SERVICES LTD,2000018279,2615.16,Credit for 5106000998,DL1 9HN,
Department for Transport,Department for Transport,03/12/2014,Agency Staff Costs,Rail Commercial & Programme Office,CAPITA BUSINESS SERVICES LTD,2000018279,-2615.16,#,DL1 9HN,
Department for Transport,Department for Transport,03/12/2014,Agency Staff Costs,Rail Strategy & Funding,Experis Ltd,2000018285,8999.1,#,EC2M 2RB,
Department for Transport,Department for Transport,03/12/2014,Agency Staff Costs,Group Finance,Allen Lane,2000018281,2719.38,#,SW1Y 6RJ,
Department for Transport,Department for Transport,03/12/2014,Agency Staff Costs,Group Finance,Allen Lane,2000018281,2719.38,#,SW1Y 6RJ,
Department for Transport,Department for Transport,03/12/2014,Agency Staff Costs,Group Finance,Allen Lane,2000018281,2175.5,#,SW1Y 6RJ,
Department for Transport,Department for Transport,03/12/2014,Agency Staff Costs,Strategy and Engagement,BROOK STREET (UK) LIMITED,2000018291,867.72,#,AL1 4JB,
Department for Transport,Department for Transport,03/12/2014,Agency Staff Costs,Strategy and Engagement,BROOK STREET (UK) LIMITED,2000018291,867.72,#,AL1 4JB,
Department for Transport,Department for Transport,03/12/2014,Agency Staff Costs,Strategy and Engagement,BROOK STREET (UK) LIMITED,2000018291,880.12,#,AL1 4JB,
Department for Transport,Department for Transport,03/12/2014,Agency Staff Costs,Strategy and Engagement,BROOK STREET (UK) LIMITED,2000018291,663.88,#,AL1 4JB,
Department for Transport,Department for Transport,03/12/2014,Agency Staff Costs,Strategy and Engagement,BROOK STREET (UK) LIMITED,2000018291,867.72,#,AL1 4JB,
Department for Transport,Department for Transport,03/12/2014,Agency Staff Costs,Strategy and Engagement,BROOK STREET (UK) LIMITED,2000018291,520.63,#,AL1 4JB,
Department for Transport,Department for Transport,03/12/2014,Agency Staff Costs,Strategy and Engagement,BROOK STREET (UK) LIMITED,2000018291,694.18,#,AL1 4JB,
Department for Transport,Department for Transport,03/12/2014,Agency Staff Costs,Strategy and Engagement,BROOK STREET (UK) LIMITED,2000018291,570.22,#,AL1 4JB,
Department for Transport,Department for Transport,03/12/2014,Agency Staff Costs,Strategy and Engagement,BROOK STREET (UK) LIMITED,2000018291,892.51,#,AL1 4JB,
Department for Transport,Department for Transport,03/12/2014,Agency Staff Costs,Strategy and Engagement,BROOK STREET (UK) LIMITED,2000018291,867.72,#,AL1 4JB,
Department for Transport,Department for Transport,03/12/2014,Agency Staff Costs,Strategy and Engagement,BROOK STREET (UK) LIMITED,2000018291,694.18,#,AL1 4JB,
Department for Transport,Department for Transport,03/12/2014,Agency Staff Costs,Strategy and Engagement,BROOK STREET (UK) LIMITED,2000018291,867.72,#,AL1 4JB,
Department for Transport,Department for Transport,03/12/2014,Agency Staff Costs,Strategy and Engagement,BROOK STREET (UK) LIMITED,2000018291,867.72,#,AL1 4JB,
Department for Transport,Department for Transport,03/12/2014,Agency Staff Costs,Strategy and Engagement,BROOK STREET (UK) LIMITED,2000018291,694.18,#,AL1 4JB,
Department for Transport,Department for Transport,03/12/2014,Agency Staff Costs,Strategy and Engagement,BROOK STREET (UK) LIMITED,2000018291,867.72,#,AL1 4JB,
Department for Transport,Department for Transport,03/12/2014,Agency Staff Costs,Strategy and Engagement,BROOK STREET (UK) LIMITED,2000018291,867.72,#,AL1 4JB,
Department for Transport,Department for Transport,03/12/2014,Agency Staff Costs,Strategy and Engagement,BROOK STREET (UK) LIMITED,2000018291,867.72,#,AL1 4JB,
Department for Transport,Department for Transport,03/12/2014,Agency Staff Costs,Rail Commercial & Programme Office,CAPITA BUSINESS SERVICES LTD,2000018279,18496.9,#,DL1 9HN,
Department for Transport,Department for Transport,03/12/2014,Basic Franchise Pay,Rail Commercial & Programme Office,LONDON MIDLAND RAILWAY,2000018306,4252856,1509 Wk3 Basic Franchise Payment - LONDON MIDLAND,B2 4JB,
Department for Transport,Department for Transport,03/12/2014,Basic Franchise Pay,Rail Commercial & Programme Office,LONDON MIDLAND RAILWAY,2000018306,465857.11,1509 Wk3 CP5 Rev. Inputs to FM letter dt. 18-09-20,B2 4JB,
Department for Transport,Department for Transport,03/12/2014,Basic Franchise Pay,Rail Commercial & Programme Office,LONDON MIDLAND RAILWAY,2000018306,74027.4,1509 Wk3 Fares Flex + RPI Interim Adjustment 14/15,B2 4JB,
Department for Transport,Department for Transport,03/12/2014,Basic Franchise Pay,Rail Commercial & Programme Office,NORTHERN RAIL LTD,2000018305,126700,1509 Wk3 SQMS_2013-14 - NORTHERN RAIL LIMITED,YO1 6HT,
Department for Transport,Department for Transport,03/12/2014,Basic Franchise Pay,Rail Commercial & Programme Office,FIRST KEOLIS TRANSPENNINE,2000018304,3965327,1509 Wk3 Basic Franchise Payment - TRANSPENNINE EX,M1 6LT,
Department for Transport,Department for Transport,03/12/2014,Basic Franchise Pay,Rail Commercial & Programme Office,FIRST KEOLIS TRANSPENNINE,2000018304,-1770105.46,1509 Wk3 CP5 Interim Determination - DfT email dat,M1 6LT,
Department for Transport,Department for Transport,03/12/2014,Basic Franchise Pay,Rail Commercial & Programme Office,FIRST KEOLIS TRANSPENNINE,2000018304,-470808.22,1509 Wk3 Fares Flex washup recovery_P1411 - P1508,M1 6LT,
Department for Transport,Department for Transport,03/12/2014,Basic Franchise Pay,Rail Commercial & Programme Office,FIRST KEOLIS TRANSPENNINE,2000018304,12543.81,1509 Wk3 RPI+0 letter dt. 09-Sept.-2014_P1509 - TR,M1 6LT,
Department for Transport,Department for Transport,03/12/2014,Basic Franchise Pay,Rail Commercial & Programme Office,NORTHERN RAIL LTD,2000018305,12583118.32,1509 Wk3 IFA - Franchise Payment - NORTHERN RAIL L,YO1 6HT,
Department for Transport,Department for Transport,03/12/2014,Basic Franchise Pay,Rail Commercial & Programme Office,NORTHERN RAIL LTD,2000018305,-3879915.9,1509 Wk3 IFA - Franchise Payment CP5 Interim Deter,YO1 6HT,
Department for Transport,Department for Transport,03/12/2014,Cap Grt Loc Auth,Local,BIRMINGHAM CITY COUNCIL,2000018292,303442.73,Q2 LA Major Transport Grant Payment 14/15,B1 1BB,
Department for Transport,Department for Transport,03/12/2014,Cap Grt Loc Auth,Local,BLACKBURN WITH DARWEN BC,2000018328,3752718,Q2 LA Major Transport Grant Payment 14/15,BB1 7DY,
Department for Transport,Department for Transport,03/12/2014,Cap Grt Loc Auth,Local,BRISTOL CITY COUNCIL,2000018318,7484014,Q2 LA Major Transport Grant Payment 14/15,BS99 7BL,
Department for Transport,Department for Transport,03/12/2014,Cap Grt Loc Auth,Local,CAMBRIDGESHIRE COUNTY COUNCIL,2000018319,524155.04,Q2 LA Major Transport Grant Payment 14/15,CB3 0AP,
Department for Transport,Department for Transport,03/12/2014,Cap Grt Loc Auth,Local,CHESHIRE EAST BOROUGH COUNCIL,2000018309,4799987,Q2 LA Major Transport Grant Payment 14/15,CW11 1HZ,
Department for Transport,Department for Transport,03/12/2014,Cap Grt Loc Auth,Local,Cornwall Council,2000018310,1763579.32,Q2 LA Major Transport Grant Payment 14/15,TR1 3AY,
Department for Transport,Department for Transport,03/12/2014,Cap Grt Loc Auth,Local,COVENTRY CITY COUNCIL,2000018293,387412.92,Q2 LA Major Transport Grant Payment 14/15,CV1 2QL,
Department for Transport,Department for Transport,03/12/2014,Cap Grt Loc Auth,Local,DEVON COUNTY COUNCIL,2000018320,8496353,Q2 LA Major Transport Grant Payment 14/15,EX2 4QJ,
Department for Transport,Department for Transport,03/12/2014,Cap Grt Loc Auth,Local,DONCASTER MBC,2000018294,4717,Q2 LA Major Transport Grant Payment 14/15,DN1 1ER,
Department for Transport,Department for Transport,03/12/2014,Cap Grt Loc Auth,Local,DUDLEY MBC,2000018295,46751,Q2 LA Major Transport Grant Payment 14/15,DY1 1HF,
Department for Transport,Department for Transport,03/12/2014,Cap Grt Loc Auth,Local,EAST RIDING OF YORKSHIRE COUNCIL,2000018296,3090320,Q2 LA Major Transport Grant Payment 14/15,HU17 9BA,
Department for Transport,Department for Transport,03/12/2014,Cap Grt Loc Auth,Local,HALTON BC,2000018321,3471518.32,Q2 LA Major Transport Grant Payment 14/15,WA8 6NB,
Department for Transport,Department for Transport,03/12/2014,Cap Grt Loc Auth,Local,LANCASHIRE COUNTY COUNCIL,2000018322,13386967,Q2 LA Major Transport Grant Payment 14/15,PR1 0LD,
Department for Transport,Department for Transport,03/12/2014,Cap Grt Loc Auth,Local,LEEDS CITY COUNCIL,2000018297,5088478,Q2 LA Major Transport Grant Payment 14/15,LS2 8JR,
Department for Transport,Department for Transport,03/12/2014,Cap Grt Loc Auth,Local,LEICESTERSHIRE COUNTY COUNCIL,2000018329,1330014.17,Q2 LA Major Transport Grant Payment 14/15,LE3 8RB,
Department for Transport,Department for Transport,03/12/2014,Cap Grt Loc Auth,Local,NORFOLK COUNTY COUNCIL,2000018324,4830100,Q2 LA Major Transport Grant Payment 14/15,NR1 2UG,
Department for Transport,Department for Transport,03/12/2014,Cap Grt Loc Auth,Local,NORTH YORKSHIRE CC,2000018298,4711236,Q2 LA Major Transport Grant Payment 14/15,DL7 8AL,
Department for Transport,Department for Transport,03/12/2014,Cap Grt Loc Auth,Local,NOTTINGHAM CITY COUNCIL,2000018307,1514699.5,Q2 LA Major Transport Grant Payment 14/15,NG1 5NT,
Department for Transport,Department for Transport,03/12/2014,Cap Grt Loc Auth,Local,OXFORDSHIRE CC,2000018323,6688214,Q2 LA Major Transport Grant Payment 14/15,OX1 1TH,
Department for Transport,Department for Transport,03/12/2014,Cap Grt Loc Auth,Local,SANDWELL MBC,2000018299,141135.96,Q2 LA Major Transport Grant Payment 14/15,B69 3BS,
Department for Transport,Department for Transport,03/12/2014,Cap Grt Loc Auth,Local,SEFTON MBC,2000018325,2601734,Q2 LA Major Transport Grant Payment 14/15,PR8 1DA,
Department for Transport,Department for Transport,03/12/2014,Cap Grt Loc Auth,Local,SOLIHULL MBC,2000018300,168507,Q2 LA Major Transport Grant Payment 14/15,B91 9EG,
Department for Transport,Department for Transport,03/12/2014,Cap Grt Loc Auth,Local,SOMERSET COUNTY COUNCIL,2000018326,596492.86,Q2 LA Major Transport Grant Payment 14/15,TA1 4DY,
Department for Transport,Department for Transport,03/12/2014,Cap Grt Loc Auth,Local,SOUTH YORKS PTE,2000018301,3380851.76,Q2 LA Major Transport Grant Payment 14/15,S2 5YT,
Department for Transport,Department for Transport,03/12/2014,Cap Grt Loc Auth,Local,SUFFOLK COUNTY COUNCIL (GRANTS),2000018331,576902,Q2 LA Major Transport Grant Payment 14/15,IP1 2DH,
Department for Transport,Department for Transport,03/12/2014,Cap Grt Loc Auth,Local,WALSALL MBC,2000018327,5874149,Q2 LA Major Transport Grant Payment 14/15,WS1 1TW,
Department for Transport,Department for Transport,03/12/2014,Cap Grt Loc Auth,Local,West Yorkshire Combined Authority,2000018314,2562739,Q2 LA Major Transport Grant Payment 14/15,LS1 2DE,
Department for Transport,Department for Transport,03/12/2014,Cap Grt Loc Auth,Local,WOLVERHAMPTON CITY COUNCIL,2000018302,745669.28,Q2 LA Major Transport Grant Payment 14/15,WRV 1RL,
Department for Transport,Department for Transport,03/12/2014,Cap Grt Loc Auth,Local,WORCESTERSHIRE COUNTY COUNCIL,2000018330,1782108,Q2 LA Major Transport Grant Payment 14/15,WR5 2NP,
Department for Transport,Department for Transport,03/12/2014,Cap Grt Pri Sec-Cos.,"Policy, Legislation and Funding",Eversheds LLP,2000018315,511096,Wedgew/PEARCEN,CF10 5BT,
Department for Transport,Department for Transport,03/12/2014,Cap Grt Pri Sec-Cos.,Network Rail Sponsorship,Network Rail Infstrcture (Treasury),2000018278,150000000,#,N1 9AG,
Department for Transport,Department for Transport,03/12/2014,Cap Grt Pri Sec-Cos.,Network Rail Sponsorship,Network Rail Infstrcture (Treasury),2000018278,180000000,#,N1 9AG,
Department for Transport,Department for Transport,03/12/2014,CurrGrt Las in AEF/A,Local,HALTON BC,2000018321,511306,LA Majors Revenue Grant - Mersey Gateway,WA8 6NB,
Department for Transport,Department for Transport,03/12/2014,Eurotunnel Admin Pay,Rail Commercial & Programme Office,Eurotunnel,2000018248,4168810.73,November 14,CT18 8XX,
Department for Transport,Department for Transport,03/12/2014,Eurotunnel Admin Pay,Rail Commercial & Programme Office,EUROTUNNEL,2000018247,4504804.41,Novermber 2014 OPEX and Usage,CT18 8XY,
Department for Transport,Department for Transport,03/12/2014,Furniture & Fittings,Air Accident Investigation Branch,SENATOR INTERNATIONAL LTD,2000018288,1139.81,"EDES - DO NOT SEND ORDER, ALREADY REC'D",BB5 5YE,
Department for Transport,Department for Transport,03/12/2014,Legal Consultancy,Major Projects & Growth,DLA PIPER UK LLP,2000018284,11450.21,#,M2 3DL,
Department for Transport,Department for Transport,03/12/2014,Legal Consultancy,Rail Franchising,Field Fisher Waterhouse LLP,2000018313,74920.56,#,EC3N 2AA,
Department for Transport,Department for Transport,03/12/2014,Legal Consultancy,Rail Franchising,Field Fisher Waterhouse LLP,2000018313,97200,#,EC3N 2AA,
Department for Transport,Department for Transport,03/12/2014,Legal Consultancy,Rail Franchising,Field Fisher Waterhouse LLP,2000018313,15389.28,#,EC3N 2AA,
Department for Transport,Department for Transport,03/12/2014,Legal Consultancy,Rail Franchising,Field Fisher Waterhouse LLP,2000018313,252372.24,#,EC3N 2AA,
Department for Transport,Department for Transport,03/12/2014,Legal Consultancy,Rail Franchising,Field Fisher Waterhouse LLP,2000018313,96130.56,#,EC3N 2AA,
Department for Transport,Department for Transport,03/12/2014,Legal Consultancy,"Policy, Legislation and Funding",WINCKWORTH SHERWOOD,2000018289,346884.12,#,SE1 9BB,
Department for Transport,Department for Transport,03/12/2014,Pip - Ptoc,Rail Commercial & Programme Office,FIRST KEOLIS TRANSPENNINE,2000018304,-648986.39,1509 Wk3 PIP_P1508 - TRANSPENNINE EXPRESS (FIRST K,M1 6LT,
Department for Transport,Department for Transport,03/12/2014,Prog&ProjMgmt Consul,"Policy, Legislation and Funding",MACE Limited,2000018317,35942.4,#,EC2M 6X,
Department for Transport,Department for Transport,03/12/2014,Prog&ProjMgmt Consul,Project Sponsorship ,PARSONS BRINCKERHOFF LTD,2000018287,18774.86,#,NE4 7YQ,
Department for Transport,Department for Transport,03/12/2014,Prog&ProjMgmt Consul,Project Sponsorship ,PARSONS BRINCKERHOFF LTD,2000018287,11842.01,#,NE4 7YQ,
Department for Transport,Department for Transport,03/12/2014,Prog&ProjMgmt Consul,Project Sponsorship ,PARSONS BRINCKERHOFF LTD,2000018287,4163.4,#,NE4 7YQ,
Department for Transport,Department for Transport,03/12/2014,Publicity,Rail Franchising,Key Publishing Ltd,2000018316,915,#,PE9 1XQ,
Department for Transport,Department for Transport,03/12/2014,Sprs Indexation Pay-,Rail Commercial & Programme Office,LONDON MIDLAND RAILWAY,2000018306,110714,1509 Wk3 Franchise Payment Indexation - LONDON MID,B2 4JB,
Department for Transport,Department for Transport,03/12/2014,Sprs Indexation Pay-,Rail Commercial & Programme Office,FIRST KEOLIS TRANSPENNINE,2000018304,137534,1509 Wk3 Franchise Payment Indexation - TRANSPENNI,M1 6LT,
Department for Transport,Department for Transport,03/12/2014,Sprs Indexation Pay-,Rail Commercial & Programme Office,NORTHERN RAIL LTD,2000018305,229955.73,1509 Wk3 IFA - Franchise Payment Indexation - NORT,YO1 6HT,
Department for Transport,Department for Transport,03/12/2014,Subscriptions to Pro,General Counsel's Office,PRACTICAL LAW COMPANY LIMITED,2000018312,12382.6,#,SE1 8DJ,
Department for Transport,Department for Transport,03/12/2014,Support Services,Aviation,xxxxxx,2000018286,873,#,xxxxxx,
Department for Transport,Department for Transport,03/12/2014,Support Services,"Motoring, Freight & London",DRIVING STANDARDS AGENCY,2000018332,100000,#,NG1 6LP,
Department for Transport,Department for Transport,03/12/2014,Support Services,General Counsel's Office,Slater & Gordon (UK) LLP Pannone,1500000023,-61687,#,M3 2BU,
Department for Transport,Department for Transport,03/12/2014,Transport  Consult,Rail Strategy & Funding,PARSONS BRINCKERHOFF LTD,2000018287,5301.58,#,NE4 7YQ,
Department for Transport,Department for Transport,03/12/2014,Transport  Consult,Analysis & Strategy,WSP UK Limited T/A WSP Civils,2000018290,6917.37,#,GL20 8SJ,
Department for Transport,Department for Transport,04/12/2014,Agency Staff Costs,Major Projects & Growth,BROOK STREET (UK) LIMITED,2000018416,533.6,#,AL1 4JB,
Department for Transport,Department for Transport,04/12/2014,Agency Staff Costs,Group Finance,CAPITA BUSINESS SERVICES LTD,2000018408,2063.1,#,DL1 9HN,
Department for Transport,Department for Transport,04/12/2014,Agency Staff Costs,Group Finance,CAPITA BUSINESS SERVICES LTD,2000018408,1835.76,#,DL1 9HN,
Department for Transport,Department for Transport,04/12/2014,Agency Staff Costs,Group Finance,CAPITA BUSINESS SERVICES LTD,2000018408,2680.14,#,DL1 9HN,
Department for Transport,Department for Transport,04/12/2014,Agency Staff Costs,Strategy and Engagement,BROOK STREET (UK) LIMITED,2000018416,867.72,#,AL1 4JB,
Department for Transport,Department for Transport,04/12/2014,Courier Charges,Group Procurement & Estate,DX NETWORK SERVICES LTD,2000018407,1309.12,#,NN3 6YG,
Department for Transport,Department for Transport,04/12/2014,CurrGrtOth to NDPBs,Group Finance,"HSBC BANK PLC, LONDON",2000018419,27562500,LCR Finco Payment 8 Dec 2014 - XS0094804126,E14 5HQ,
Department for Transport,Department for Transport,04/12/2014,CurrGrtOth to NDPBs,Group Finance,"HSBC BANK PLC, LONDON",2000018419,9562500,LCR Finco Payment 8 Dec 2014 - XS0094835278,E14 5HQ,
Department for Transport,Department for Transport,04/12/2014,Financial Consultanc,Rail Franchising,Pricewaterhouse Coopers LLP,2000018414,-154364.4,#,SE1 2RD,
Department for Transport,Department for Transport,04/12/2014,Financial Consultanc,Rail Franchising,Pricewaterhouse Coopers LLP,2000018414,-154364.4,#,SE1 2RD,
Department for Transport,Department for Transport,04/12/2014,Financial Consultanc,Rail Franchising,Pricewaterhouse Coopers LLP,2000018414,308728.8,#,SE1 2RD,
Department for Transport,Department for Transport,04/12/2014,Financial Consultanc,Rail Franchising,Pricewaterhouse Coopers LLP,2000018414,86223.6,#,SE1 2RD,
Department for Transport,Department for Transport,04/12/2014,Insurance,Group Human Resource,MARSH LTD,2000018413,715.5,#,SG6 3TT,
Department for Transport,Department for Transport,04/12/2014,IT Consultancy,Portfolio Office,Worldline IT Services UK Limited,2000018426,15532.57,#,WV10 6UH,
Department for Transport,Department for Transport,04/12/2014,IT Equip Cap Cost,Motoring Services,Probrand Ltd,2000018409,5734.56,#,B1 3BP,
Department for Transport,Department for Transport,04/12/2014,Legal Consultancy,Group Human Resource,TREASURY SOLICITOR,2000018428,6962.04,#,WC2B 4TS,
Department for Transport,Department for Transport,04/12/2014,Purchasing Card Char,Group Finance,BARCLAYS BANK PLC,2000018410,859.98,Barclays -DFT/Rail December 2014,NN4 7SG,
Department for Transport,Department for Transport,04/12/2014,Recruitment Fees,Group Human Resource,HM REVENUE & CUSTOMS,2000018429,3061.2,#,BN12 4XH,
Department for Transport,Department for Transport,04/12/2014,Rent - L&B (non-PFI),Group Procurement & Estate,EUROSTAR (UK) LTD,2000018417,135000,Q4 Rent 25/12/2014-24/03/2015 @ Orient Way Sidings,SE1 8SE,
Department for Transport,Department for Transport,04/12/2014,Subscriptions to Pro,Analysis & Strategy,ERTICO ITS EUROPE,2000018431,14556,#,1050,
Department for Transport,Department for Transport,04/12/2014,Support Services,Marine Accident Investigation Branch,Seatec UK Limited,2000018427,1784.04,#,G3 8EP,
Department for Transport,Department for Transport,04/12/2014,Support Services,Aviation,Civil Aviation Authority,2000018412,253312.52,#,RH6 0YR,
Department for Transport,Department for Transport,04/12/2014,Support Services,Aviation,Civil Aviation Authority,2000018412,75896.73,#,RH6 0YR,
Department for Transport,Department for Transport,04/12/2014,Support Services,Group Finance,RAILWAYS PENSION MANAGEMENT LT,2000018418,985000,#,DL3 6EH,
Department for Transport,Department for Transport,05/12/2014,Agency Staff Costs,Group Human Resource,NETWORKERS INTERNATIONAL (UK) PLC,2000018516,810.82,#,BR1 1HP,
Department for Transport,Department for Transport,05/12/2014,Agency Staff Costs,Group Finance,MICHAEL PAGE INTERNATIONAL,2000018514,3420,#,SL1 3SA,
Department for Transport,Department for Transport,05/12/2014,Agency Staff Costs,Group Finance,MICHAEL PAGE INTERNATIONAL,2000018514,3594,#,SL1 3SA,
Department for Transport,Department for Transport,05/12/2014,Agency Staff Costs,Group Finance,MICHAEL PAGE INTERNATIONAL,2000018514,3240,#,SL1 3SA,
Department for Transport,Department for Transport,05/12/2014,Agency Staff Costs,Group Finance,NETWORKERS INTERNATIONAL (UK) PLC,2000018516,3391.26,#,BR1 1HP,
Department for Transport,Department for Transport,05/12/2014,Agency Staff Costs,Major Projects & Growth,SPRING TECHNOLOGY LTD  ALSO T/A,2000018517,1320,#,B37 7YE,
Department for Transport,Department for Transport,05/12/2014,Agency Staff Costs,Group Finance,NETWORKERS INTERNATIONAL (UK) PLC,2000018516,861,#,BR1 1HP,
Department for Transport,Department for Transport,05/12/2014,Agency Staff Costs,Group Finance,NETWORKERS INTERNATIONAL (UK) PLC,2000018516,1925.7,#,BR1 1HP,
Department for Transport,Department for Transport,05/12/2014,Agency Staff Costs,Rail Franchising,CAPITA BUSINESS SERVICES LTD,2000018495,2777.52,#,DL1 9HN,
Department for Transport,Department for Transport,05/12/2014,Agency Staff Costs,Rail Franchising,CAPITA BUSINESS SERVICES LTD,2000018495,2777.52,#,DL1 9HN,
Department for Transport,Department for Transport,05/12/2014,Agency Staff Costs,Highspeed 2,METHODS ADVISORY LTD,2000018507,16449.26,#,WC2H 8AD,
Department for Transport,Department for Transport,05/12/2014,Agency Staff Costs,Rail Commercial & Programme Office,MICHAEL PAGE INTERNATIONAL,2000018514,579.12,#,SL1 3SA,
Department for Transport,Department for Transport,05/12/2014,Agency Staff Costs,Rail Strategy & Funding,NETWORKERS INTERNATIONAL (UK) PLC,2000018516,959.46,#,BR1 1HP,
Department for Transport,Department for Transport,05/12/2014,Agency Staff Costs,Highspeed 2,SPRING TECHNOLOGY LTD  ALSO T/A,2000018517,4200,#,B37 7YE,
Department for Transport,Department for Transport,05/12/2014,Agency Staff Costs,Highspeed 2,SPRING TECHNOLOGY LTD  ALSO T/A,2000018517,4650,#,B37 7YE,
Department for Transport,Department for Transport,05/12/2014,Agency Staff Costs,Highspeed 2,SPRING TECHNOLOGY LTD  ALSO T/A,2000018517,4650,#,B37 7YE,
Department for Transport,Department for Transport,05/12/2014,Cap Grt Loc Auth,Local,SOUTHEND-ON-SEA BC,2000018513,127500,LSTF 2014-15 Qtr 1,SS2 6AN,
Department for Transport,Department for Transport,05/12/2014,Cap Grt Pri Sec-Cos.,"Energy, Technology and International",Castle Building Services,2000018531,219000,"""#219,000 for 75% (rest when data recd) Aug 14""",NE31 2EX,
Department for Transport,Department for Transport,05/12/2014,Cap Grt Pri Sec-Cos.,"Energy, Technology and International",Castle Building Services,2000018531,50500,"""#50,750 (-#250 overpaid) for 25% balance Jul 14""",NE31 2EX,
Department for Transport,Department for Transport,05/12/2014,Cap Grt Pri Sec-Cos.,"Energy, Technology and International",Cawoods Electricians,2000018528,900,Cawood OCT 2014 #900,PE6 9NF,
Department for Transport,Department for Transport,05/12/2014,Cars Maintenance,Motoring Services,Goodyear Dunlop Tyres UK Ltd,2000018526,1341.88,#,B24 9HY,
Department for Transport,Department for Transport,05/12/2014,Computer equipment,Motoring Services,COMPUTACENTER,2000018512,1500,#,AL10 9TW,
Department for Transport,Department for Transport,05/12/2014,Computer equipment,Motoring Services,E-Cycle Limited,2000018527,3489,#,CF39 9BW,
Department for Transport,Department for Transport,05/12/2014,Computer equipment,Motoring Services,Misco UK Limited,2000018496,503.86,#,NN8 6XH,
Department for Transport,Department for Transport,05/12/2014,CurrGrt Las in AEF/A,Local,SOUTHEND-ON-SEA BC,2000018513,140200,LSTF Southend 2014-15 Qtr 1,SS2 6AN,
Department for Transport,Department for Transport,05/12/2014,IT Equip Cap Cost,Motoring Services,Misco UK Limited,2000018496,1350.62,HP P-3015DN Printers,NN8 6XH,
Department for Transport,Department for Transport,05/12/2014,IT Equip Cap Cost,Motoring Services,Misco UK Limited,2000018496,29.99,HP P-3015DN Printers - Delivery,NN8 6XH,
Department for Transport,Department for Transport,05/12/2014,IT Ser Running Costs,Group Communication,Intelogy Limited,2000018529,1554,#,TW16 7DY,
Department for Transport,Department for Transport,05/12/2014,IT Ser Running Costs,Group Finance,NTT Data UK Limited,2000018534,3582,#,EC3V 3DG,
Department for Transport,Department for Transport,05/12/2014,Legal Consultancy,Strategic Roads & Smart Ticketing,xxxxxx,2000018523,2088,#,xxxxxx,
Department for Transport,Department for Transport,05/12/2014,Legal Consultancy,Aviation,LANDMARK CHAMBERS,2000018503,1920,#,EC4A 2HG,
Department for Transport,Department for Transport,05/12/2014,Legal Consultancy,Aviation,LANDMARK CHAMBERS,2000018503,3600,#,EC4A 2HG,
Department for Transport,Department for Transport,05/12/2014,Legal Consultancy,"Policy, Legislation and Funding",xxxxxx,2000018524,8160,#,xxxxxx,
Department for Transport,Department for Transport,05/12/2014,Media & Press,Group Communication,"GORKANA GROUP LTD (""GCL"")",2000018519,4339.64,#,EC1Y 8QE,
Department for Transport,Department for Transport,05/12/2014,Mobile Phone charges,Group Finance,T-MOBILE (UK) LTD,1500000024,-784.86,#,AL10 9BW,
Department for Transport,Department for Transport,05/12/2014,Photography,Strategic Roads & Smart Ticketing,ALAMY LTD,2000018497,1176,#,OX14 4SA,
Department for Transport,Department for Transport,05/12/2014,Protective Clothing,Rail Accident Investigation Branch,BURLINGTON UNIFORMS LTD,100023596,1847.3,#,EN3 7PX,
Department for Transport,Department for Transport,05/12/2014,Protective Clothing,Rail Accident Investigation Branch,BURLINGTON UNIFORMS LTD,100023596,-1847.3,#,EN3 7PX,
Department for Transport,Department for Transport,05/12/2014,Protective Clothing,Rail Accident Investigation Branch,BURLINGTON UNIFORMS LTD,2000018494,1847.3,#,EN3 7PX,
Department for Transport,Department for Transport,05/12/2014,Purchasing Card Char,Group Finance,BARCLAYS BANK PLC,2000018499,8129.66,Barclays - DfT / Rail Group  - Dec 14,NN4 7SG,
Department for Transport,Department for Transport,05/12/2014,Research,Local,HALCROW GROUP LTD,2000018500,29922.71,#,W6 7EF,
Department for Transport,Department for Transport,05/12/2014,Services prov by OGD,"Motoring, Freight & London",DRIVING STANDARDS AGENCY,2000018532,493824.35,#,NG1 6LP,
Department for Transport,Department for Transport,05/12/2014,Support Services,Group Procurement & Estate,DWP SHARED SERVICES,2000018530,23498.92,#,CF14 3UW,
Department for Transport,Department for Transport,05/12/2014,Support Services,Group Procurement & Estate,DWP SHARED SERVICES,2000018530,22163.64,#,CF14 3UW,
Department for Transport,Department for Transport,05/12/2014,Support Services,"Policy, Legislation and Funding",HOUSE OF COMMONS,2000018533,3401.75,#,SW1A 0AA,
Department for Transport,Department for Transport,05/12/2014,Support Services,"Policy, Legislation and Funding",HOUSE OF COMMONS,2000018533,2278.73,#,SW1A 0AA,
Department for Transport,Department for Transport,05/12/2014,Traffic Survey & Cou,Strategic Roads & Smart Ticketing,TNS UK LTD,2000018511,14835,#,W5 1UA,
Department for Transport,Department for Transport,05/12/2014,Training,Analysis & Strategy,VOX COACHING LTD,2000018520,2150.28,VOX Impact and Influence Course,BS6 9FY,
Department for Transport,Department for Transport,05/12/2014,Transport  Consult,Major Projects & Growth,MOTT MACDONALD,2000018508,190369.33,#,CR9 2UL,
Department for Transport,Department for Transport,05/12/2014,Transport  Consult,Rail Commercial & Programme Office,ATKINS LTD (TRANSPORT PLANNING),2000018498,11367.94,#,WR5 1TX,
Department for Transport,Department for Transport,05/12/2014,Transport  Consult,Rail Franchising,initiate Consulting Limited,2000018536,19080,#,SE1 2NE,
Department for Transport,Department for Transport,05/12/2014,Transport  Consult,Aviation,JACOBS UK LTD,2000018501,321128.75,#,G2 7HX,
Department for Transport,Department for Transport,05/12/2014,Travel Expenses UK,Air Accident Investigation Branch,REDFERN TRAVEL LTD,2000018518,21310.25,Redfern - November 2014,BD1 3AZ,
Department for Transport,Department for Transport,08/12/2014,Agency Staff Costs,Rail Commercial & Programme Office,NETWORKERS INTERNATIONAL (UK) PLC,2000018601,4126.26,#,BR1 1HP,
Department for Transport,Department for Transport,08/12/2014,Agency Staff Costs,Rail Commercial & Programme Office,MORGAN HUNT UK LTD,2000018596,3135.55,#,EC4M 7EG,
Department for Transport,Department for Transport,08/12/2014,Agency Staff Costs,Rail Franchising,Capita Resourcing Limited,2000018599,1318.46,#,EC4A 1EN,
Department for Transport,Department for Transport,08/12/2014,Agency Staff Costs,Rail Franchising,Capita Resourcing Limited,2000018599,2636.93,#,EC4A 1EN,
Department for Transport,Department for Transport,08/12/2014,Cap Grt Pri Sec-Cos.,Rail Strategy & Funding,NETWORK RAIL ISTRE (CAPITAL GRANTS),2000018600,287493147.8,NR Network Grant payment,N1 9AG,
Department for Transport,Department for Transport,08/12/2014,Cap Grt Pri Sec-Cos.,Network Rail Sponsorship,Network Rail Infstrcture (Treasury),2000018588,310000000,Network Rail Loan Payment,N1 9AG,
Department for Transport,Department for Transport,08/12/2014,Cars Fuel,Motoring Services,ALLSTAR BUSINESS SOLUTIONS LIMITED,2000018592,15045.92,#,SN5 6PS,
Department for Transport,Department for Transport,08/12/2014,CurrGrt Las in AEF/A,Local,STEER DAVIES & GLEAVE LTD,2000018604,2828000,Steer Davies Gleave (SDG) final payment 2014-2015,SE1 9PD,
Department for Transport,Department for Transport,08/12/2014,Financial Consultanc,Rail Franchising,Pricewaterhouse Coopers LLP,2000018598,154364.4,#,SE1 2RD,
Department for Transport,Department for Transport,08/12/2014,HR Consultancy,Group Human Resource,MYCSP LTD,2000018606,8025.75,#,SK3 0XN,
Department for Transport,Department for Transport,08/12/2014,Legal Consultancy,"Policy, Legislation and Funding",xxxxxx,2000018608,8184,#,xxxxxx,
Department for Transport,Department for Transport,08/12/2014,Legal Consultancy,"Policy, Legislation and Funding",xxxxxx,2000018607,13296,#,xxxxxx,
Department for Transport,Department for Transport,08/12/2014,Publicity,Group Communication,GROUPM UK LIMITED,2000018605,335682.22,#,WC1X 8RX,
Department for Transport,Department for Transport,08/12/2014,Publicity,Group Communication,GROUPM UK LIMITED,2000018605,-182756.6,#,WC1X 8RX,
Department for Transport,Department for Transport,08/12/2014,Support Services,"Motoring, Freight & London",HIGHWAYS AGENCY,2000018589,4818.98,#,B1 1RN,
Department for Transport,Department for Transport,08/12/2014,Team Away Days,Corporate Governance,CONFERENCE CENTRE AT CHURCH HOUSE,2000018594,861.24,BICC away day,SW1P 3NZ,
Department for Transport,Department for Transport,08/12/2014,Telecom Equipment,Motoring Services,Azzuri Communications Ltd,2000018603,62833.94,Azzurri-Quart Charge 07.12.14-06.03.2015,BB11 5FH,
Department for Transport,Department for Transport,08/12/2014,Training,Group Finance,ELIESHA TRAINING,2000018590,3526.89,#,NE4 7YB,
Department for Transport,Department for Transport,08/12/2014,Transport  Consult,Rail Commercial & Programme Office,PARSONS BRINCKERHOFF LTD,2000018597,15316.77,#,NE4 7YQ,
Department for Transport,Department for Transport,08/12/2014,Transport  Consult,Rail Commercial & Programme Office,PARSONS BRINCKERHOFF LTD,2000018597,7757.07,#,NE4 7YQ,
Department for Transport,Department for Transport,08/12/2014,Transport  Consult,Rail Commercial & Programme Office,PARSONS BRINCKERHOFF LTD,2000018597,8579.09,#,NE4 7YQ,
Department for Transport,Department for Transport,08/12/2014,Transport  Consult,Rail Commercial & Programme Office,PARSONS BRINCKERHOFF LTD,2000018597,5326.9,#,NE4 7YQ,
Department for Transport,Department for Transport,08/12/2014,Transport  Consult,Rail Commercial & Programme Office,PARSONS BRINCKERHOFF LTD,2000018597,11020.05,#,NE4 7YQ,
Department for Transport,Department for Transport,08/12/2014,Travel Expenses UK,Marine Accident Investigation Branch,Clyde Travel Management,2000018593,1485.06,Clyde - 24-25.11.14,G52 4JQ,
Department for Transport,Department for Transport,09/12/2014,Agency Staff Costs,Air Accident Investigation Branch,HAYS PERSONNEL SERVICE LTD,2000018667,739.68,#,KT3 4JQ,
Department for Transport,Department for Transport,09/12/2014,Agency Staff Costs,Group Communication,CAPITA BUSINESS SERVICES LTD,2000018669,2936.52,#,DL1 9HN,
Department for Transport,Department for Transport,09/12/2014,Agency Staff Costs,Group Human Resource,CAPITA BUSINESS SERVICES LTD,2000018669,2274,#,DL1 9HN,
Department for Transport,Department for Transport,09/12/2014,Agency Staff Costs,Group Finance,Badenoch & Clark c/o Lauren Rogers,2000018674,3277.5,#,B37 7YE,
Department for Transport,Department for Transport,09/12/2014,Agency Staff Costs,Major Projects & Growth,Badenoch & Clark c/o Lauren Rogers,2000018674,2978.16,#,B37 7YE,
Department for Transport,Department for Transport,09/12/2014,Agency Staff Costs,Major Projects & Growth,Badenoch & Clark c/o Lauren Rogers,2000018674,2978.16,#,B37 7YE,
Department for Transport,Department for Transport,09/12/2014,Agency Staff Costs,Major Projects & Growth,Experis Ltd,2000018677,4793.46,#,EC2M 2RB,
Department for Transport,Department for Transport,09/12/2014,Agency Staff Costs,Rail Commercial & Programme Office,CAPITA BUSINESS SERVICES LTD,2000018669,1978.27,#,DL1 9HN,
Department for Transport,Department for Transport,09/12/2014,Agency Staff Costs,Rail Commercial & Programme Office,CAPITA BUSINESS SERVICES LTD,2000018669,4284.36,#,DL1 9HN,
Department for Transport,Department for Transport,09/12/2014,Agency Staff Costs,Rail Commercial & Programme Office,CAPITA BUSINESS SERVICES LTD,2000018669,2615.16,#,DL1 9HN,
Department for Transport,Department for Transport,09/12/2014,Agency Staff Costs,Rail Commercial & Programme Office,MORGAN HUNT UK LTD,2000018681,4703.33,#,EC4M 7EG,
Department for Transport,Department for Transport,09/12/2014,Agency Staff Costs,Rail Commercial & Programme Office,Experis Ltd,2000018677,1027.18,#,EC2M 2RB,
Department for Transport,Department for Transport,09/12/2014,Agency Staff Costs,Rail Strategy & Funding,Experis Ltd,2000018677,2999.7,#,EC2M 2RB,
Department for Transport,Department for Transport,09/12/2014,Agency Staff Costs,Rail Strategy & Funding,NETWORKERS INTERNATIONAL (UK) PLC,2000018689,1151.35,#,BR1 1HP,
Department for Transport,Department for Transport,09/12/2014,Agency Staff Costs,Group Finance,CAPITA BUSINESS SERVICES LTD,2000018669,2144.11,#,DL1 9HN,
Department for Transport,Department for Transport,09/12/2014,Agency Staff Costs,Group Finance,CAPITA BUSINESS SERVICES LTD,2000018669,25178.1,#,DL1 9HN,
Department for Transport,Department for Transport,09/12/2014,Agency Staff Costs,Rail Strategy & Funding,CAPITA BUSINESS SERVICES LTD,2000018669,4510.62,#,DL1 9HN,
Department for Transport,Department for Transport,09/12/2014,Agency Staff Costs,Rail Strategy & Funding,CAPITA BUSINESS SERVICES LTD,2000018669,7130.05,#,DL1 9HN,
Department for Transport,Department for Transport,09/12/2014,Agency Staff Costs,Rail Strategy & Funding,CAPITA BUSINESS SERVICES LTD,2000018669,4510.62,#,DL1 9HN,
Department for Transport,Department for Transport,09/12/2014,Agency Staff Costs,Rail Strategy & Funding,CAPITA BUSINESS SERVICES LTD,2000018669,4510.62,#,DL1 9HN,
Department for Transport,Department for Transport,09/12/2014,Agency Staff Costs,Rail Strategy & Funding,CAPITA BUSINESS SERVICES LTD,2000018669,9667.8,#,DL1 9HN,
Department for Transport,Department for Transport,09/12/2014,Agency Staff Costs,Rail Strategy & Funding,CAPITA BUSINESS SERVICES LTD,2000018669,6659.28,#,DL1 9HN,
Department for Transport,Department for Transport,09/12/2014,Agency Staff Costs,Rail Franchising,Capita Resourcing Limited,2000018687,19103.54,#,EC4A 1EN,
Department for Transport,Department for Transport,09/12/2014,Agency Staff Costs,Rail Franchising,Capita Resourcing Limited,2000018687,4740,#,EC4A 1EN,
Department for Transport,Department for Transport,09/12/2014,Agency Staff Costs,Rail Franchising,Experis Ltd,2000018677,16023.74,#,EC2M 2RB,
Department for Transport,Department for Transport,09/12/2014,Agency Staff Costs,Highspeed 2,Experis Ltd,2000018677,4666.2,#,EC2M 2RB,
Department for Transport,Department for Transport,09/12/2014,Agency Staff Costs,Highspeed 2,Experis Ltd,2000018677,4108.68,#,EC2M 2RB,
Department for Transport,Department for Transport,09/12/2014,Agency Staff Costs,Rail Franchising,Experis Ltd,2000018677,5526.72,#,EC2M 2RB,
Department for Transport,Department for Transport,09/12/2014,Agency Staff Costs,Group Finance,Experis Ltd,2000018677,3850.32,#,EC2M 2RB,
Department for Transport,Department for Transport,09/12/2014,Cap Grt Loc Auth,Local,BRISTOL CITY COUNCIL,2000018688,113848,West of England BBA - Capital,BS99 7BL,
Department for Transport,Department for Transport,09/12/2014,Cap Grt Pri Sec-Cos.,Network Rail Sponsorship,Network Rail Infstrcture (Treasury),2000018713,150000000,Network Rail Loan Payment,N1 9AG,
Department for Transport,Department for Transport,09/12/2014,Cars Fuel,Air Accident Investigation Branch,ALLSTAR BUSINESS SOLUTIONS LIMITED,2000018672,1239.04,#,SN5 6PS,
Department for Transport,Department for Transport,09/12/2014,Cars Maintenance,Motoring Services,Stapletons Tyre Services,2000018703,506.6,#,SG6 2HU,
Department for Transport,Department for Transport,09/12/2014,Computer equipment,Air Accident Investigation Branch,SOFTWARE BOX LTD,2000018666,1510.96,SBL VIP CREATIVE CLOUD 19/11/14,YO61 1ET,
Department for Transport,Department for Transport,09/12/2014,CurrGrt Las in AEF/A,Local,BRISTOL CITY COUNCIL,2000018688,131955,West of England BBA - Resource,BS99 7BL,
Department for Transport,Department for Transport,09/12/2014,Insurance,General Counsel's Office,London & Continental Railways Ltd,2000018686,1665.6,#,WC2B 4AN,
Department for Transport,Department for Transport,09/12/2014,Investigation Servic,Motoring Services,CH&I Associates Ltd,2000018707,5868.72,#,SK11 8AA,
Department for Transport,Department for Transport,09/12/2014,Investigation Servic,Motoring Services,CH&I Associates Ltd,2000018707,2694.12,#,SK11 8AA,
Department for Transport,Department for Transport,09/12/2014,Investigation Servic,Motoring Services,Procordia Ltd,2000018710,5011.5,#,TN39 4SR,
Department for Transport,Department for Transport,09/12/2014,Investigation Servic,Motoring Services,Procordia Ltd,2000018710,877.5,#,TN39 4SR,
Department for Transport,Department for Transport,09/12/2014,Investigation Servic,Motoring Services,Procordia Ltd,2000018710,1001,#,TN39 4SR,
Department for Transport,Department for Transport,09/12/2014,IT Equip Cap Cost,Air Accident Investigation Branch,BASSOM COMPUTER CONSULTANCY,2000018676,11048.4,#,GU9 8LS,
Department for Transport,Department for Transport,09/12/2014,IT Ser Running Costs,Group Finance,DUN & BRADSTREET LTD,2000018668,3600,#,SL7 1AJ,
Department for Transport,Department for Transport,09/12/2014,Maintenance Other,Motoring Services,ARVAL,2000018670,975.9,#,SN5 6PE,
Department for Transport,Department for Transport,09/12/2014,Manual Handling Equi,Motoring Services,Gemco Services Limited,2000018700,596.7,#,HX2 6JB,
Department for Transport,Department for Transport,09/12/2014,Medical Advisory Ser,Group Human Resource,HEALTH MANAGEMENT LTD,2000018678,10452.36,#,BN8 5NN,
Department for Transport,Department for Transport,09/12/2014,Other Advertising,Local,PENNA COMMUNICATIONS,2000018692,3136.33,#,EC4M 7RD,
Department for Transport,Department for Transport,09/12/2014,Other Professional F,Group Finance,Arvato Ltd,2000018709,224955,#,HU10 6FE,
Department for Transport,Department for Transport,09/12/2014,Prog&ProjMgmt Consul,Motoring Services,Grange Car Wash,2000018711,1200,#,SE1 3AD,
Department for Transport,Department for Transport,09/12/2014,Property Maintenance,Air Accident Investigation Branch,Interserve,2000018695,10702.94,#,B70 1DA,
Department for Transport,Department for Transport,09/12/2014,Publicity,Group Communication,ABBOTT MEAD VICKERS BBDO LTD,2000018671,2801,#,NW1 5QE,
Department for Transport,Department for Transport,09/12/2014,Purchasing Card Char,RTL DG's Office,BARCLAYS BANK PLC,2000018675,11316.07,Barclays - DfT / RT&L  - Nov 14,NN4 7SG,
Department for Transport,Department for Transport,09/12/2014,Purchasing Card Char,RTL DG's Office,BARCLAYS BANK PLC,2000018675,1935.42,Barclays -DFT/RT&L December 2014,NN4 7SG,
Department for Transport,Department for Transport,09/12/2014,Purchasing Card Char,Centrally held prog-NATs,BARCLAYS BANK PLC,2000018675,32487.69,Barclays - DfT / ISE - Nov 14,NN4 7SG,
Department for Transport,Department for Transport,09/12/2014,Purchasing Card Char,Centrally held prog-NATs,BARCLAYS BANK PLC,2000018675,41801.71,Barclays -ISE -December 2014,NN4 7SG,
Department for Transport,Department for Transport,09/12/2014,Purchasing Card Char,Group Finance,BARCLAYS BANK PLC,2000018675,56386.16,Barclays - DfT / R&S  - Nov 14,NN4 7SG,
Department for Transport,Department for Transport,09/12/2014,Purchasing Card Char,Group Finance,BARCLAYS BANK PLC,2000018675,3683.92,Barclays -DFT/R&S December 2014,NN4 7SG,
Department for Transport,Department for Transport,09/12/2014,RBSGen Fund Sundin,Auto Posting PCA for Banking & Payroll,Evergreen MAC,1700000094,-5838,#,B30 1BX,
Department for Transport,Department for Transport,09/12/2014,Security,Air Accident Investigation Branch,Interserve,2000018695,2328.86,#,B70 1DA,
Department for Transport,Department for Transport,09/12/2014,Subscriptions to Pro,Strategic Roads & Smart Ticketing,ITS UNITED KINGDOM,2000018679,3240,#,E1W 1AW,
Department for Transport,Department for Transport,09/12/2014,Training,"Energy, Technology and International",NATIONAL NON-FOOD CROPS CENTRE,2000018682,3700,#,YO10 5DG,
Department for Transport,Department for Transport,09/12/2014,Training,Air Accident Investigation Branch,HELI AIR LIMITED,2000018696,825,#,CV35 9EU,
Department for Transport,Department for Transport,09/12/2014,Training,Air Accident Investigation Branch,HELI AIR LIMITED,2000018696,1437.5,#,CV35 9EU,
Department for Transport,Department for Transport,09/12/2014,Training,Air Accident Investigation Branch,HELI AIR LIMITED,2000018696,657.5,#,CV35 9EU,
Department for Transport,Department for Transport,09/12/2014,Transport  Consult,Rail Commercial & Programme Office,PARSONS BRINCKERHOFF LTD,2000018683,14479.93,#,NE4 7YQ,
Department for Transport,Department for Transport,09/12/2014,Transport  Consult,Rail Commercial & Programme Office,PARSONS BRINCKERHOFF LTD,2000018683,18494.1,#,NE4 7YQ,
Department for Transport,Department for Transport,09/12/2014,Transport  Consult,Rail Commercial & Programme Office,TRANSPORT RESEARCH LABORATORY,2000018684,13268.75,#,RG40 3GA,
Department for Transport,Department for Transport,09/12/2014,Transport  Consult,Rail Commercial & Programme Office,TRANSPORT RESEARCH LABORATORY,2000018684,3306.5,#,RG40 3GA,
Department for Transport,Department for Transport,09/12/2014,Transport  Consult,Rail Commercial & Programme Office,TRANSPORT RESEARCH LABORATORY,2000018684,8367.32,#,RG40 3GA,
Department for Transport,Department for Transport,09/12/2014,Transport  Consult,Rail Commercial & Programme Office,TRANSPORT RESEARCH LABORATORY,2000018684,34263.25,#,RG40 3GA,
Department for Transport,Department for Transport,09/12/2014,Travel Expenses UK,Group Finance,REDFERN TRAVEL LTD,2000018693,163688.38,Redfern - November 2014,BD1 3AZ,
Department for Transport,Department for Transport,09/12/2014,Treasury Solicitors,Aviation,TREASURY SOLICITOR,2000018665,446.28,#,WC2B 4TS,
Department for Transport,Department for Transport,10/12/2014,Agency Staff Costs,General Counsel's Office,CAPITA BUSINESS SERVICES LTD,2000018767,2896.56,#,DL1 9HN,
Department for Transport,Department for Transport,10/12/2014,Agency Staff Costs,Group Human Resource,NETWORKERS INTERNATIONAL (UK) PLC,2000018790,810.82,#,BR1 1HP,
Department for Transport,Department for Transport,10/12/2014,Agency Staff Costs,Group Finance,Badenoch & Clark c/o Lauren Rogers,2000018768,3277.5,#,B37 7YE,
Department for Transport,Department for Transport,10/12/2014,Agency Staff Costs,Group Finance,Badenoch & Clark c/o Lauren Rogers,2000018768,3277.5,#,B37 7YE,
Department for Transport,Department for Transport,10/12/2014,Agency Staff Costs,Group Finance,MICHAEL PAGE INTERNATIONAL,2000018783,6420,#,SL1 3SA,
Department for Transport,Department for Transport,10/12/2014,Agency Staff Costs,Group Finance,MICHAEL PAGE INTERNATIONAL,2000018783,3420,#,SL1 3SA,
Department for Transport,Department for Transport,10/12/2014,Agency Staff Costs,Group Finance,MICHAEL PAGE INTERNATIONAL,2000018783,3240,#,SL1 3SA,
Department for Transport,Department for Transport,10/12/2014,Agency Staff Costs,Group Finance,MICHAEL PAGE INTERNATIONAL,2000018783,3594,#,SL1 3SA,
Department for Transport,Department for Transport,10/12/2014,Agency Staff Costs,Group Finance,NETWORKERS INTERNATIONAL (UK) PLC,2000018790,3391.26,#,BR1 1HP,
Department for Transport,Department for Transport,10/12/2014,Agency Staff Costs,Major Projects & Growth,Capita Resourcing Limited,2000018784,3043.2,#,EC4A 1EN,
Department for Transport,Department for Transport,10/12/2014,Agency Staff Costs,Major Projects & Growth,NETWORKERS INTERNATIONAL (UK) PLC,2000018790,5172.82,#,BR1 1HP,
Department for Transport,Department for Transport,10/12/2014,Agency Staff Costs,Major Projects & Growth,Badenoch & Clark c/o Lauren Rogers,2000018768,2978.16,#,B37 7YE,
Department for Transport,Department for Transport,10/12/2014,Agency Staff Costs,Major Projects & Growth,Experis Ltd,2000018770,6040.02,#,EC2M 2RB,
Department for Transport,Department for Transport,10/12/2014,Agency Staff Costs,Rail Commercial & Programme Office,NETWORKERS INTERNATIONAL (UK) PLC,2000018790,4126.26,#,BR1 1HP,
Department for Transport,Department for Transport,10/12/2014,Agency Staff Costs,Group Finance,NETWORKERS INTERNATIONAL (UK) PLC,2000018790,1925.7,#,BR1 1HP,
Department for Transport,Department for Transport,10/12/2014,Agency Staff Costs,Group Finance,NETWORKERS INTERNATIONAL (UK) PLC,2000018790,688.8,#,BR1 1HP,
Department for Transport,Department for Transport,10/12/2014,Agency Staff Costs,Group Finance,CAPITA BUSINESS SERVICES LTD,2000018767,5360.28,#,DL1 9HN,
Department for Transport,Department for Transport,10/12/2014,Agency Staff Costs,Group Finance,CAPITA BUSINESS SERVICES LTD,2000018767,2745.06,#,DL1 9HN,
Department for Transport,Department for Transport,10/12/2014,Agency Staff Costs,Network Rail Sponsorship,CAPITA BUSINESS SERVICES LTD,2000018767,880.96,#,DL1 9HN,
Department for Transport,Department for Transport,10/12/2014,Agency Staff Costs,Rail Franchising,CAPITA BUSINESS SERVICES LTD,2000018767,2777.52,#,DL1 9HN,
Department for Transport,Department for Transport,10/12/2014,Agency Staff Costs,Rail Commercial & Programme Office,CAPITA BUSINESS SERVICES LTD,2000018767,2601.13,#,DL1 9HN,
Department for Transport,Department for Transport,10/12/2014,Agency Staff Costs,Rail Commercial & Programme Office,CAPITA BUSINESS SERVICES LTD,2000018767,3924.48,#,DL1 9HN,
Department for Transport,Department for Transport,10/12/2014,Agency Staff Costs,Rail Franchising,CAPITA BUSINESS SERVICES LTD,2000018767,2030.64,#,DL1 9HN,
Department for Transport,Department for Transport,10/12/2014,Agency Staff Costs,Rail Commercial & Programme Office,CAPITA BUSINESS SERVICES LTD,2000018767,2887.92,#,DL1 9HN,
Department for Transport,Department for Transport,10/12/2014,Agency Staff Costs,Rail Franchising,Capita Resourcing Limited,2000018784,36081.36,#,EC4A 1EN,
Department for Transport,Department for Transport,10/12/2014,Agency Staff Costs,Rail Franchising,Capita Resourcing Limited,2000018784,18816,#,EC4A 1EN,
Department for Transport,Department for Transport,10/12/2014,Agency Staff Costs,Rail Strategy & Funding,NETWORKERS INTERNATIONAL (UK) PLC,2000018790,1918.92,#,BR1 1HP,
Department for Transport,Department for Transport,10/12/2014,Basic Franchise Pay,Rail Commercial & Programme Office,NORTHERN RAIL LTD,2000018788,309050,1509 Wk4 North West Electrics claiim_2013-14 - NOR,YO1 6HT,
Department for Transport,Department for Transport,10/12/2014,Basic Franchise Pay,Rail Commercial & Programme Office,NORTHERN RAIL LTD,2000018788,389025,1509 Wk4 TPE 5th Path Claim - NORTHERN RAIL LIMITE,YO1 6HT,
Department for Transport,Department for Transport,10/12/2014,Basic Franchise Pay,Rail Commercial & Programme Office,NORTHERN RAIL LTD,2000018788,2403598.63,1509 Wk4 NW Electrics Subsidy (DOA dt. 25/04/2014),YO1 6HT,
Department for Transport,Department for Transport,10/12/2014,Cap Grt Loc Auth,Local,CENTRAL BEDFORDSHIRE COUNCIL,2000018793,2650000,2014-15 Local Pinch Point Fund Grant December 2014,MK42 9BD,
Department for Transport,Department for Transport,10/12/2014,Cap Grt Loc Auth,Local,LB HAMMERSMITH & FULHAM,2000018781,2050000,2014-15 Local Pinch Point Fund Grant December 2014,W6 9JU,
Department for Transport,Department for Transport,10/12/2014,Cap Grt Loc Auth,Local,Reading Borough Council,2000018803,1041000,2014-15 Local Pinch Point Fund Grant December 2014,RG1 2LU,
Department for Transport,Department for Transport,10/12/2014,Cap Grt Loc Auth,Local,Southampton City Council,2000018807,880000,2014-15 Local Pinch Point Fund Grant December 2014,SO14 7LY,
Department for Transport,Department for Transport,10/12/2014,Cap Grt Loc Auth,Local,Stoke-On-Trent City Council,2000018782,1500000,2014-15 Local Pinch Point Fund Grant December 2014,ST4 4TS,
Department for Transport,Department for Transport,10/12/2014,Cap Grt Loc Auth,Local,Warwickshire County Council,2000018805,2354000,2014-15 Local Pinch Point Fund Grant December 2014,CV34 4RH,
Department for Transport,Department for Transport,10/12/2014,Cap Grt Loc Auth,Local,WOKINGHAM DC,2000018804,1368000,2014-15 Local Pinch Point Fund Grant December 2014,RG40 1JW,
Department for Transport,Department for Transport,10/12/2014,Cap Grt Loc Auth,Local,WORCESTERSHIRE COUNTY COUNCIL,2000018806,2475000,2014-15 Local Pinch Point Fund Grant December 2014,WR5 2NP,
Department for Transport,Department for Transport,10/12/2014,Cap Grt Loc Auth,Local,BRIGHTON & HOVE COUNCIL,2000018789,882500,Brighton & Devon (National Parks) 2014-15 Q2,BN3 2SR,
Department for Transport,Department for Transport,10/12/2014,Cap Grt Loc Auth,Local,DEVON COUNTY COUNCIL,2000018791,904200,Brighton & Devon (National Parks) 2014-15 Q2,EX2 4QW,
Department for Transport,Department for Transport,10/12/2014,Cap Grt Pri Sec-Cos.,Network Rail Sponsorship,Network Rail Infstrcture (Treasury),2000018731,150000000,#,N1 9AG,
Department for Transport,Department for Transport,10/12/2014,Cars Maintenance,Motoring Services,Goodyear Dunlop Tyres UK Ltd,2000018799,766.72,#,B24 9HY,
Department for Transport,Department for Transport,10/12/2014,Electricity,Group Procurement & Estate,EDF ENERGY,2000018769,42777.87,EDF - GMH - 1.8.14 to 31.8.14,DA6 8ET,
Department for Transport,Department for Transport,10/12/2014,Electricity,Group Procurement & Estate,EDF ENERGY,2000018769,39999.67,EDF - Trfc C'ting - 01.11.14 - 30.11.14,DA6 8ET,
Department for Transport,Department for Transport,10/12/2014,Financial Consultanc,Rail Franchising,GRANT THORNTON UK LLP,2000018786,49327.68,#,NN4 7YE,
Department for Transport,Department for Transport,10/12/2014,IT Ser Running Costs,Group Communication,RACKSPACE LTD,2000018776,2966.11,#,UB3 4AZ,
Department for Transport,Department for Transport,10/12/2014,L&B Excl Dwellings,Maritime,FAITHFUL & GOULD LTD,2000018802,4626.85,#,CF24 0AD,
Department for Transport,Department for Transport,10/12/2014,Management Consultan,General Counsel's Office,Crawford & Co Adjusters (UK) Ltd,2000018800,17401.2,#,B2 2PF,
Department for Transport,Department for Transport,10/12/2014,Printing,Maritime,WILLIAMS LEA LIMITED,2000018796,1228.98,#,NR3 1PD,
Department for Transport,Department for Transport,10/12/2014,Prog&ProjMgmt Consul,Project Sponsorship ,PARSONS BRINCKERHOFF LTD,2000018775,3081.58,#,NE4 7YQ,
Department for Transport,Department for Transport,10/12/2014,Prog&ProjMgmt Consul,Project Sponsorship ,PARSONS BRINCKERHOFF LTD,2000018775,3140.68,#,NE4 7YQ,
Department for Transport,Department for Transport,10/12/2014,Prog&ProjMgmt Consul,Project Sponsorship ,PARSONS BRINCKERHOFF LTD,2000018775,161986.22,#,NE4 7YQ,
Department for Transport,Department for Transport,10/12/2014,Rent - L&B (non-PFI),Maritime,INT OIL POLLUTION COMPENSATION FUND,2000018771,95300,#,SW1E 5PN,
Department for Transport,Department for Transport,10/12/2014,Schedule 8 Fixed Per,Rail Commercial & Programme Office,ARRIVA TRAINS WALES,2000018787,425040.59,1509 Wk4 CP2SR_P1508 - ARRIVA TRAINS WALES LIMITED,CF10 5DJ,
Department for Transport,Department for Transport,10/12/2014,Schedule 8 Fixed Per,Rail Commercial & Programme Office,ARRIVA TRAINS WALES,2000018787,-951.41,1509 Wk4 RTMRE_P1508 - ARRIVA TRAINS WALES LIMITED,CF10 5DJ,
Department for Transport,Department for Transport,10/12/2014,Schedule 8 Fixed Per,Rail Commercial & Programme Office,ARRIVA TRAINS WALES,2000018787,57943.01,1509 Wk4 TS8A_P1508 - ARRIVA TRAINS WALES LIMITED,CF10 5DJ,
Department for Transport,Department for Transport,10/12/2014,Sprs Indexation Pay-,Rail Commercial & Programme Office,NORTHERN RAIL LTD,2000018788,60403.25,1509 Wk4 NW Electrics Indexation (DOA dt. 25/04/20,YO1 6HT,
Department for Transport,Department for Transport,10/12/2014,Subsidies Private Se,"Motoring, Freight & London",MSRS Freight Grant,2000018795,13460.58,MSRS Freight Grant,xxxxxx,
Department for Transport,Department for Transport,10/12/2014,Subsidies Private Se,"Motoring, Freight & London",MSRS Freight Grant,2000018795,13129.2,MSRS Freight Grant,xxxxxx,
Department for Transport,Department for Transport,10/12/2014,Subsidies Private Se,"Motoring, Freight & London",MSRS Freight Grant,2000018794,2471.54,MSRS Freight Grant,xxxxxx,
Department for Transport,Department for Transport,10/12/2014,Subsidies Private Se,"Motoring, Freight & London",MSRS Freight Grant,2000018794,2502.1,MSRS Freight Grant,xxxxxx,
Department for Transport,Department for Transport,10/12/2014,Subsidies Private Se,"Motoring, Freight & London",MSRS Freight Grant,2000018794,2973.87,MSRS Freight Grant,xxxxxx,
Department for Transport,Department for Transport,10/12/2014,Subsidies Private Se,"Motoring, Freight & London",MSRS Freight Grant,2000018797,51528,MSRS Freight Grant,xxxxxx,
Department for Transport,Department for Transport,10/12/2014,Support Services,Group Finance,DD ACCRAILWAY PENS TRUSTEE,2000018785,720.9,#,DL3 6XR,
Department for Transport,Department for Transport,10/12/2014,Telephone charges,Motoring Services,VODAFONE LTD,2000018780,11024.08,DEMON - internet charges - November 2014,RG14 5FF,
Department for Transport,Department for Transport,10/12/2014,Traffic Survey & Cou,"Motoring, Freight & London",PARSONS BRINCKERHOFF LTD,2000018775,604245.42,#,NE4 7YQ,
Department for Transport,Department for Transport,10/12/2014,Training,Motoring Services,SOFTWARE BOX LTD,2000018766,2280,#,YO61 1ET,
Department for Transport,Department for Transport,10/12/2014,Transport  Consult,Group Human Resource,KIS Solutions Ltd,2000018773,5625,#,GU8 5UA,
Department for Transport,Department for Transport,10/12/2014,Transport  Consult,Rail Commercial & Programme Office,PARSONS BRINCKERHOFF LTD,2000018775,4846.34,#,NE4 7YQ,
Department for Transport,Department for Transport,10/12/2014,Transport  Consult,Major Projects & Growth,PARSONS BRINCKERHOFF LTD,2000018775,23735.88,#,NE4 7YQ,
Department for Transport,Department for Transport,10/12/2014,Transport  Consult,Rail Commercial & Programme Office,PARSONS BRINCKERHOFF LTD,2000018775,6062.93,#,NE4 7YQ,
Department for Transport,Department for Transport,10/12/2014,Transport  Consult,Rail Commercial & Programme Office,PARSONS BRINCKERHOFF LTD,2000018775,12889.14,#,NE4 7YQ,
Department for Transport,Department for Transport,10/12/2014,Transport  Consult,Rail Commercial & Programme Office,PARSONS BRINCKERHOFF LTD,2000018775,3614.99,#,NE4 7YQ,
Department for Transport,Department for Transport,10/12/2014,Transport  Consult,Rail Commercial & Programme Office,PARSONS BRINCKERHOFF LTD,2000018775,6704.08,#,NE4 7YQ,
Department for Transport,Department for Transport,10/12/2014,Transport  Consult,Rail Commercial & Programme Office,PARSONS BRINCKERHOFF LTD,2000018775,-12889.14,#,NE4 7YQ,
Department for Transport,Department for Transport,10/12/2014,Transport  Consult,Rail Commercial & Programme Office,PARSONS BRINCKERHOFF LTD,2000018775,-3614.99,#,NE4 7YQ,
Department for Transport,Department for Transport,10/12/2014,Transport  Consult,Rail Commercial & Programme Office,PARSONS BRINCKERHOFF LTD,2000018775,-6704.08,#,NE4 7YQ,
Department for Transport,Department for Transport,10/12/2014,Transport  Consult,Rail Commercial & Programme Office,PARSONS BRINCKERHOFF LTD,2000018775,-6062.93,#,NE4 7YQ,
Department for Transport,Department for Transport,10/12/2014,Transport  Consult,Rail Commercial & Programme Office,PARSONS BRINCKERHOFF LTD,2000018775,3503.06,#,NE4 7YQ,
Department for Transport,Department for Transport,10/12/2014,Transport  Consult,Rail Commercial & Programme Office,PARSONS BRINCKERHOFF LTD,2000018775,4174.91,#,NE4 7YQ,
Department for Transport,Department for Transport,10/12/2014,Transport  Consult,Rail Commercial & Programme Office,PARSONS BRINCKERHOFF LTD,2000018775,6661.7,#,NE4 7YQ,
Department for Transport,Department for Transport,10/12/2014,Transport  Consult,Rail Franchising,TRANSPORT RESEARCH LABORATORY,2000018779,155524.42,#,RG40 3GA,
Department for Transport,Department for Transport,10/12/2014,Transport  Consult,Rail Franchising,TRANSPORT RESEARCH LABORATORY,2000018779,170616.73,#,RG40 3GA,
Department for Transport,Department for Transport,10/12/2014,Transport  Consult,Rail Franchising,TRANSPORT RESEARCH LABORATORY,2000018779,155488.62,#,RG40 3GA,
Department for Transport,Department for Transport,11/12/2014,Agency Staff Costs,Major Projects & Growth,BROOK STREET (UK) LIMITED,2000018862,519.74,#,AL1 4JB,
Department for Transport,Department for Transport,11/12/2014,Agency Staff Costs,Major Projects & Growth,BROOK STREET (UK) LIMITED,2000018862,533.6,#,AL1 4JB,
Department for Transport,Department for Transport,11/12/2014,Agency Staff Costs,Group Finance,CAPITA BUSINESS SERVICES LTD,2000018853,5360.28,#,DL1 9HN,
Department for Transport,Department for Transport,11/12/2014,Agency Staff Costs,Group Finance,CAPITA BUSINESS SERVICES LTD,2000018853,3671.52,#,DL1 9HN,
Department for Transport,Department for Transport,11/12/2014,Agents Fees,Group Finance,RAILWAYS PENSION MANAGEMENT LT,2000018864,616384.14,#,DL3 6EH,
Department for Transport,Department for Transport,11/12/2014,Building Service Cha,Rail Accident Investigation Branch,INNES ENGLAND LTD,2000018857,5340,Innes - The Wharf - 25.12.14 - 24.03.15,DE1 1BT,
Department for Transport,Department for Transport,11/12/2014,Building Service Cha,Rail Accident Investigation Branch,INNES ENGLAND LTD,2000018857,1625,Innes - Clarke St -25.12.14 to 24.3.15,DE1 1BT,
Department for Transport,Department for Transport,11/12/2014,Cap Grt Pri Sec-Cos.,"Energy, Technology and International",A Shade Greener,2000018881,236922.22,A Shade Greenr Aug 2014 #236922.22,S75 3DP,
Department for Transport,Department for Transport,11/12/2014,Cap Grt Pri Sec-Cos.,"Energy, Technology and International",Arnold Electrical,2000018882,134955.72,Arnold electrical Aug 2014 #134955.72,NG6 0GD,
Department for Transport,Department for Transport,11/12/2014,Cap Grt Pri Sec-Cos.,"Energy, Technology and International",Castle Building Services,2000018883,152500,"""#152,250 for 75% (rest when data recd) Jul 14""",NE31 2EX,
Department for Transport,Department for Transport,11/12/2014,Cap Grt Pri Sec-Cos.,"Energy, Technology and International",Fox Electrical Ltd,2000018878,12995.74,Fox Electrical Aug 2014 #12995.74,S60 4EW,
Department for Transport,Department for Transport,11/12/2014,Cap Grt Pri Sec-Cos.,"Energy, Technology and International",JS Security & Electrical,2000018877,5000,JS SECURITY Aug 2015 #5000,NE38 8QD,
Department for Transport,Department for Transport,11/12/2014,Cap Grt Pri Sec-Cos.,"Energy, Technology and International",Manguard Electrical Security Ltd,2000018885,15837.6,MANGUARD July 2014 #15837.60,DE24 8QN,
Department for Transport,Department for Transport,11/12/2014,Cap Grt Pri Sec-Cos.,"Energy, Technology and International",MERCEDES BENZ UK LTD,2000018869,113242.11,"""PiCG Mercedes November 2014 #113,242.11""",MK15 8BA,
Department for Transport,Department for Transport,11/12/2014,Cap Grt Pri Sec-Cos.,Network Rail Sponsorship,Network Rail Infstrcture (Treasury),2000018819,330000000,Network Rail Loan Payment,N1 9AG,
Department for Transport,Department for Transport,11/12/2014,Cap Grt Pri Sec-Cos.,"Energy, Technology and International",NISSAN MOTOR GB LTD,2000018867,2208076.65,"""PiCG Nissan November 2014 #2,208,076.65""",WD3 9YS,
Department for Transport,Department for Transport,11/12/2014,Cap Grt Pri Sec-Cos.,"Energy, Technology and International",One Planet Solar,2000018884,9500,ONEPLANETSOLAR outstanding 2014 #9500,DL14 0LZ,
Department for Transport,Department for Transport,11/12/2014,Cap Grt Pri Sec-Cos.,"Energy, Technology and International",PEUGEOT MOTOR COMPANY,2000018870,5112,PiCG Peugeot November 2014 #5112,CV3 1ND,
Department for Transport,Department for Transport,11/12/2014,Cap Grt Pri Sec-Cos.,"Energy, Technology and International",Rolec Services Limited,2000018873,4000,ROLEC late Aug 2015 #4000,PE20 1Q,
Department for Transport,Department for Transport,11/12/2014,Cap Grt Pri Sec-Cos.,"Energy, Technology and International",SNRG Electrical,2000018880,146951.78,SNRG ELEC Aug partial 2014 #146951.78,NG11 6LB,
Department for Transport,Department for Transport,11/12/2014,Cap Grt Pri Sec-Cos.,"Energy, Technology and International",THE COLT CAR COMPANY LTD,2000018866,4408084,"""PiCG Mitsubishi November 2014 #4,408,084""",GL7 1LF,
Department for Transport,Department for Transport,11/12/2014,Cap Grt Pri Sec-Cos.,"Energy, Technology and International",W. T. Parker Ltd,2000018874,3000,WT PARKER AUG 2014 #3000,DE14 3SX,
Department for Transport,Department for Transport,11/12/2014,Cap Grt Pri Sec-Cos.,"Energy, Technology and International",WRB Energy Ltd,2000018879,5997.72,WRB Energy Aug 2014 #5997.72,BT3 9JP,
Department for Transport,Department for Transport,11/12/2014,CurrGrt Las in AEF/A,"Motoring, Freight & London",GREATER LONDON AUTHORITY,2000018886,134188846,GLA Transport Grant - Dec 14/15,SE1 2UT,
Department for Transport,Department for Transport,11/12/2014,CurrGrt Las in AEF/A,Local,COMMUNITIES AND LOCAL GOVERNMENT,2000018850,75569811,Transfer of PFI grant for payment to LAs,HP2 4XN,
Department for Transport,Department for Transport,11/12/2014,HR Consultancy,Group Human Resource,ATOS IT Services UK Ltd,2000018855,1178.12,#,WV10 6UH,
Department for Transport,Department for Transport,11/12/2014,Occup Health Scheme,Strategic Roads & Smart Ticketing,London & Continental Railways Ltd,2000018863,2775.96,#,WC2B 4AN,
Department for Transport,Department for Transport,11/12/2014,Publications for Res,Maritime,CREATIVE CHOICE CIC,2000018871,729,#,SW1H 0DJ,
Department for Transport,Department for Transport,11/12/2014,Publicity,"Motoring, Freight & London",ATKINS LTD (TRANSPORT PLANNING),2000018854,4970.42,#,WR5 1TX,
Department for Transport,Department for Transport,11/12/2014,Recruitment Fees,Group Human Resource,HM REVENUE & CUSTOMS,2000018851,8209.3,#,BN12 4XH,
Department for Transport,Department for Transport,11/12/2014,Recruitment Fees,Group Human Resource,HM REVENUE & CUSTOMS,2000018851,8658.24,#,BN12 4XH,
Department for Transport,Department for Transport,11/12/2014,Recruitment Fees,Group Human Resource,HM REVENUE & CUSTOMS,2000018851,4443.96,#,BN12 4XH,
Department for Transport,Department for Transport,11/12/2014,Recruitment Fees,Group Human Resource,HM REVENUE & CUSTOMS,2000018851,3244.81,#,BN12 4XH,
Department for Transport,Department for Transport,11/12/2014,Recruitment Fees,Group Human Resource,HM REVENUE & CUSTOMS,2000018851,7450.36,#,BN12 4XH,
Department for Transport,Department for Transport,11/12/2014,Recruitment Fees,Group Human Resource,HM REVENUE & CUSTOMS,2000018851,4794.68,#,BN12 4XH,
Department for Transport,Department for Transport,11/12/2014,Security,Group Human Resource,HM REVENUE & CUSTOMS,2000018851,2725,#,BN12 4XH,
Department for Transport,Department for Transport,11/12/2014,Support Services,Group Human Resource,DRIVER & VEHICLE LICENSING AGENCY,2000018852,41841.58,#,SA6 7JL,
Department for Transport,Department for Transport,11/12/2014,Support Services,General Counsel's Office,Crawford & Co Adjusters (UK) Ltd,2000018875,599932.97,Dec 14 Top-up of DfT Client Account,B2 2PF,
Department for Transport,Department for Transport,11/12/2014,Training,Aviation,xxxxxx,2000018868,786.5,#,xxxxxx,
Department for Transport,Department for Transport,11/12/2014,Transport  Consult,Major Projects & Growth,OVE ARUP & PARTNERS,100023851,107523.13,Match to credit 000036033,NE1 3PL,
Department for Transport,Department for Transport,11/12/2014,Transport  Consult,Major Projects & Growth,OVE ARUP & PARTNERS,100023851,-107523.13,Credit for 000376259,NE1 3PL,
Department for Transport,Department for Transport,11/12/2014,Transport  Consult,Rail Commercial & Programme Office,PARSONS BRINCKERHOFF LTD,2000018860,15555.8,#,NE4 7YQ,
Department for Transport,Department for Transport,11/12/2014,Transport  Consult,Rail Commercial & Programme Office,PARSONS BRINCKERHOFF LTD,2000018860,-15555.79,#,NE4 7YQ,
Department for Transport,Department for Transport,11/12/2014,Transport  Consult,Rail Commercial & Programme Office,PARSONS BRINCKERHOFF LTD,2000018860,14234.83,#,NE4 7YQ,
Department for Transport,Department for Transport,11/12/2014,Transport  Consult,Rail Commercial & Programme Office,PARSONS BRINCKERHOFF LTD,2000018860,7415.97,#,NE4 7YQ,
Department for Transport,Department for Transport,11/12/2014,Transport  Consult,Rail Commercial & Programme Office,PARSONS BRINCKERHOFF LTD,2000018860,4572.14,#,NE4 7YQ,
Department for Transport,Department for Transport,11/12/2014,Transport  Consult,Rail Commercial & Programme Office,PARSONS BRINCKERHOFF LTD,2000018860,-4572.14,#,NE4 7YQ,
Department for Transport,Department for Transport,11/12/2014,Transport  Consult,Rail Commercial & Programme Office,PARSONS BRINCKERHOFF LTD,2000018860,-7415.97,#,NE4 7YQ,
Department for Transport,Department for Transport,11/12/2014,Transport  Consult,Rail Commercial & Programme Office,PARSONS BRINCKERHOFF LTD,2000018860,-14234.83,#,NE4 7YQ,
Department for Transport,Department for Transport,11/12/2014,Travel Expenses UK,Rail Accident Investigation Branch,REDFERN TRAVEL LTD,2000018865,6649.17,Redfern - Nov 14,BD1 3AZ,
Department for Transport,Department for Transport,12/12/2014,Agency Staff Costs,Air Accident Investigation Branch,HAYS PERSONNEL SERVICE LTD,2000018897,739.68,#,KT3 4JQ,
Department for Transport,Department for Transport,12/12/2014,Agency Staff Costs,Group Human Resource,CAPITA BUSINESS SERVICES LTD,2000018898,2842.5,#,DL1 9HN,
Department for Transport,Department for Transport,12/12/2014,Agency Staff Costs,Major Projects & Growth,SPRING TECHNOLOGY LTD  ALSO T/A,2000018916,1320,#,B37 7YE,
Department for Transport,Department for Transport,12/12/2014,Agency Staff Costs,Rail Commercial & Programme Office,CAPITA BUSINESS SERVICES LTD,2000018898,942.14,#,DL1 9HN,
Department for Transport,Department for Transport,12/12/2014,Agency Staff Costs,Rail Commercial & Programme Office,CAPITA BUSINESS SERVICES LTD,2000018898,3297.12,#,DL1 9HN,
Department for Transport,Department for Transport,12/12/2014,Agency Staff Costs,Rail Commercial & Programme Office,CAPITA BUSINESS SERVICES LTD,2000018898,-2297.66,#,DL1 9HN,
Department for Transport,Department for Transport,12/12/2014,Agency Staff Costs,Rail Commercial & Programme Office,CAPITA BUSINESS SERVICES LTD,2000018898,5187.8,#,DL1 9HN,
Department for Transport,Department for Transport,12/12/2014,Agency Staff Costs,Rail Franchising,CAPITA BUSINESS SERVICES LTD,2000018898,12776.59,#,DL1 9HN,
Department for Transport,Department for Transport,12/12/2014,Agency Staff Costs,Rail Commercial & Programme Office,MICHAEL PAGE INTERNATIONAL,2000018914,723.9,#,SL1 3SA,
Department for Transport,Department for Transport,12/12/2014,Agency Staff Costs,Highspeed 2,SPRING TECHNOLOGY LTD  ALSO T/A,2000018916,4650,#,B37 7YE,
Department for Transport,Department for Transport,12/12/2014,Agency Staff Costs,Highspeed 2,SPRING TECHNOLOGY LTD  ALSO T/A,2000018916,4200,#,B37 7YE,
Department for Transport,Department for Transport,12/12/2014,Agents Fees,Group Communication,GROUPM UK LIMITED,2000018924,28.32,#,WC1X 8RX,
Department for Transport,Department for Transport,12/12/2014,Building Service Cha,Group Procurement & Estate,Amey Community Ltd,2000018956,211880.88,#,OX4 4DQ,
Department for Transport,Department for Transport,12/12/2014,Cap Grt Loc Auth,"Energy, Technology and International",Caplor Energy,2000018947,999.67,Caplor Energy Aug 2014 #999.67,HR1 4PT,
Department for Transport,Department for Transport,12/12/2014,Cap Grt Pri Sec-Cos.,"Energy, Technology and International",BMW UK Ltd,2000018944,625000,"""PiCG BMW November 2014 #625,000""",RG12 8TA,
Department for Transport,Department for Transport,12/12/2014,Cap Grt Pri Sec-Cos.,"Energy, Technology and International",British Gas Ltd,2000018943,811000,British Gas Aug 2014 #811000,S60 1BY,
Department for Transport,Department for Transport,12/12/2014,Cap Grt Pri Sec-Cos.,"Energy, Technology and International",EV Charging Centre,2000018945,2000,EVCC Aug 2014 #2000,NG2 7RQ,
Department for Transport,Department for Transport,12/12/2014,Cap Grt Pri Sec-Cos.,"Energy, Technology and International",Franklin Energy Ltd,2000018951,2999,FRANKLIN Aug 2014 #2999,L23 2SH,
Department for Transport,Department for Transport,12/12/2014,Cap Grt Pri Sec-Cos.,"Energy, Technology and International",Green Deal Contracts Ltd,2000018949,11000,GDC Ltd Aug 2014 #11000,DN11 8RY,
Department for Transport,Department for Transport,12/12/2014,Cap Grt Pri Sec-Cos.,"Energy, Technology and International",Green Power NI,2000018940,7000,GREEN POWER NI AUG 2014 #7000,BT11 8BU,
Department for Transport,Department for Transport,12/12/2014,Cap Grt Pri Sec-Cos.,"Energy, Technology and International",Porsche,2000018946,110000,"""PiCG Porsche November Claim 2014 110,000""",RG31 7SE,
Department for Transport,Department for Transport,12/12/2014,Cap Grt Pri Sec-Cos.,"Energy, Technology and International",RENAULT,2000018921,421287.44,PiCG Renault November 2014 #421287.44,WD3 9YS,
Department for Transport,Department for Transport,12/12/2014,Cap Grt Pri Sec-Cos.,"Energy, Technology and International",Spectrum Electrical Group,2000018950,25991.47,Spectrum Aug 2014 #25991.47,BA20 2TJ,
Department for Transport,Department for Transport,12/12/2014,Cap Grt Pri Sec-Cos.,"Energy, Technology and International",Tesla Motors Limited GBP,2000018952,140000,"""PiCG TESLA November 2014 #140,000""",UB7 8JD,
Department for Transport,Department for Transport,12/12/2014,Cap Grt Pri Sec-Cos.,"Energy, Technology and International",TOYOTA (GB) PLC,2000018927,75000,PiCG Toyota November 2014 #75000,KT18 5XS,
Department for Transport,Department for Transport,12/12/2014,Cap Grt Pri Sec-Cos.,"Energy, Technology and International",VAUXHALL MOTORS,2000018922,355000,PiCG Vauxhall Nov 2014 #355000,LU1 3YT,
Department for Transport,Department for Transport,12/12/2014,Cap Grt Pri Sec-Cos.,"Energy, Technology and International",Volkswagen UK,2000018948,84817.5,"""PiCG VW November 2014 #84,817.50""",MK14 5AN,
Department for Transport,Department for Transport,12/12/2014,Cap Grt Pri Sec-Cos.,"Energy, Technology and International",Volvo Car UK Limited,2000018942,25000,PiCG Volvo November 2014 #25000,SL6 4FJ,
Department for Transport,Department for Transport,12/12/2014,Cars Maintenance,Motoring Services,Clifford Thames (Holdings) Limited,2000018937,488.9,#,CM2 5TH,
Department for Transport,Department for Transport,12/12/2014,Cars Maintenance,Motoring Services,Goodyear Dunlop Tyres UK Ltd,2000018933,726.72,#,B24 9HY,
Department for Transport,Department for Transport,12/12/2014,Cars Maintenance,Motoring Services,Goodyear Dunlop Tyres UK Ltd,2000018933,480.36,#,B24 9HY,
Department for Transport,Department for Transport,12/12/2014,Cars Maintenance,Motoring Services,Inchcape Retail Ltd,2000018934,825.03,#,NG8 9LN,
Department for Transport,Department for Transport,12/12/2014,Further Educ Cost,Group Finance,Kaplan Financial,2000018906,277.9,#,NE1 3PA,
Department for Transport,Department for Transport,12/12/2014,Grt Aid to NDPBs,"Policy, Legislation and Funding",High Speed Two (HS2) Ltd,2000018972,10000000,#,E14 5AB,
Department for Transport,Department for Transport,12/12/2014,Hospitality,Group Communication,EUREST,2000018913,787.02,#,B45 9PZ,
Department for Transport,Department for Transport,12/12/2014,Legal Consultancy,Rail Franchising,BEVAN BRITTAN,2000018900,37201.2,#,BS2 0HQ,
Department for Transport,Department for Transport,12/12/2014,Legal Consultancy,Strategic Roads & Smart Ticketing,DLA PIPER UK LLP,2000018904,4404.01,#,M2 3DL,
Department for Transport,Department for Transport,12/12/2014,Legal Consultancy,"Policy, Legislation and Funding",Thirty Nine Essex Street,2000018929,30720,#,WC2R 3AT,
Department for Transport,Department for Transport,12/12/2014,Legal Consultancy,"Policy, Legislation and Funding",Thirty Nine Essex Street,2000018929,35616,#,WC2R 3AT,
Department for Transport,Department for Transport,12/12/2014,Legal Consultancy,"Policy, Legislation and Funding",xxxxxx,2000018911,48168,#,xxxxxx,
Department for Transport,Department for Transport,12/12/2014,Non Stock Machine Co,Motoring Services,XMA LIMITED GOSC,2000018931,1106.16,A33K350 Konica Minolta Bizhub C224e /C28,NG11 7EP,
Department for Transport,Department for Transport,12/12/2014,Non Stock Machine Co,Motoring Services,XMA LIMITED GOSC,2000018931,3689.18,#,NG11 7EP,
Department for Transport,Department for Transport,12/12/2014,Office Fur & Equip,Maritime,CAPITA SYMONDS LTD,2000018902,1440,#,DL1 9HN,
Department for Transport,Department for Transport,12/12/2014,Other Professional F,"Energy, Technology and International",RICARDO - AEA LIMITED,2000018928,4500,#,OX11 0PQ,
Department for Transport,Department for Transport,12/12/2014,Other Professional F,"Energy, Technology and International",RICARDO - AEA LIMITED,2000018928,18372,#,OX11 0PQ,
Department for Transport,Department for Transport,12/12/2014,Publications for Res,Group Communication,CREATIVE CHOICE CIC,2000018920,8230,#,SW1H 0DJ,
Department for Transport,Department for Transport,12/12/2014,Publicity,Group Communication,GROUPM UK LIMITED,2000018924,33979.55,#,WC1X 8RX,
Department for Transport,Department for Transport,12/12/2014,Recruitment,Group Human Resource,HM REVENUE & CUSTOMS,2000018938,2987.08,#,BN12 4XH,
Department for Transport,Department for Transport,12/12/2014,Recruitment,Group Human Resource,HM REVENUE & CUSTOMS,2000018938,1980.97,#,BN12 4XH,
Department for Transport,Department for Transport,12/12/2014,Recruitment,Group Human Resource,HM REVENUE & CUSTOMS,2000018938,1492.71,#,BN12 4XH,
Department for Transport,Department for Transport,12/12/2014,Recruitment,Group Human Resource,HM REVENUE & CUSTOMS,2000018938,2315.76,#,BN12 4XH,
Department for Transport,Department for Transport,12/12/2014,Recruitment,Group Human Resource,HM REVENUE & CUSTOMS,2000018938,1983.36,#,BN12 4XH,
Department for Transport,Department for Transport,12/12/2014,Research,Major Projects & Growth,ATKINS LTD (TRANSPORT PLANNING),2000018899,7072,#,WR5 1TX,
Department for Transport,Department for Transport,12/12/2014,Room Hire,Aviation,Park Hotel Heathrow Ltd,2000018954,16731.5,#,UB7 0DU,
Department for Transport,Department for Transport,12/12/2014,Storage & Distributi,General Counsel's Office,IRON MOUNTAIN,2000018908,2197.49,#,EH54 7DF,
Department for Transport,Department for Transport,12/12/2014,Support Services,Air Accident Investigation Branch,QinetiQ Processing Centre,2000018910,12000,#,GU14 0LX,
Department for Transport,Department for Transport,12/12/2014,Support Services,Air Accident Investigation Branch,QinetiQ Processing Centre,2000018910,2550,#,GU14 0LX,
Department for Transport,Department for Transport,12/12/2014,Support Services,Air Accident Investigation Branch,QinetiQ Processing Centre,2000018910,10000,#,GU14 0LX,
Department for Transport,Department for Transport,12/12/2014,Support Services,Aviation,Civil Aviation Authority,2000018903,105916.57,#,RH6 0YR,
Department for Transport,Department for Transport,12/12/2014,Support Services,Group Finance,DD ACCRAILWAY PENS TRUSTEE,2000018915,3392.12,#,DL3 6XR,
Department for Transport,Department for Transport,12/12/2014,Training,Air Accident Investigation Branch,HELI AIR LIMITED,2000018926,1075,#,CV35 9EU,
Department for Transport,Department for Transport,12/12/2014,Training,Air Accident Investigation Branch,HELI AIR LIMITED,2000018926,687.5,#,CV35 9EU,
Department for Transport,Department for Transport,12/12/2014,Training,Group Finance,Kaplan Financial,2000018906,2330.21,#,NE1 3PA,
Department for Transport,Department for Transport,12/12/2014,Transport  Consult,Major Projects & Growth,PARSONS BRINCKERHOFF LTD,2000018909,710.5,#,NE4 7YQ,
Department for Transport,Department for Transport,12/12/2014,Transport  Consult,Rail Franchising,ATKINS LTD (TRANSPORT PLANNING),2000018899,59515.26,#,WR5 1TX,
Department for Transport,Department for Transport,12/12/2014,Transport  Consult,Rail Franchising,ERNST & YOUNG LLP,2000018905,20744.48,#,SE1 2AF,
Department for Transport,Department for Transport,12/12/2014,Transport  Consult,Rail Franchising,ERNST & YOUNG LLP,2000018905,1000.96,#,SE1 2AF,
Department for Transport,Department for Transport,12/12/2014,Transport  Consult,Rail Franchising,PARSONS BRINCKERHOFF LTD,2000018909,22866.66,#,NE4 7YQ,
Department for Transport,Department for Transport,12/12/2014,Treasury Solicitors,Aviation,TREASURY SOLICITOR,2000018936,864.82,#,WC2B 4TS,
Department for Transport,Department for Transport,12/12/2014,Uniforms,Motoring Services,BURLINGTON UNIFORMS LTD,2000018896,15339.01,#,EN3 7PX,
Department for Transport,Department for Transport,15/12/2014,Agency Staff Costs,Major Projects & Growth,Capita Resourcing Limited,2000019173,2853,#,EC4A 1EN,
Department for Transport,Department for Transport,15/12/2014,Agency Staff Costs,Rail Commercial & Programme Office,CAPITA BUSINESS SERVICES LTD,2000019152,1978.27,#,DL1 9HN,
Department for Transport,Department for Transport,15/12/2014,Agency Staff Costs,Rail Commercial & Programme Office,CAPITA BUSINESS SERVICES LTD,2000019152,4284.36,#,DL1 9HN,
Department for Transport,Department for Transport,15/12/2014,Agency Staff Costs,Rail Commercial & Programme Office,CAPITA BUSINESS SERVICES LTD,2000019152,5230.32,#,DL1 9HN,
Department for Transport,Department for Transport,15/12/2014,Agency Staff Costs,Rail Commercial & Programme Office,CAPITA BUSINESS SERVICES LTD,2000019152,2615.16,#,DL1 9HN,
Department for Transport,Department for Transport,15/12/2014,Agency Staff Costs,Rail Commercial & Programme Office,MORGAN HUNT UK LTD,2000019163,4311.38,#,EC4M 7EG,
Department for Transport,Department for Transport,15/12/2014,Agency Staff Costs,Group Finance,CAPITA BUSINESS SERVICES LTD,2000019152,2680.14,#,DL1 9HN,
Department for Transport,Department for Transport,15/12/2014,Agency Staff Costs,Group Finance,CAPITA BUSINESS SERVICES LTD,2000019152,8040.42,#,DL1 9HN,
Department for Transport,Department for Transport,15/12/2014,Agency Staff Costs,Group Finance,CAPITA BUSINESS SERVICES LTD,2000019152,1835.76,#,DL1 9HN,
Department for Transport,Department for Transport,15/12/2014,Agency Staff Costs,Group Finance,CAPITA BUSINESS SERVICES LTD,2000019152,2680.14,#,DL1 9HN,
Department for Transport,Department for Transport,15/12/2014,Agency Staff Costs,Rail Commercial & Programme Office,CAPITA BUSINESS SERVICES LTD,100023960,-2872.08,#,DL1 9HN,
Department for Transport,Department for Transport,15/12/2014,Agency Staff Costs,Rail Commercial & Programme Office,CAPITA BUSINESS SERVICES LTD,100023960,2872.08,#,DL1 9HN,
Department for Transport,Department for Transport,15/12/2014,Agency Staff Costs,Rail Commercial & Programme Office,CAPITA BUSINESS SERVICES LTD,2000019152,2310.34,#,DL1 9HN,
Department for Transport,Department for Transport,15/12/2014,Agency Staff Costs,Rail Franchising,CAPITA BUSINESS SERVICES LTD,2000019152,8900.28,#,DL1 9HN,
Department for Transport,Department for Transport,15/12/2014,Agency Staff Costs,Rail Strategy & Funding,CAPITA BUSINESS SERVICES LTD,2000019152,4833.9,#,DL1 9HN,
Department for Transport,Department for Transport,15/12/2014,Agency Staff Costs,Rail Strategy & Funding,CAPITA BUSINESS SERVICES LTD,2000019152,5286.42,#,DL1 9HN,
Department for Transport,Department for Transport,15/12/2014,Agency Staff Costs,Rail Strategy & Funding,CAPITA BUSINESS SERVICES LTD,2000019152,4510.62,#,DL1 9HN,
Department for Transport,Department for Transport,15/12/2014,Agency Staff Costs,Group Finance,CAPITA BUSINESS SERVICES LTD,2000019152,3284.1,#,DL1 9HN,
Department for Transport,Department for Transport,15/12/2014,Agency Staff Costs,Rail Strategy & Funding,CAPITA BUSINESS SERVICES LTD,2000019152,4510.62,#,DL1 9HN,
Department for Transport,Department for Transport,15/12/2014,Agents Fees,Group Communication,GROUPM UK LIMITED,2000019178,9.49,#,WC1X 8RX,
Department for Transport,Department for Transport,15/12/2014,Cap Grt Loc Auth,Local,North Somerset Council,2000019146,631131.87,Final Grant Payment for Local Major Scheme,BS23 1UJ,
Department for Transport,Department for Transport,15/12/2014,Cap Grt Loc Auth,Local,Reading Borough Council,2000019147,90411,Final Grant Payment for Local Major Scheme,RG1 2LU,
Department for Transport,Department for Transport,15/12/2014,Cap Grt Loc Auth,Local,SURREY COUNTY COUNCIL,2000019148,320687.99,Final Grant Payment for Local Major Scheme,KT1 2DN,
Department for Transport,Department for Transport,15/12/2014,Car Hire and Leasing,Air Accident Investigation Branch,AUTOMOTIVE LEASING,2000019177,612.4,#,BN16 3HQ,
Department for Transport,Department for Transport,15/12/2014,Car Hire and Leasing,Air Accident Investigation Branch,Victoria Gosden Travel Ltd,2000019183,522,#,GU14 8NP,
Department for Transport,Department for Transport,15/12/2014,Cars Maintenance,Motoring Services,Bodyshop Repair Network Ltd,2000019182,514.67,#,TN16 3BW,
Department for Transport,Department for Transport,15/12/2014,Conferences / Semina,"Motoring, Freight & London",Govtoday Limited,2000019185,900,#,M50 2NT,
Department for Transport,Department for Transport,15/12/2014,CurrGrt Las in AEF/A,Local,PLYMOUTH CITYBUS LTD,2000019102,305663.6,Plymouth Citybus Ltd,PL3 4AA,
Department for Transport,Department for Transport,15/12/2014,Financial Consultanc,Rail Franchising,Pricewaterhouse Coopers LLP,2000019166,46194,#,SE1 2RD,
Department for Transport,Department for Transport,15/12/2014,Further Educ Cost,Group Finance,Kaplan Financial,2000019161,360,#,NE1 3PA,
Department for Transport,Department for Transport,15/12/2014,Legal Consultancy,Group Human Resource,TREASURY SOLICITOR,2000019149,18328.14,#,WC2B 4TS,
Department for Transport,Department for Transport,15/12/2014,Live Running Non IBM,Motoring Services,Vodafone Ltd T/A Demon Broadband,2000019160,2310.36,Rental charges 01.12.2014-31.12.2014,G2 5BD,
Department for Transport,Department for Transport,15/12/2014,Maintenance Other,"Motoring, Freight & London",TDC SYSTEMS LIMITED,2000019169,1315,#,BS24 9BP,
Department for Transport,Department for Transport,15/12/2014,Maintenance Other,"Motoring, Freight & London",TDC SYSTEMS LIMITED,2000019169,480,#,BS24 9BP,
Department for Transport,Department for Transport,15/12/2014,Maintenance Other,"Motoring, Freight & London",TDC SYSTEMS LIMITED,2000019169,519.6,#,BS24 9BP,
Department for Transport,Department for Transport,15/12/2014,Maintenance Other,"Motoring, Freight & London",TDC SYSTEMS LIMITED,2000019169,1068,#,BS24 9BP,
Department for Transport,Department for Transport,15/12/2014,Maintenance Other,"Motoring, Freight & London",TDC SYSTEMS LIMITED,2000019169,7258,#,BS24 9BP,
Department for Transport,Department for Transport,15/12/2014,Maintenance Other,"Motoring, Freight & London",TDC SYSTEMS LIMITED,2000019169,7060,#,BS24 9BP,
Department for Transport,Department for Transport,15/12/2014,Maintenance Other,"Motoring, Freight & London",TDC SYSTEMS LIMITED,2000019169,440,#,BS24 9BP,
Department for Transport,Department for Transport,15/12/2014,Maintenance Other,"Motoring, Freight & London",TDC SYSTEMS LIMITED,2000019169,720,#,BS24 9BP,
Department for Transport,Department for Transport,15/12/2014,Maintenance Other,"Motoring, Freight & London",TDC SYSTEMS LIMITED,2000019169,7215,#,BS24 9BP,
Department for Transport,Department for Transport,15/12/2014,Maintenance Other,Motoring Services,ARVAL,2000019153,3291.87,#,SN5 6PE,
Department for Transport,Department for Transport,15/12/2014,Maintenance Other,Motoring Services,ARVAL,2000019153,532.43,#,SN5 6PE,
Department for Transport,Department for Transport,15/12/2014,Medical Advisory Ser,Group Human Resource,DFT ONE TIME VENDOR,2000019145,1700,Reasonable Adjustment Diagnostic Assessment,SW1P 4DR,
Department for Transport,Department for Transport,15/12/2014,Prog&ProjMgmt Consul,Group Procurement & Estate,MACE Limited,2000019186,12631.58,#,EC2M 6X,
Department for Transport,Department for Transport,15/12/2014,Prog&ProjMgmt Consul,Major Projects & Growth,EAST COAST MAIN LINE,2000019175,34831.51,#,YO1 6DH,
Department for Transport,Department for Transport,15/12/2014,Prog&ProjMgmt Consul,Project Sponsorship ,PARSONS BRINCKERHOFF LTD,2000019165,5938.38,#,NE4 7YQ,
Department for Transport,Department for Transport,15/12/2014,Publicity,Group Communication,GROUPM UK LIMITED,2000019178,23201.18,#,WC1X 8RX,
Department for Transport,Department for Transport,15/12/2014,Publicity,Group Communication,GROUPM UK LIMITED,2000019178,11399.12,#,WC1X 8RX,
Department for Transport,Department for Transport,15/12/2014,Recruitment,Group Human Resource,HM REVENUE & CUSTOMS,2000019150,3577.76,#,BN12 4XH,
Department for Transport,Department for Transport,15/12/2014,Recruitment,Group Human Resource,HM REVENUE & CUSTOMS,2000019150,2766.76,#,BN12 4XH,
Department for Transport,Department for Transport,15/12/2014,Recruitment,Group Human Resource,HM REVENUE & CUSTOMS,2000019150,3530.18,#,BN12 4XH,
Department for Transport,Department for Transport,15/12/2014,Research,Analysis & Strategy,Behavioural Insights Ltd,2000019184,34544,#,EC4A 1DE,
Department for Transport,Department for Transport,15/12/2014,Subsidies Private Se,Local,Aintree Coachline,2000019138,27196.25,AINTREE COACHLINE,CH66 1NH,
Department for Transport,Department for Transport,15/12/2014,Subsidies Private Se,Local,ALINE COACHES,2000019043,1094.62,A LINE COACHES,NE10 0UW,
Department for Transport,Department for Transport,15/12/2014,Subsidies Private Se,Local,ANGLIAN BUS LTD,2000019044,34448.92,ANGLIAN BUS LTD,NR34 7TH,
Department for Transport,Department for Transport,15/12/2014,Subsidies Private Se,Local,APPLEGATES SUPREME COACHES,2000019045,2110.04,APPLEGATES SUPREME COACHES,GL13 9PL,
Department for Transport,Department for Transport,15/12/2014,Subsidies Private Se,Local,Arriva Derby Ltd,2000019046,420069.67,ARRIVA DERBY LTD,LE4 8PH,
Department for Transport,Department for Transport,15/12/2014,Subsidies Private Se,Local,Arriva The Shires,2000019047,1079939.16,ARRIVA THE SHIRES,LU4 8DS,
Department for Transport,Department for Transport,15/12/2014,Subsidies Private Se,Local,ASTONS COACHES LIMITED,2000019048,5505.59,ASTONS COACHES LIMITED,WR5 3HR,
Department for Transport,Department for Transport,15/12/2014,Subsidies Private Se,Local,AVON COACHES,2000019050,68790.12,AVON COACHES,CH43 3DT,
Department for Transport,Department for Transport,15/12/2014,Subsidies Private Se,Local,BEAVER BUS,2000019053,5955.58,BEAVER BUS LTD,LE18 4UQ,
Department for Transport,Department for Transport,15/12/2014,Subsidies Private Se,Local,BLUEWORKS PRIVATE HIRE,2000019054,851.05,BLUEWORKS PRIVATE HIRE,LA12 8PX,
Department for Transport,Department for Transport,15/12/2014,Subsidies Private Se,Local,C BANNISTER & SON,2000019055,7194.57,C Bannister & Son (t/a Isle Coaches),DN9 1RL,
Department for Transport,Department for Transport,15/12/2014,Subsidies Private Se,Local,Centrebus Holdings Ltd,2000019130,37631.5,Centrebus Holdings Ltd,LE4 8PH,
Department for Transport,Department for Transport,15/12/2014,Subsidies Private Se,Local,CENTREBUS LTD,2000019058,94518.25,Centrebus Ltd,LE4 9HU,
Department for Transport,Department for Transport,15/12/2014,Subsidies Private Se,Local,Charlton Services,2000019059,2003.12,Charlton Services,OX5 2UQ,
Department for Transport,Department for Transport,15/12/2014,Subsidies Private Se,Local,CHELTENHAM & DIST TRACTION CO,2000019060,106551.04,CHELTENHAM & DISTRICT TRACTION CO LTD,SK3 0DU,
Department for Transport,Department for Transport,15/12/2014,Subsidies Private Se,Local,CHESTER'S COACHES LTD,2000019061,5970.61,CHESTER'S COACHES LTD,M28 5LX,
Department for Transport,Department for Transport,15/12/2014,Subsidies Private Se,Local,CLARIBEL COACHES LTD,2000019062,36709.57,CLARIBEL COACHES LTD,B33 0JT,
Department for Transport,Department for Transport,15/12/2014,Subsidies Private Se,Local,COMMUNITY TRANSPORT SOUTH WILTSHIRE,2000019063,618.73,Community Transport South Wiltshire,SP2 7NP,
Department for Transport,Department for Transport,15/12/2014,Subsidies Private Se,Local,Cornwall Busways Ltd,2000019144,6461.03,Cornwall Busways Ltd,PL26 8UG,
Department for Transport,Department for Transport,15/12/2014,Subsidies Private Se,Local,D & FD ATKINSON T/A,2000019049,739.38,D & FD ATKINSON t/a ATKINSON COACHES,HG4 3SH,
Department for Transport,Department for Transport,15/12/2014,Subsidies Private Se,Local,xxxxxx,2000019064,532.35,#,xxxxxx,
Department for Transport,Department for Transport,15/12/2014,Subsidies Private Se,Local,DELAINE BUSES LTD,2000019065,36675.38,DELAINE BUSES LIMITED,PE10 9LE,
Department for Transport,Department for Transport,15/12/2014,Subsidies Private Se,Local,DIAL-A-BUS,2000019066,14446.72,DIAL-A-BUS,TQ4 7BL,
Department for Transport,Department for Transport,15/12/2014,Subsidies Private Se,Local,DRM (BROMYARD) LTD,2000019068,15435.8,DRM (BROMYARD) LTD,HR7 4NT,
Department for Transport,Department for Transport,15/12/2014,Subsidies Private Se,Local,ENSIGN BUS COMPANY LTD,2000019069,81667.51,Ensign Bus Co Ltd,RM15 4YF,
Department for Transport,Department for Transport,15/12/2014,Subsidies Private Se,Local,Eurotaxis Ltd,2000019071,4681.38,EUROTAXIS LTD,BS37 5NH,
Department for Transport,Department for Transport,15/12/2014,Subsidies Private Se,Local,FAIRBROTHERS LTD,2000019072,6581.94,FAIRBROTHERS LTD,WA2 9UY,
Department for Transport,Department for Transport,15/12/2014,Subsidies Private Se,Local,FIRST LEICESTER BUSES LTD,2000019074,225211.83,First Leicester,LE4 0DA,
Department for Transport,Department for Transport,15/12/2014,Subsidies Private Se,Local,FIRST PROVINCIAL,2000019073,269691.52,FIRST PROVINCIAL,SO14 0JW,
Department for Transport,Department for Transport,15/12/2014,Subsidies Private Se,Local,FORD COACHES,2000019076,2442.95,Fords Coaches Ltd,CM3 6BZ,
Department for Transport,Department for Transport,15/12/2014,Subsidies Private Se,Local,FRANK POPPLETON & CO,2000019077,3237.42,FRANK POPPLETON & CO,WF8 4PJ,
Department for Transport,Department for Transport,15/12/2014,Subsidies Private Se,Local,FREEDOM TRAVEL NORTH LTD,2000019135,2464.88,Smiths of Marple,SK23 0PJ,
Department for Transport,Department for Transport,15/12/2014,Subsidies Private Se,Local,FROME MINIBUSES LTD,2000019078,543.94,FROME MINIBUSES LTD,BA11 4RP,
Department for Transport,Department for Transport,15/12/2014,Subsidies Private Se,Local,GO RIDE COMMUNITY,2000019137,7623.21,Go Ride Community Interest Company,OX14 3UY,
Department for Transport,Department for Transport,15/12/2014,Subsidies Private Se,Local,GRAYSCROFT BUS SERVICE LTD,2000019080,3608.14,GRAYSCROFT BUS SERVICE LTD,LN12 2AF,
Department for Transport,Department for Transport,15/12/2014,Subsidies Private Se,Local,Green Triangle Buses Ltd,2000019081,54086.26,GREEN TRIANGLE BUSES LTD,ST14 7JD,
Department for Transport,Department for Transport,15/12/2014,Subsidies Private Se,Local,HATCH GREEN COACHES,2000019131,786.78,HATCH GREEN COACHES,TA3 6TN,
Department for Transport,Department for Transport,15/12/2014,Subsidies Private Se,Local,Hawkes Tours Derby Ltd,2000019142,2937.58,Hawkes Tours (Derby) Ltd,DE1 3EE,
Department for Transport,Department for Transport,15/12/2014,Subsidies Private Se,Local,HOLLAND COACHES,2000019082,938.72,HOLLANDS COACHES,DY11 7RA,
Department for Transport,Department for Transport,15/12/2014,Subsidies Private Se,Local,HUNTER BROTHERS (TANTOBIE) LTD,2000019083,1971.05,Hunter Bros (Tantobie) Ltd,DH9 9TG,
Department for Transport,Department for Transport,15/12/2014,Subsidies Private Se,Local,HUTCHINSONS,2000019084,1226.23,Hutchinsons,YO61 3EF,
Department for Transport,Department for Transport,15/12/2014,Subsidies Private Se,Local,J.W Lodge & Sons Ltd,2000019140,1172.4,J.W  Lodge & Son's Ltd T/A Lodge Coaches,CM1 4QR,
Department for Transport,Department for Transport,15/12/2014,Subsidies Private Se,Local,JIM STONES COACHES,2000019085,13476.49,Jim Stones Coaches,WA3 5LH,
Department for Transport,Department for Transport,15/12/2014,Subsidies Private Se,Local,JOHN RIGBY TRAVEL & TRANSPORT,2000019086,667.87,JOHN RIGBY TRAVEL,WF17 6JL,
Department for Transport,Department for Transport,15/12/2014,Subsidies Private Se,Local,JOHNSONS HENLEY,2000019087,30399.59,Johnsons Coach & Bus Travel,B95 5QS,
Department for Transport,Department for Transport,15/12/2014,Subsidies Private Se,Local,K B Coaches,2000019088,2828.93,K B Coaches,GL10 3AJ,
Department for Transport,Department for Transport,15/12/2014,Subsidies Private Se,Local,Ken Miller Buses,2000019089,1712.36,KEN MILLER BUSES,B77 3NE,
Department for Transport,Department for Transport,15/12/2014,Subsidies Private Se,Local,Konectbus,2000019091,100546.13,KONECTBUS LTD,NR19 1SY,
Department for Transport,Department for Transport,15/12/2014,Subsidies Private Se,Local,LEVEN VALLEY COACHES,2000019092,22306.11,Leven Valley Coaches,TS9 6PD,
Department for Transport,Department for Transport,15/12/2014,Subsidies Private Se,Local,MACPHERSON COACHES LTD,2000019093,939.95,MACPHERSON COACHES LTD,DE12 7PL,
Department for Transport,Department for Transport,15/12/2014,Subsidies Private Se,Local,MARK BLAND TRAVEL LTD,2000019094,3286.24,MARK BLAND TRAVEL,PE9 4JN,
Department for Transport,Department for Transport,15/12/2014,Subsidies Private Se,Local,MULLANY'S COACHES (UK) LTD,2000019096,15568.15,MULLANY'S COACHES (UK) LIMITED,WD25 0GB,
Department for Transport,Department for Transport,15/12/2014,Subsidies Private Se,Local,MULLEYS MOTORWAYS LTD,2000019129,17037.25,Mulleys Motorways Ltd,IP31 2JB,
Department for Transport,Department for Transport,15/12/2014,Subsidies Private Se,Local,N B M HIRE LTD,2000019097,2321.27,NBM HIRE LTD,CA11 7JW,
Department for Transport,Department for Transport,15/12/2014,Subsidies Private Se,Local,NIBSBUSES LTD,2000019100,19369.46,Nibsbuses Ltd,SS11 8BZ,
Department for Transport,Department for Transport,15/12/2014,Subsidies Private Se,Local,Nottingham Minibuses & Coaches,2000019133,5073.58,Nottingham Minibuses & Coaches Ltd,NG4 1AG,
Department for Transport,Department for Transport,15/12/2014,Subsidies Private Se,Local,NSL SERVICES LTD,2000019099,10500.63,NSL SERVICES LTD,W5 1YY,
Department for Transport,Department for Transport,15/12/2014,Subsidies Private Se,Local,PC COACHES OF LINCOLN LTD,2000019101,14637.41,P C COACHES OF LINCOLN LTD,LN3 4NL,
Department for Transport,Department for Transport,15/12/2014,Subsidies Private Se,Local,R&S Waterson,2000019143,6428.59,R&S Waterson Coaches,WF9 1AZ,
Department for Transport,Department for Transport,15/12/2014,Subsidies Private Se,Local,REAYS COACHES LTD,2000019103,7277.92,REAYS COACHES LTD,CA7 9NE,
Department for Transport,Department for Transport,15/12/2014,Subsidies Private Se,Local,RICHARDSON TRAVEL LTD,2000019105,5201.15,RICHARDSON TRAVEL LTD,GU29 9RA,
Department for Transport,Department for Transport,15/12/2014,Subsidies Private Se,Local,RIDLERS LTD,2000019106,2345.54,RIDLERS LTD,TA22 9EJ,
Department for Transport,Department for Transport,15/12/2014,Subsidies Private Se,Local,ROAD RUNNER BUS AND COACH,2000019139,12186.05,Roadrunner Bus and Coach,YO26 8BE,
Department for Transport,Department for Transport,15/12/2014,Subsidies Private Se,Local,SANDERS COACHES LIMITED,2000019107,81157.8,SANDERS COACHES LTD,NR25 6ER,
Department for Transport,Department for Transport,15/12/2014,Subsidies Private Se,Local,SCARLET BAND BUS & COACH LTD,2000019108,14194.07,Scarlet Band Bus & Coach Ltd,DL17 9LA,
Department for Transport,Department for Transport,15/12/2014,Subsidies Private Se,Local,SHARPES OF NOTTINGHAM,2000019109,3507.46,SHARPE'S OF NOTTINGHAM LTD,NG12 3BE,
Department for Transport,Department for Transport,15/12/2014,Subsidies Private Se,Local,SILVERLINE LANDFLIGHT LTD,2000019110,1117.73,SILVERLINE LANDFLIGHT LTD,B91 2JY,
Department for Transport,Department for Transport,15/12/2014,Subsidies Private Se,Local,SOUTH YORKSHIRE RIDER LTD,2000019127,9861,SOUTH YORKSHIRE RIDER LTD,S75 1HT,
Department for Transport,Department for Transport,15/12/2014,Subsidies Private Se,Local,STAGECOACH BUSWAYS,2000019112,866475.74,Stagecoach Busways,SK3 0DU,
Department for Transport,Department for Transport,15/12/2014,Subsidies Private Se,Local,STAGECOACH IN THE FENS,2000019057,146029.86,Stagecoach in the Fens - Bio Diesel,CB4 0DN,
Department for Transport,Department for Transport,15/12/2014,Subsidies Private Se,Local,Stagecoach North East,2000019113,62934.36,STAGECOACH HARTLEPOOL,SR5 1AQ,
Department for Transport,Department for Transport,15/12/2014,Subsidies Private Se,Local,Stagecoach North East,2000019113,181050.45,Stagecoach Transit,SR5 1AQ,
Department for Transport,Department for Transport,15/12/2014,Subsidies Private Se,Local,STAR TRAVEL SERVICES,2000019114,2901.82,Star Travel Services,HP21 7RR,
Department for Transport,Department for Transport,15/12/2014,Subsidies Private Se,Local,STEPHENSONS COACHES LTD,2000019115,47325.94,Stephensons Coaches,SS4 1BS,
Department for Transport,Department for Transport,15/12/2014,Subsidies Private Se,Local,SWANAGE TAXIS LTD,2000019116,987.03,SWANAGE TAXIS LTD,BH19 3EB,
Department for Transport,Department for Transport,15/12/2014,Subsidies Private Se,Local,THE GREEN BUS COMPANY LIMITED,2000019132,26808.02,THE GREEN BUS COMPANY LTD,B18 5ST,
Department for Transport,Department for Transport,15/12/2014,Subsidies Private Se,Local,TLC TRAVEL LTD,2000019117,1576.32,TLC TRAVEL LTD,BD4 7EZ,
Department for Transport,Department for Transport,15/12/2014,Subsidies Private Se,Local,TRAVEL WRIGHT LTD,2000019119,2846.66,Travel Wright Ltd,NG24 2AG,
Department for Transport,Department for Transport,15/12/2014,Subsidies Private Se,Local,TYNE VALLEY COACHES LTD,2000019120,1863.27,Tyne Valley Coaches Ltd,NE46 4QT,
Department for Transport,Department for Transport,15/12/2014,Subsidies Private Se,Local,WEARDALE MOTOR SERVICES,2000019121,6288.48,Weardale Motor Services Ltd,DL13 2YQ,
Department for Transport,Department for Transport,15/12/2014,Subsidies Private Se,Local,WIGAN BUSES LTD,2000019123,529.51,WIGAN BUSES LTD,WN2 1HF,
Department for Transport,Department for Transport,15/12/2014,Subsidies Private Se,Local,WILFREDA LUXURY COACHES,2000019124,4949.92,Wilfreda Luxury Coaches Ltd,DN6 7AY,
Department for Transport,Department for Transport,15/12/2014,Subsidies Private Se,Local,XELABUS LIMITED,2000019136,15784.2,Xelabus Limited,SO50 6RR,
Department for Transport,Department for Transport,15/12/2014,Subsidies Private Se,Local,Yorkshire Tiger Ltd,2000019128,180331.51,Yorkshire Tiger Ltd,HX5 9HD,
Department for Transport,Department for Transport,15/12/2014,Subsidies Private Se,Local,YORKSHIRE TRACTION CO LTD,2000019125,618266.45,STAGECOACH YORKSHIRE,SK3 0DU,
Department for Transport,Department for Transport,15/12/2014,Subsidies Private Se,Local,Z & S Transport Ltd,2000019126,11146.94,Z & S Transport Ltd,HP19 8DY,
Department for Transport,Department for Transport,15/12/2014,Support Services,Aviation,BOURNEMOUTH INTERNATIONAL AIRPORT,2000019156,30378,#,BH23 6SE,
Department for Transport,Department for Transport,15/12/2014,Support Services,Aviation,CARDIFF INTNL AIRPORT LTD,2000019158,24819.6,#,CF62 3BD,
Department for Transport,Department for Transport,15/12/2014,Support Services,Aviation,Civil Aviation Authority,2000019159,48686.5,#,RH6 0YR,
Department for Transport,Department for Transport,15/12/2014,Training,Air Accident Investigation Branch,Aero's Holding Ltd,2000019179,663.16,#,CV8 3AZ,
Department for Transport,Department for Transport,15/12/2014,Training,Air Accident Investigation Branch,HELI AIR LIMITED,2000019180,517.5,#,CV35 9EU,
Department for Transport,Department for Transport,15/12/2014,Training,Group Finance,Kaplan Financial,2000019161,467,#,NE1 3PA,
Department for Transport,Department for Transport,15/12/2014,Training,Group Finance,Kaplan Financial,2000019161,581,#,NE1 3PA,
Department for Transport,Department for Transport,15/12/2014,Transport  Consult,Strategic Roads & Smart Ticketing,WSP UK Limited T/A WSP Civils,2000019171,53708.52,#,GL20 8SJ,
Department for Transport,Department for Transport,15/12/2014,Transport  Consult,Rail Franchising,OVE ARUP & PARTNERS,2000019164,3103.76,#,NE1 3PL,
Department for Transport,Department for Transport,15/12/2014,Transport  Consult,Rail Franchising,PARSONS BRINCKERHOFF LTD,2000019165,3546.15,#,NE4 7YQ,
Department for Transport,Department for Transport,15/12/2014,Transport  Consult,Rail Commercial & Programme Office,PARSONS BRINCKERHOFF LTD,2000019165,9343.63,#,NE4 7YQ,
Department for Transport,Department for Transport,15/12/2014,Transport  Consult,Rail Commercial & Programme Office,TRANSPORT RESEARCH LABORATORY,2000019170,18565.24,#,RG40 3GA,
Department for Transport,Department for Transport,15/12/2014,Waste disposal/Refus,Group Procurement & Estate,Banner Business Services Ltd,2000019181,590.25,#,NR3 1QU,
Department for Transport,Department for Transport,16/12/2014,Agency Staff Costs,Group Communication,CAPITA BUSINESS SERVICES LTD,2000019243,1174.61,#,DL1 9HN,
Department for Transport,Department for Transport,16/12/2014,Agency Staff Costs,Group Human Resource,CAPITA BUSINESS SERVICES LTD,2000019243,2842.5,#,DL1 9HN,
Department for Transport,Department for Transport,16/12/2014,Agency Staff Costs,Group Human Resource,NETWORKERS INTERNATIONAL (UK) PLC,2000019259,1013.52,#,BR1 1HP,
Department for Transport,Department for Transport,16/12/2014,Agency Staff Costs,Group Finance,NETWORKERS INTERNATIONAL (UK) PLC,2000019259,3391.26,#,BR1 1HP,
Department for Transport,Department for Transport,16/12/2014,Agency Staff Costs,Rail Commercial & Programme Office,NETWORKERS INTERNATIONAL (UK) PLC,2000019259,4126.26,#,BR1 1HP,
Department for Transport,Department for Transport,16/12/2014,Agency Staff Costs,Local,CAPITA BUSINESS SERVICES LTD,2000019243,3017.64,#,DL1 9HN,
Department for Transport,Department for Transport,16/12/2014,Agency Staff Costs,Rail Strategy & Funding,Badenoch & Clark c/o Lauren Rogers,2000019246,3384.82,#,B37 7YE,
Department for Transport,Department for Transport,16/12/2014,Agency Staff Costs,Group Finance,NETWORKERS INTERNATIONAL (UK) PLC,2000019259,1925.7,#,BR1 1HP,
Department for Transport,Department for Transport,16/12/2014,Agency Staff Costs,Group Finance,CAPITA BUSINESS SERVICES LTD,2000019243,1237.86,#,DL1 9HN,
Department for Transport,Department for Transport,16/12/2014,Agency Staff Costs,Group Finance,CAPITA BUSINESS SERVICES LTD,2000019243,2680.14,#,DL1 9HN,
Department for Transport,Department for Transport,16/12/2014,Agency Staff Costs,Rail Commercial & Programme Office,CAPITA BUSINESS SERVICES LTD,2000019243,-2872.08,PO 8000134727,DL1 9HN,
Department for Transport,Department for Transport,16/12/2014,Agency Staff Costs,Rail Commercial & Programme Office,CAPITA BUSINESS SERVICES LTD,2000019243,-2297.66,PO 8000134727,DL1 9HN,
Department for Transport,Department for Transport,16/12/2014,Agency Staff Costs,Rail Commercial & Programme Office,CAPITA BUSINESS SERVICES LTD,2000019243,2297.66,CR 5106004070,DL1 9HN,
Department for Transport,Department for Transport,16/12/2014,Agency Staff Costs,Rail Commercial & Programme Office,CAPITA BUSINESS SERVICES LTD,2000019243,2872.08,CR 5106004084,DL1 9HN,
Department for Transport,Department for Transport,16/12/2014,Agency Staff Costs,Rail Commercial & Programme Office,CAPITA BUSINESS SERVICES LTD,2000019243,2872.08,CR 5106005642,DL1 9HN,
Department for Transport,Department for Transport,16/12/2014,Agency Staff Costs,Rail Commercial & Programme Office,CAPITA BUSINESS SERVICES LTD,2000019243,2890.14,#,DL1 9HN,
Department for Transport,Department for Transport,16/12/2014,Agency Staff Costs,Rail Franchising,CAPITA BUSINESS SERVICES LTD,2000019243,8900.28,#,DL1 9HN,
Department for Transport,Department for Transport,16/12/2014,Agency Staff Costs,Rail Commercial & Programme Office,CAPITA BUSINESS SERVICES LTD,2000019243,2452.8,#,DL1 9HN,
Department for Transport,Department for Transport,16/12/2014,Agency Staff Costs,Rail Franchising,CAPITA BUSINESS SERVICES LTD,2000019243,5555.04,#,DL1 9HN,
Department for Transport,Department for Transport,16/12/2014,Agency Staff Costs,Rail Strategy & Funding,CAPITA BUSINESS SERVICES LTD,2000019243,9988.92,#,DL1 9HN,
Department for Transport,Department for Transport,16/12/2014,Agency Staff Costs,Rail Strategy & Funding,CAPITA BUSINESS SERVICES LTD,2000019243,3329.64,#,DL1 9HN,
Department for Transport,Department for Transport,16/12/2014,Agency Staff Costs,Rail Commercial & Programme Office,CAPITA BUSINESS SERVICES LTD,2000019243,1156.06,#,DL1 9HN,
Department for Transport,Department for Transport,16/12/2014,Agency Staff Costs,Rail Commercial & Programme Office,CAPITA BUSINESS SERVICES LTD,2000019243,-2872.08,PO 8000134727,DL1 9HN,
Department for Transport,Department for Transport,16/12/2014,Agency Staff Costs,Rail Franchising,Capita Resourcing Limited,2000019257,25536,#,EC4A 1EN,
Department for Transport,Department for Transport,16/12/2014,Agency Staff Costs,Rail Franchising,Capita Resourcing Limited,2000019257,8071.92,#,EC4A 1EN,
Department for Transport,Department for Transport,16/12/2014,Agency Staff Costs,Network Rail Sponsorship,Experis Ltd,2000019249,879.91,#,EC2M 2RB,
Department for Transport,Department for Transport,16/12/2014,Agency Staff Costs,Group Finance,Experis Ltd,2000019249,3850.32,#,EC2M 2RB,
Department for Transport,Department for Transport,16/12/2014,Agency Staff Costs,Rail Franchising,Experis Ltd,2000019249,5526.72,#,EC2M 2RB,
Department for Transport,Department for Transport,16/12/2014,Agency Staff Costs,Rail Franchising,Experis Ltd,2000019249,4470.72,#,EC2M 2RB,
Department for Transport,Department for Transport,16/12/2014,Agency Staff Costs,Rail Franchising,Experis Ltd,2000019249,3576.58,#,EC2M 2RB,
Department for Transport,Department for Transport,16/12/2014,Agency Staff Costs,Highspeed 2,Experis Ltd,2000019249,4108.68,#,EC2M 2RB,
Department for Transport,Department for Transport,16/12/2014,Agency Staff Costs,Rail Franchising,MICHAEL PAGE INTERNATIONAL,2000019256,4485,#,SL1 3SA,
Department for Transport,Department for Transport,16/12/2014,Agency Staff Costs,Rail Franchising,MICHAEL PAGE INTERNATIONAL,2000019256,4485,#,SL1 3SA,
Department for Transport,Department for Transport,16/12/2014,Agency Staff Costs,Rail Franchising,MICHAEL PAGE INTERNATIONAL,2000019256,4485,#,SL1 3SA,
Department for Transport,Department for Transport,16/12/2014,Agents Fees,Group Communication,GROUPM UK LIMITED,2000019262,10.14,#,WC1X 8RX,
Department for Transport,Department for Transport,16/12/2014,Cap Grt Pri Sec-Cos.,Network Rail Sponsorship,Network Rail Infstrcture (Treasury),2000019225,900000000,#,N1 9AG,
Department for Transport,Department for Transport,16/12/2014,Cars Maintenance,Motoring Services,Goodyear Dunlop Tyres UK Ltd,2000019266,520.64,#,B24 9HY,
Department for Transport,Department for Transport,16/12/2014,CurrGrtPriSec-P&NPIS,"Energy, Technology and International",ENERGY SAVING TRUST,2000019255,188815,EST Oct 2014-15 #188815,SW1H 9BP,
Department for Transport,Department for Transport,16/12/2014,CurrGrtPriSec-P&NPIS,"Energy, Technology and International",LOW CARBON VEHICLE PARTNERSHIP,2000019260,33000,"""LowCVP November Claim #33,000 DfT payment""",SW1H 9JJ,
Department for Transport,Department for Transport,16/12/2014,Maintenance Other,"Motoring, Freight & London",TDC SYSTEMS LIMITED,2000019252,1875,#,BS24 9BP,
Department for Transport,Department for Transport,16/12/2014,Maintenance Other,"Motoring, Freight & London",TDC SYSTEMS LIMITED,2000019252,7270,#,BS24 9BP,
Department for Transport,Department for Transport,16/12/2014,Maintenance Other,"Motoring, Freight & London",TDC SYSTEMS LIMITED,2000019252,480,#,BS24 9BP,
Department for Transport,Department for Transport,16/12/2014,Maintenance Other,"Motoring, Freight & London",TDC SYSTEMS LIMITED,2000019252,6848,#,BS24 9BP,
Department for Transport,Department for Transport,16/12/2014,Maintenance Other,"Motoring, Freight & London",TDC SYSTEMS LIMITED,2000019252,6430,#,BS24 9BP,
Department for Transport,Department for Transport,16/12/2014,Maintenance Other,"Motoring, Freight & London",TDC SYSTEMS LIMITED,2000019252,2660,#,BS24 9BP,
Department for Transport,Department for Transport,16/12/2014,Maintenance Other,"Motoring, Freight & London",TDC SYSTEMS LIMITED,2000019252,1236,#,BS24 9BP,
Department for Transport,Department for Transport,16/12/2014,Maintenance Other,"Motoring, Freight & London",TDC SYSTEMS LIMITED,2000019252,2460,#,BS24 9BP,
Department for Transport,Department for Transport,16/12/2014,Maintenance Other,"Motoring, Freight & London",TDC SYSTEMS LIMITED,2000019252,2860,#,BS24 9BP,
Department for Transport,Department for Transport,16/12/2014,Maintenance Other,"Motoring, Freight & London",TDC SYSTEMS LIMITED,2000019252,480,#,BS24 9BP,
Department for Transport,Department for Transport,16/12/2014,Other Advertising,Local,PENNA COMMUNICATIONS,2000019261,9987.32,#,EC4M 7RD,
Department for Transport,Department for Transport,16/12/2014,Prog&ProjMgmt Consul,Local,ATKINS LTD (TRANSPORT PLANNING),2000019245,13333.33,#,WR5 1TX,
Department for Transport,Department for Transport,16/12/2014,Publicity,Group Communication,GROUPM UK LIMITED,2000019262,12169.27,#,WC1X 8RX,
Department for Transport,Department for Transport,16/12/2014,Research,Local,HaskoningDHV UK Limited,2000019270,24750,#,PE3 8DW,
Department for Transport,Department for Transport,16/12/2014,Research,Local,WSP UK Limited T/A WSP Civils,2000019254,4255.21,#,GL20 8SJ,
Department for Transport,Department for Transport,16/12/2014,Support Services,Air Accident Investigation Branch,CAPITA RESOURCING LTD T/A,2000019244,849.41,CAPITA RECRUITMENT INSP M PLUS NOV 2014,DL1 9HN,
Department for Transport,Department for Transport,16/12/2014,Support Services,Air Accident Investigation Branch,CAPITA RESOURCING LTD T/A,2000019244,1296,CAPITA RECRUITMENTAPTITUDE TEST NOV 2014,DL1 9HN,
Department for Transport,Department for Transport,16/12/2014,Support Services,Air Accident Investigation Branch,CAPITA RESOURCING LTD T/A,2000019244,1776,CAPITA RECRUITMENT ROLE PLAY NOV 2014,DL1 9HN,
Department for Transport,Department for Transport,16/12/2014,Support Services,Aviation,DURHAM TEES VALLEY AIRPORT LIMITED,2000019248,30378,#,DL2 1LU,
Department for Transport,Department for Transport,16/12/2014,Support Services,Marine Accident Investigation Branch,Sub Marine Services Ltd,2000019275,5471,#,TR11 4NR,
Department for Transport,Department for Transport,16/12/2014,Support Services,Group Finance,DD ACCRAILWAY PENS TRUSTEE,2000019258,2853.17,#,DL3 6XR,
Department for Transport,Department for Transport,16/12/2014,Support Services,Group Finance,DD ACCRAILWAY PENS TRUSTEE,2000019258,681.24,#,DL3 6XR,
Department for Transport,Department for Transport,16/12/2014,Support Services,"Policy, Legislation and Funding",DEPARTMENT FOR ENVIRONMENT,2000019247,25099.04,#,YO1 7PX,
Department for Transport,Department for Transport,16/12/2014,Support Services,"Policy, Legislation and Funding",TREASURY SOLICITOR,2000019241,235,#,WC2B 4TS,
Department for Transport,Department for Transport,16/12/2014,Telephone charges,Motoring Services,VERIZON BUSINESS,2000019253,16466.39,Verizon - internet charges -4.12.2014,RG2 6DA,
Department for Transport,Department for Transport,16/12/2014,Telephone charges,Motoring Services,VERIZON BUSINESS,2000019253,24532.9,Verizon - internet charges -Dec 2014,RG2 6DA,
Department for Transport,Department for Transport,16/12/2014,Treasury Solicitors,"Policy, Legislation and Funding",TREASURY SOLICITOR,2000019241,8756.28,#,WC2B 4TS,
Department for Transport,Department for Transport,17/12/2014,Agency Staff Costs,Air Accident Investigation Branch,HAYS PERSONNEL SERVICE LTD,2000019315,739.68,#,KT3 4JQ,
Department for Transport,Department for Transport,17/12/2014,Agency Staff Costs,General Counsel's Office,CAPITA BUSINESS SERVICES LTD,2000019316,2885.76,#,DL1 9HN,
Department for Transport,Department for Transport,17/12/2014,Agency Staff Costs,Group Finance,MICHAEL PAGE INTERNATIONAL,2000019333,3420,#,SL1 3SA,
Department for Transport,Department for Transport,17/12/2014,Agency Staff Costs,Group Finance,NETWORKERS INTERNATIONAL (UK) PLC,2000019335,861,#,BR1 1HP,
Department for Transport,Department for Transport,17/12/2014,Agency Staff Costs,Rail Commercial & Programme Office,CAPITA BUSINESS SERVICES LTD,2000019316,2887.92,#,DL1 9HN,
Department for Transport,Department for Transport,17/12/2014,Agency Staff Costs,Network Rail Sponsorship,CAPITA BUSINESS SERVICES LTD,2000019316,2055.56,#,DL1 9HN,
Department for Transport,Department for Transport,17/12/2014,Agents Fees,Group Communication,GROUPM UK LIMITED,2000019340,12.04,#,WC1X 8RX,
Department for Transport,Department for Transport,17/12/2014,Agents Fees,Group Communication,GROUPM UK LIMITED,2000019340,14.97,#,WC1X 8RX,
Department for Transport,Department for Transport,17/12/2014,Cap Grt Loc Auth,Major Projects & Growth,SOUTH YORKSHIRE PTE,2000019336,309413.35,SL0068195-Claim29,S1 2BQ,
Department for Transport,Department for Transport,17/12/2014,Cars Maintenance,Motoring Services,ATS Euromaster Ltd,2000019317,1879.99,#,EN11 1HH,
Department for Transport,Department for Transport,17/12/2014,Cars Maintenance,Motoring Services,JLC Ltd,2000019346,798.36,#,SE24 OHL,
Department for Transport,Department for Transport,17/12/2014,CurrGrt Las in AEF/A,Major Projects & Growth,SOUTH YORKSHIRE PTE,2000019336,19307,SL0068195-Claim29,S1 2BQ,
Department for Transport,Department for Transport,17/12/2014,Gas,Rail Accident Investigation Branch,CORONA ENERGY RETAIL 4 LTD,2000019321,582.7,#,WD17 1JW,
Department for Transport,Department for Transport,17/12/2014,Grt Aid to NDPBs,Rail NDPB's,RAIL PASSENGER COUNCIL,2000019350,409000,PC October 2014 Claim,M1 1LQ,
Department for Transport,Department for Transport,17/12/2014,Legal Consultancy,Group Procurement & Estate,Field Fisher Waterhouse LLP,2000019334,22872,#,EC4R 3TT,
Department for Transport,Department for Transport,17/12/2014,Maintenance Other,"Motoring, Freight & London",TDC SYSTEMS LIMITED,2000019329,720,#,BS24 9BP,
Department for Transport,Department for Transport,17/12/2014,Maintenance Other,"Motoring, Freight & London",TDC SYSTEMS LIMITED,2000019329,1875,#,BS24 9BP,
Department for Transport,Department for Transport,17/12/2014,Maintenance Other,"Motoring, Freight & London",TDC SYSTEMS LIMITED,2000019329,2220,#,BS24 9BP,
Department for Transport,Department for Transport,17/12/2014,Maintenance Other,"Motoring, Freight & London",TDC SYSTEMS LIMITED,2000019329,3775,#,BS24 9BP,
Department for Transport,Department for Transport,17/12/2014,Maintenance Other,"Motoring, Freight & London",TDC SYSTEMS LIMITED,2000019329,2860,#,BS24 9BP,
Department for Transport,Department for Transport,17/12/2014,Maintenance Other,"Motoring, Freight & London",TDC SYSTEMS LIMITED,2000019329,3050,#,BS24 9BP,
Department for Transport,Department for Transport,17/12/2014,Maintenance Other,"Motoring, Freight & London",TDC SYSTEMS LIMITED,2000019329,4080,#,BS24 9BP,
Department for Transport,Department for Transport,17/12/2014,Maintenance Other,"Motoring, Freight & London",TDC SYSTEMS LIMITED,2000019329,480,#,BS24 9BP,
Department for Transport,Department for Transport,17/12/2014,Management Consultan,Strategic Roads & Smart Ticketing,Rail Settlement Plan,2000019327,461235.3,#,EC1A 4HD,
Department for Transport,Department for Transport,17/12/2014,Printing,Air Accident Investigation Branch,WILLIAMS LEA LIMITED,2000019339,2712.96,#,NR3 1PD,
Department for Transport,Department for Transport,17/12/2014,Printing,Air Accident Investigation Branch,WILLIAMS LEA LIMITED,2000019339,1539.72,#,NR3 1PD,
Department for Transport,Department for Transport,17/12/2014,Printing,Air Accident Investigation Branch,WILLIAMS LEA LIMITED,2000019339,967.68,#,NR3 1PD,
Department for Transport,Department for Transport,17/12/2014,Printing,Principal Priv. Secretary & Head of Private Office,WILLIAMS LEA LIMITED,2000019339,1900.8,#,NR3 1PD,
Department for Transport,Department for Transport,17/12/2014,Printing,Principal Priv. Secretary & Head of Private Office,WILLIAMS LEA LIMITED,2000019339,519.75,#,NR3 1PD,
Department for Transport,Department for Transport,17/12/2014,Printing,Group Human Resource,WILLIAMS LEA LIMITED,2000019339,894.24,#,NR3 1PD,
Department for Transport,Department for Transport,17/12/2014,Printing,Aviation,WILLIAMS LEA LIMITED,2000019339,5446.44,#,NR3 1PD,
Department for Transport,Department for Transport,17/12/2014,Publicity,Group Communication,FORSTER LAMOND LTD,2000019341,11984,#,SE1 1RU,
Department for Transport,Department for Transport,17/12/2014,Publicity,Group Communication,GROUPM UK LIMITED,2000019340,14443.44,#,WC1X 8RX,
Department for Transport,Department for Transport,17/12/2014,Publicity,Group Communication,GROUPM UK LIMITED,2000019340,17967.01,#,WC1X 8RX,
Department for Transport,Department for Transport,17/12/2014,Research,Strategic Roads & Smart Ticketing,University of Southampton,2000019328,1516.8,#,SO17 1BJ,
Department for Transport,Department for Transport,17/12/2014,Research,"Energy, Technology and International",OVE ARUP & PARTNERS,2000019324,11120.99,#,NE1 3PL,
Department for Transport,Department for Transport,17/12/2014,Research,"Energy, Technology and International",TRANSPORT RESEARCH LABORATORY,2000019330,145957.22,#,RG40 3GA,
Department for Transport,Department for Transport,17/12/2014,Small Software,Motoring Services,PROCSERVE SHARED SERVICES LTD,2000019338,65580,#,SW1W 9SR,
Department for Transport,Department for Transport,17/12/2014,Subscriptions to Pro,Group Procurement & Estate,CHARTERED INST OF PURCHASING & SUPP,2000019320,13200,#,PE9 3NZ,
Department for Transport,Department for Transport,17/12/2014,Support Services,Air Accident Investigation Branch,QinetiQ Processing Centre,2000019326,2700,#,GU14 0LX,
Department for Transport,Department for Transport,17/12/2014,Transport  Consult,Strategic Roads & Smart Ticketing,WSP UK Limited T/A WSP Civils,2000019331,127601.81,#,GL20 8SJ,
Department for Transport,Department for Transport,17/12/2014,Transport  Consult,Rail Commercial & Programme Office,TRANSPORT RESEARCH LABORATORY,2000019330,25802.63,#,RG40 3GA,
Department for Transport,Department for Transport,17/12/2014,Transport  Consult,Rail Franchising,PARSONS BRINCKERHOFF LTD,2000019325,18809.12,#,NE4 7YQ,
Department for Transport,Department for Transport,17/12/2014,Transport  Consult,Rail Commercial & Programme Office,TRANSPORT RESEARCH LABORATORY,2000019330,17508.26,#,RG40 3GA,
Department for Transport,Department for Transport,17/12/2014,Transport  Consult,Rail Commercial & Programme Office,TRANSPORT RESEARCH LABORATORY,2000019330,3044.18,#,RG40 3GA,
Department for Transport,Department for Transport,17/12/2014,Travel Expenses UK,Rail Accident Investigation Branch,A1 RUSHMOOR RADIO TAXIS LTD,2000019342,697.3,#,GU11 1SJ,
Department for Transport,Department for Transport,17/12/2014,Travel Expenses UK,Motoring Services,DRIVER & VEHICLE LICENSING AGENCY,2000019322,2218.28,#,SA6 7JL,
Department for Transport,Department for Transport,17/12/2014,Travel Expenses UK,Motoring Services,DRIVER & VEHICLE LICENSING AGENCY,2000019322,2699.14,#,SA6 7JL,
Department for Transport,Department for Transport,18/12/2014,Agency Staff Costs,General Counsel's Office,CAPITA BUSINESS SERVICES LTD,2000019390,2885.76,#,DL1 9HN,
Department for Transport,Department for Transport,18/12/2014,Agency Staff Costs,Group Finance,MICHAEL PAGE INTERNATIONAL,2000019402,3594,#,SL1 3SA,
Department for Transport,Department for Transport,18/12/2014,Agency Staff Costs,Motoring Services,BROOK STREET (UK) LIMITED,2000019401,888,#,AL1 4JB,
Department for Transport,Department for Transport,18/12/2014,Agency Staff Costs,Motoring Services,BROOK STREET (UK) LIMITED,2000019401,888,#,AL1 4JB,
Department for Transport,Department for Transport,18/12/2014,Agency Staff Costs,Rail Commercial & Programme Office,CAPITA BUSINESS SERVICES LTD,2000019390,2353.64,#,DL1 9HN,
Department for Transport,Department for Transport,18/12/2014,Agency Staff Costs,Rail Commercial & Programme Office,Capita Resourcing Limited,2000019404,16968.91,#,EC4A 1EN,
Department for Transport,Department for Transport,18/12/2014,Agency Staff Costs,Rail Franchising,BROOK STREET (UK) LIMITED,2000019401,609.12,#,AL1 4JB,
Department for Transport,Department for Transport,18/12/2014,Agency Staff Costs,Network Rail Sponsorship,Experis Ltd,2000019395,799.92,#,EC2M 2RB,
Department for Transport,Department for Transport,18/12/2014,Agency Staff Costs,Rail Franchising,MICHAEL PAGE INTERNATIONAL,2000019402,8970,#,SL1 3SA,
Department for Transport,Department for Transport,18/12/2014,Cap Grt NDPBs & CG,"Energy, Technology and International",Derbyshire Community,2000019420,7500,DERB COMM Sep 2014 #7500,DE45 1AD,
Department for Transport,Department for Transport,18/12/2014,Cap Grt Pri Sec-Cos.,"Policy, Legislation and Funding",Eversheds LLP,2000019364,955000,#,CF10 5BT,
Department for Transport,Department for Transport,18/12/2014,Cap Grt Pri Sec-Cos.,"Energy, Technology and International",Domestelec Ltd,2000019422,3332.24,DOMESTELEC AUG 2014 #3332.24,WA10 6RG,
Department for Transport,Department for Transport,18/12/2014,Cap Grt Pri Sec-Cos.,"Policy, Legislation and Funding",Eversheds LLP,2000019364,674627.19,#,CF10 5BT,
Department for Transport,Department for Transport,18/12/2014,Cap Grt Pri Sec-Cos.,"Energy, Technology and International",Malones Group,2000019418,44735.32,"""#44,735.32 for 25% due now data recd Aug 14""",NE11 0BQ,
Department for Transport,Department for Transport,18/12/2014,Cap Grt Pri Sec-Cos.,Network Rail Sponsorship,Network Rail Infstrcture (Treasury),2000019365,300000000,Network Rail as per loan facility,N1 9AG,
Department for Transport,Department for Transport,18/12/2014,Cap Grt Pri Sec-Cos.,"Energy, Technology and International",Oakleigh Electrical Services,2000019419,12995,OAKLEIGH Aug 2014 #12995,NG22 8NF,
Department for Transport,Department for Transport,18/12/2014,Cap Grt Pri Sec-Cos.,"Energy, Technology and International",Wing Electrical Ltd,2000019417,10250,Wing Elec July and partial Aug #10250,NG14 6EQ,
Department for Transport,Department for Transport,18/12/2014,Childcare Voucher Co,Group Human Resource,COMPUTERSHARE VOUCHER SERVICES,2000019389,30196,#,WS13 8SX,
Department for Transport,Department for Transport,18/12/2014,Computer equipment,Rail Strategy & Funding,KELWAY LTD,2000019410,11049.96,#,SA1 8PL,
Department for Transport,Department for Transport,18/12/2014,Conferences / Semina,Group Human Resource,Northumberland Events Ltd,2000019421,6060,#,WC2N 5BY,
Department for Transport,Department for Transport,18/12/2014,CurrGrtPriSec-P&NPIS,Rail Strategy & Funding,ASSOCIATION OF COMMUNITY,2000019403,50000,Accociation of Community Rail p'ship,HD1 1JF,
Department for Transport,Department for Transport,18/12/2014,Legal Consultancy,Rail Strategy & Funding,Eversheds LLP,2000019411,28517.76,#,EC2V 7WS,
Department for Transport,Department for Transport,18/12/2014,Legal Consultancy,Rail Franchising,Eversheds LLP,2000019411,9093.6,#,EC2V 7WS,
Department for Transport,Department for Transport,18/12/2014,Legal Consultancy,"Policy, Legislation and Funding",Thirty Nine Essex Street,100024128,1680,#,WC2R 3AT,
Department for Transport,Department for Transport,18/12/2014,Legal Consultancy,"Policy, Legislation and Funding",Thirty Nine Essex Street,100024128,576,#,WC2R 3AT,
Department for Transport,Department for Transport,18/12/2014,Legal Consultancy,"Policy, Legislation and Funding",Thirty Nine Essex Street,100024128,19392,#,WC2R 3AT,
Department for Transport,Department for Transport,18/12/2014,Legal Consultancy,"Policy, Legislation and Funding",Thirty Nine Essex Street,100024128,1680,#,WC2R 3AT,
Department for Transport,Department for Transport,18/12/2014,Legal Consultancy,"Policy, Legislation and Funding",Thirty Nine Essex Street,100024128,19440,#,WC2R 3AT,
Department for Transport,Department for Transport,18/12/2014,Legal Consultancy,"Policy, Legislation and Funding",Thirty Nine Essex Street,100024128,16200,#,WC2R 3AT,
Department for Transport,Department for Transport,18/12/2014,Legal Consultancy,"Policy, Legislation and Funding",Thirty Nine Essex Street,100024128,-19392,#,WC2R 3AT,
Department for Transport,Department for Transport,18/12/2014,Legal Consultancy,"Policy, Legislation and Funding",Thirty Nine Essex Street,100024128,-1680,#,WC2R 3AT,
Department for Transport,Department for Transport,18/12/2014,Legal Consultancy,"Policy, Legislation and Funding",Thirty Nine Essex Street,100024128,-16200,#,WC2R 3AT,
Department for Transport,Department for Transport,18/12/2014,Legal Consultancy,"Policy, Legislation and Funding",Thirty Nine Essex Street,100024128,-576,#,WC2R 3AT,
Department for Transport,Department for Transport,18/12/2014,Legal Consultancy,"Policy, Legislation and Funding",Thirty Nine Essex Street,100024128,-1680,#,WC2R 3AT,
Department for Transport,Department for Transport,18/12/2014,Legal Consultancy,"Policy, Legislation and Funding",Thirty Nine Essex Street,100024128,-19440,#,WC2R 3AT,
Department for Transport,Department for Transport,18/12/2014,Management Consultan,Strategic Roads & Smart Ticketing,Rail Settlement Plan,2000019399,522979.2,#,EC1A 4HD,
Department for Transport,Department for Transport,18/12/2014,Management Consultan,Strategic Roads & Smart Ticketing,Rail Settlement Plan,2000019399,155191.5,#,EC1A 4HD,
Department for Transport,Department for Transport,18/12/2014,Other Advertising,Local,PENNA COMMUNICATIONS,100024127,1089.09,See credit 466405C,EC4M 7RD,
Department for Transport,Department for Transport,18/12/2014,Other Advertising,Local,PENNA COMMUNICATIONS,100024127,-1089.09,Credit re 466405,EC4M 7RD,
Department for Transport,Department for Transport,18/12/2014,Other Professional F,Marine Accident Investigation Branch,BRAEMAR HOWELLS LTD,2000019409,2808,#,SA73 3AQ,
Department for Transport,Department for Transport,18/12/2014,Other Professional F,Group Human Resource,COMPUTERSHARE VOUCHER SERVICES,2000019389,724.7,#,WS13 8SX,
Department for Transport,Department for Transport,18/12/2014,Prog&ProjMgmt Consul,Strategic Roads & Smart Ticketing,OVE ARUP & PARTNERS,2000019396,14018.26,#,NE1 3PL,
Department for Transport,Department for Transport,18/12/2014,Prog&ProjMgmt Consul,Motoring Services,Kier Construction Ltd,2000019416,268016.18,#,ME20 6XS,
Department for Transport,Department for Transport,18/12/2014,Publicity,Group Communication,ABBOTT MEAD VICKERS BBDO LTD,2000019392,952,#,NW1 5QE,
Department for Transport,Department for Transport,18/12/2014,Recruitment Fees,Group Human Resource,HM REVENUE & CUSTOMS,2000019367,27394.35,#,BN12 4XH,
Department for Transport,Department for Transport,18/12/2014,Services prov by OGD,Group Procurement & Estate,London & Continental Railways Ltd,2000019407,18742.06,#,WC2B 4AN,
Department for Transport,Department for Transport,18/12/2014,Storage & Distributi,Group Communication,WILLIAMS LEA LIMITED,2000019412,11143.57,#,NR3 1PD,
Department for Transport,Department for Transport,18/12/2014,Subscriptions to Pro,Group Procurement & Estate,CHARTERED INST OF PURCHASING & SUPP,2000019394,5400,#,PE9 3NZ,
Department for Transport,Department for Transport,18/12/2014,Support Services,Air Accident Investigation Branch,QinetiQ Processing Centre,2000019398,1000,#,GU14 0LX,
Department for Transport,Department for Transport,18/12/2014,Training,"Energy, Technology and International",DFT ONE TIME VENDOR,2000019423,6030,#,SW1P 4DR,
Department for Transport,Department for Transport,18/12/2014,Training,Portfolio Office,THE RAILWAY CONSULTANCY LTD,2000019405,2600,#,SE19 2LT,
Department for Transport,Department for Transport,18/12/2014,Transport  Consult,Rail Commercial & Programme Office,Directly Operated Railways Ltd,2000019408,10309.03,#,EC4A 1BL,
Department for Transport,Department for Transport,18/12/2014,Transport  Consult,Rail Commercial & Programme Office,PARSONS BRINCKERHOFF LTD,2000019397,22906.58,#,NE4 7YQ,
Department for Transport,Department for Transport,19/12/2014,Agency Staff Costs,"Energy, Technology and International",BROOK STREET (UK) LIMITED,2000019494,858.48,#,AL1 4JB,
Department for Transport,Department for Transport,19/12/2014,Agency Staff Costs,Local,BROOK STREET (UK) LIMITED,2000019494,987.84,#,AL1 4JB,
Department for Transport,Department for Transport,19/12/2014,Agency Staff Costs,Local,BROOK STREET (UK) LIMITED,2000019494,987.84,#,AL1 4JB,
Department for Transport,Department for Transport,19/12/2014,Agency Staff Costs,Major Projects & Growth,SPRING TECHNOLOGY LTD  ALSO T/A,2000019502,1188,#,B37 7YE,
Department for Transport,Department for Transport,19/12/2014,Agency Staff Costs,Rail Commercial & Programme Office,BROOK STREET (UK) LIMITED,2000019494,883.66,#,AL1 4JB,
Department for Transport,Department for Transport,19/12/2014,Agency Staff Costs,Rail Commercial & Programme Office,BROOK STREET (UK) LIMITED,2000019494,-519.74,#,AL1 4JB,
Department for Transport,Department for Transport,19/12/2014,Agency Staff Costs,Rail Commercial & Programme Office,BROOK STREET (UK) LIMITED,2000019494,519.74,#,AL1 4JB,
Department for Transport,Department for Transport,19/12/2014,Agency Staff Costs,Rail Commercial & Programme Office,BROOK STREET (UK) LIMITED,2000019494,-519.74,#,AL1 4JB,
Department for Transport,Department for Transport,19/12/2014,Agency Staff Costs,Rail Commercial & Programme Office,BROOK STREET (UK) LIMITED,2000019494,519.74,#,AL1 4JB,
Department for Transport,Department for Transport,19/12/2014,Agency Staff Costs,Rail Commercial & Programme Office,BROOK STREET (UK) LIMITED,2000019494,-519.74,#,AL1 4JB,
Department for Transport,Department for Transport,19/12/2014,Agency Staff Costs,Rail Commercial & Programme Office,BROOK STREET (UK) LIMITED,2000019494,519.74,#,AL1 4JB,
Department for Transport,Department for Transport,19/12/2014,Agency Staff Costs,Analysis & Strategy,BROOK STREET (UK) LIMITED,2000019494,539.77,#,AL1 4JB,
Department for Transport,Department for Transport,19/12/2014,Agency Staff Costs,Rail Franchising,Capita Resourcing Limited,2000019501,1868.22,#,EC4A 1EN,
Department for Transport,Department for Transport,19/12/2014,Agency Staff Costs,Rail Franchising,Capita Resourcing Limited,2000019501,8760,#,EC4A 1EN,
Department for Transport,Department for Transport,19/12/2014,Agency Staff Costs,Rail Franchising,Capita Resourcing Limited,2000019501,11922.8,#,EC4A 1EN,
Department for Transport,Department for Transport,19/12/2014,Agency Staff Costs,Rail Commercial & Programme Office,MICHAEL PAGE INTERNATIONAL,2000019500,723.9,#,SL1 3SA,
Department for Transport,Department for Transport,19/12/2014,Agents Fees,Strategic Roads & Smart Ticketing,NORTHGATE INFORMATION SOLUTIONS,2000019480,179100,#,HP2 4NW,
Department for Transport,Department for Transport,19/12/2014,Agents Fees,Strategic Roads & Smart Ticketing,NORTHGATE INFORMATION SOLUTIONS,2000019480,216399,#,HP2 4NW,
Department for Transport,Department for Transport,19/12/2014,Cap Grt Loc Auth,"Energy, Technology and International",SUFFOLK COUNTY COUNCIL (GRANTS),2000019481,494000,CVTF payment-Suffolk #494K,IP1 2DH,
Department for Transport,Department for Transport,19/12/2014,Cap Grt Loc Auth,"Energy, Technology and International",W YORKS PTE,2000019499,221550,"""CVTF payment - West Yorkshire #221,550K""",LS1 2DE,
Department for Transport,Department for Transport,19/12/2014,Cap Grt Pri Sec-Cos.,"Energy, Technology and International",Evergreen MAC,100024189,-5838,#,B30 1BX,
Department for Transport,Department for Transport,19/12/2014,Cap Grt Pri Sec-Cos.,"Energy, Technology and International",Evergreen MAC,100024189,5838,#,B30 1BX,
Department for Transport,Department for Transport,19/12/2014,Cap Grt Pri Sec-Cos.,"Energy, Technology and International",Evergreen MAC,1500000027,-5838.8,#,B30 1BX,
Department for Transport,Department for Transport,19/12/2014,Car Hire and Leasing,Group Finance,ENTERPRISE RENT-A-CAR,2000019505,6485.7,Enterprise - Car Hire November 2014,TW20 8RX,
Department for Transport,Department for Transport,19/12/2014,Cycle to Work Scheme,Group Human Resource,CYCLESCHEME LTD,2000019486,833.33,Cyclescheme 2012/13,BA1 1WX,
Department for Transport,Department for Transport,19/12/2014,Conferences / Semina,Environment & International Transport Analysis,WHITEHALL & INDUSTRY GROUP,2000019492,450,#,SW1H 9AA,
Department for Transport,Department for Transport,19/12/2014,CurrGrtPriSec-P&NPIS,"Energy, Technology and International",ENERGY SAVING TRUST,2000019498,185010,EST Nov 2014-15 #18501 0,SW1H 9BP,
Department for Transport,Department for Transport,19/12/2014,CurrGrtPriSec-P&NPIS,"Energy, Technology and International",LOW CARBON VEHICLE PARTNERSHIP,2000019504,51000,"""LowCVP Nov Claim #61,000 DfT payment""",SW1H 9JJ,
Department for Transport,Department for Transport,19/12/2014,Grt Aid to NDPBs,Strategic Roads & Smart Ticketing,RAIL PASSENGER COUNCIL,2000019516,176000,Passenger Focus -Roads Strategy & Charging,M1 1LQ,
Department for Transport,Department for Transport,19/12/2014,HR Consultancy,Group Human Resource,BENEFEX LIMITED,2000019503,21583.3,#,SO15 2JU,
Department for Transport,Department for Transport,19/12/2014,Investigation Servic,Rail Accident Investigation Branch,RICARDO - AEA LIMITED,2000019507,3933.6,#,OX11 0PQ,
Department for Transport,Department for Transport,19/12/2014,Legal Consultancy,Group Procurement & Estate,C M S CAMERON MCKENNA,2000019485,13065.24,#,EC1A 4DD,
Department for Transport,Department for Transport,19/12/2014,Mobile Phone charges,Group Finance,VODAFONE LTD,2000019496,540,Vodafone - Ipad Air ,RG14 5FF,
Department for Transport,Department for Transport,19/12/2014,Other Advertising,Local,PENNA COMMUNICATIONS,100024190,820.5,See credit 469954C,EC4M 7RD,
Department for Transport,Department for Transport,19/12/2014,Other Advertising,Local,PENNA COMMUNICATIONS,100024190,915.68,See credit 477834C,EC4M 7RD,
Department for Transport,Department for Transport,19/12/2014,Other Advertising,Local,PENNA COMMUNICATIONS,100024190,-915.68,Credit re 477834,EC4M 7RD,
Department for Transport,Department for Transport,19/12/2014,Other Advertising,Local,PENNA COMMUNICATIONS,100024190,-820.5,See invoice 469954,EC4M 7RD,
Department for Transport,Department for Transport,19/12/2014,Prog&ProjMgmt Consul,Project Sponsorship ,PARSONS BRINCKERHOFF LTD,2000019487,131449.9,#,NE4 7YQ,
Department for Transport,Department for Transport,19/12/2014,Prog&ProjMgmt Consul,Project Sponsorship ,PARSONS BRINCKERHOFF LTD,2000019487,4881.64,#,NE4 7YQ,
Department for Transport,Department for Transport,19/12/2014,Publicity,Group Communication,TNS UK LTD,2000019490,20580,#,W5 1UA,
Department for Transport,Department for Transport,19/12/2014,Recruitment,Portfolio Office,PENNA PLC,2000019488,2520.1,#,EC4M 7RD,
Department for Transport,Department for Transport,19/12/2014,Recruitment Fees,Group Human Resource,HM REVENUE & CUSTOMS,2000019514,3859.8,#,BN12 4XH,
Department for Transport,Department for Transport,19/12/2014,Recruitment Fees,Group Human Resource,HM REVENUE & CUSTOMS,2000019514,18944.16,#,BN12 4XH,
Department for Transport,Department for Transport,19/12/2014,Rent - L&B (non-PFI),Group Procurement & Estate,EUROSTAR (UK) LTD,1500000026,-405000,Refund of Overpayment Q1-3,SE1 8SE,
Department for Transport,Department for Transport,19/12/2014,Research,Major Projects & Growth,TRANSPORT RESEARCH LABORATORY,2000019491,7448.42,#,RG40 3GA,
Department for Transport,Department for Transport,19/12/2014,Subsidies Private Se,"Energy, Technology and International",LOW CARBON VEHICLE PARTNERSHIP,2000019504,10000,"""LowCVP Nov Claim #61,000 DfT payment""",SW1H 9JJ,
Department for Transport,Department for Transport,19/12/2014,Support Services,General Counsel's Office,Thompsons Solicitors,2000019517,62277,#,HA1 3AP,
Department for Transport,Department for Transport,19/12/2014,Team Away Days,Centrally held prog-NATs,TMS Development International Ltd,2000019512,630,#,YO24 4FL,
Department for Transport,Department for Transport,19/12/2014,Team Away Days,Centrally held prog-NATs,Westminster Boating Base Limited,2000019513,500,#,SW1V 3SY,
Department for Transport,Department for Transport,19/12/2014,Telephone charges,"Motoring, Freight & London",BT Payment SVCS Ltd (T/phone Bills),2000019493,7244.12,BT - Trfc C'ting - Dec 2013 to Sept 2014,DH98 1BT,
Department for Transport,Department for Transport,19/12/2014,Transport  Consult,Major Projects & Growth,PARSONS BRINCKERHOFF LTD,2000019487,6336,#,NE4 7YQ,
Department for Transport,Department for Transport,19/12/2014,Transport  Consult,Rail Strategy & Funding,xxxxxx,2000019511,1669.81,#,xxxxxx,
Department for Transport,Department for Transport,19/12/2014,Transport  Consult,Aviation,xxxxxx,2000019509,2625,#,xxxxxx,
Department for Transport,Department for Transport,22/12/2014,Agency Staff Costs,Local,BROOK STREET (UK) LIMITED,2000019583,653.45,#,AL1 4JB,
Department for Transport,Department for Transport,22/12/2014,Agency Staff Costs,Rail Commercial & Programme Office,BROOK STREET (UK) LIMITED,2000019583,874.34,#,AL1 4JB,
Department for Transport,Department for Transport,22/12/2014,Cap Grt Pri Sec-Cos.,"Energy, Technology and International",Konnected Ltd,2000019592,12995.73,Konnected June - Aug 2014 #12995.73,BA22 8NX,
Department for Transport,Department for Transport,22/12/2014,Cap Grt Pri Sec-Cos.,Rail Strategy & Funding,NETWORK RAIL INFRASTRUCTURE LTD,2000019588,4074188.4,Gospel Oak to Barking Electrification,M60 7WY,
Department for Transport,Department for Transport,22/12/2014,CurrGrt Las in AEF/A,Rail Strategy & Funding,TRANSPORT FOR LONDON,2000019587,2208700.87,TfL LOROL Grant - Dec 14,SW1H 0TL,
Department for Transport,Department for Transport,22/12/2014,Mobile Phone charges,RTL DG's Office,VODAFONE LTD,2000019584,2970.51,Vodafone 167 Mobiles ACC 604232442,RG14 5FF,
Department for Transport,Department for Transport,22/12/2014,Mobile Phone charges,Group Finance,VODAFONE LTD,2000019584,9770.36,Vodafone 567 Mobiles AC 604232420,RG14 5FF,
Department for Transport,Department for Transport,22/12/2014,Printing,"Energy, Technology and International",WILLIAMS LEA LIMITED,2000019590,2817.72,#,NR3 1PD,
Department for Transport,Department for Transport,22/12/2014,Publicity,Group Communication,GROUPM UK LIMITED,2000019591,182756.62,#,WC1X 8RX,
Department for Transport,Department for Transport,22/12/2014,Research,Local,NATIONAL CENTRE FOR SOCIAL RESEARCH,2000019580,20071,#,EC1V 0AX,
Department for Transport,Department for Transport,22/12/2014,Subsidies Private Se,"Motoring, Freight & London",MSRS Freight Grant,2000019585,794408.2,MSRS Freight Grant,xxxxxx,
Department for Transport,Department for Transport,22/12/2014,Subsidies Private Se,"Motoring, Freight & London",MSRS Freight Grant,2000019589,6408.05,MSRS Freight Grant,xxxxxx,
Department for Transport,Department for Transport,22/12/2014,Support Services,Group Finance,DD ACCRAILWAY PENS TRUSTEE,2000019586,1231.93,#,DL3 6XR,
Department for Transport,Department for Transport,22/12/2014,Transport  Consult,Rail Strategy & Funding,PARSONS BRINCKERHOFF LTD,2000019581,966.82,#,NE4 7YQ,
Department for Transport,Department for Transport,22/12/2014,Travel Expenses UK,Marine Accident Investigation Branch,Clyde Travel Management,2000019579,959.16,Clyde -  08. - 10.12.2014,G52 4JQ,
Department for Transport,Department for Transport,23/12/2014,Agency Staff Costs,Air Accident Investigation Branch,HAYS PERSONNEL SERVICE LTD,2000019640,739.68,#,KT3 4JQ,
Department for Transport,Department for Transport,23/12/2014,Agency Staff Costs,Group Communication,CAPITA BUSINESS SERVICES LTD,2000019642,1468.26,#,DL1 9HN,
Department for Transport,Department for Transport,23/12/2014,Agency Staff Costs,Group Communication,CAPITA BUSINESS SERVICES LTD,2000019642,910.58,#,DL1 9HN,
Department for Transport,Department for Transport,23/12/2014,Agency Staff Costs,Group Human Resource,CAPITA BUSINESS SERVICES LTD,2000019642,3411,#,DL1 9HN,
Department for Transport,Department for Transport,23/12/2014,Agency Staff Costs,Group Finance,Allen Lane,2000019644,4036.38,#,SW1Y 6RJ,
Department for Transport,Department for Transport,23/12/2014,Agency Staff Costs,Group Finance,Allen Lane,2000019644,4036.38,#,SW1Y 6RJ,
Department for Transport,Department for Transport,23/12/2014,Agency Staff Costs,Group Finance,Allen Lane,2000019644,4036.38,#,SW1Y 6RJ,
Department for Transport,Department for Transport,23/12/2014,Agency Staff Costs,Group Finance,Badenoch & Clark c/o Lauren Rogers,2000019646,4032,#,B37 7YE,
Department for Transport,Department for Transport,23/12/2014,Agency Staff Costs,Group Finance,Badenoch & Clark c/o Lauren Rogers,2000019646,5644.8,#,B37 7YE,
Department for Transport,Department for Transport,23/12/2014,Agency Staff Costs,Group Finance,Badenoch & Clark c/o Lauren Rogers,2000019646,4032,#,B37 7YE,
Department for Transport,Department for Transport,23/12/2014,Agency Staff Costs,Group Finance,Badenoch & Clark c/o Lauren Rogers,2000019646,4032,#,B37 7YE,
Department for Transport,Department for Transport,23/12/2014,Agency Staff Costs,Group Finance,MICHAEL PAGE INTERNATIONAL,2000019671,3240,#,SL1 3SA,
Department for Transport,Department for Transport,23/12/2014,Agency Staff Costs,Major Projects & Growth,SPRING TECHNOLOGY LTD  ALSO T/A,2000019674,1320,#,B37 7YE,
Department for Transport,Department for Transport,23/12/2014,Agency Staff Costs,Major Projects & Growth,Experis Ltd,2000019653,13288.04,#,EC2M 2RB,
Department for Transport,Department for Transport,23/12/2014,Agency Staff Costs,Rail Commercial & Programme Office,CAPITA BUSINESS SERVICES LTD,2000019642,4284.36,#,DL1 9HN,
Department for Transport,Department for Transport,23/12/2014,Agency Staff Costs,Rail Commercial & Programme Office,CAPITA BUSINESS SERVICES LTD,2000019642,1978.27,#,DL1 9HN,
Department for Transport,Department for Transport,23/12/2014,Agency Staff Costs,Rail Commercial & Programme Office,CAPITA BUSINESS SERVICES LTD,2000019642,2119.82,#,DL1 9HN,
Department for Transport,Department for Transport,23/12/2014,Agency Staff Costs,Rail Commercial & Programme Office,Badenoch & Clark c/o Lauren Rogers,2000019646,3180,#,B37 7YE,
Department for Transport,Department for Transport,23/12/2014,Agency Staff Costs,Rail Commercial & Programme Office,Badenoch & Clark c/o Lauren Rogers,2000019646,1908,#,B37 7YE,
Department for Transport,Department for Transport,23/12/2014,Agency Staff Costs,Rail Commercial & Programme Office,Experis Ltd,2000019653,6847.8,#,EC2M 2RB,
Department for Transport,Department for Transport,23/12/2014,Agency Staff Costs,Group Finance,Allen Lane,2000019644,2463.84,#,SW1Y 6RJ,
Department for Transport,Department for Transport,23/12/2014,Agency Staff Costs,Group Finance,Allen Lane,2000019644,1601.5,#,SW1Y 6RJ,
Department for Transport,Department for Transport,23/12/2014,Agency Staff Costs,Group Finance,Allen Lane,2000019644,2463.84,#,SW1Y 6RJ,
Department for Transport,Department for Transport,23/12/2014,Agency Staff Costs,Group Finance,CAPITA BUSINESS SERVICES LTD,2000019642,2680.14,#,DL1 9HN,
Department for Transport,Department for Transport,23/12/2014,Agency Staff Costs,Group Finance,CAPITA BUSINESS SERVICES LTD,2000019642,2680.14,#,DL1 9HN,
Department for Transport,Department for Transport,23/12/2014,Agency Staff Costs,Group Finance,CAPITA BUSINESS SERVICES LTD,2000019642,3671.52,#,DL1 9HN,
Department for Transport,Department for Transport,23/12/2014,Agency Staff Costs,Strategic Roads & Smart Ticketing,Badenoch & Clark c/o Lauren Rogers,2000019646,5225.76,#,B37 7YE,
Department for Transport,Department for Transport,23/12/2014,Agency Staff Costs,Strategic Roads & Smart Ticketing,Badenoch & Clark c/o Lauren Rogers,2000019646,5225.76,#,B37 7YE,
Department for Transport,Department for Transport,23/12/2014,Agency Staff Costs,Strategic Roads & Smart Ticketing,Badenoch & Clark c/o Lauren Rogers,2000019646,5225.76,#,B37 7YE,
Department for Transport,Department for Transport,23/12/2014,Agency Staff Costs,Strategic Roads & Smart Ticketing,Badenoch & Clark c/o Lauren Rogers,2000019646,4180.61,#,B37 7YE,
Department for Transport,Department for Transport,23/12/2014,Agency Staff Costs,Strategic Roads & Smart Ticketing,Badenoch & Clark c/o Lauren Rogers,2000019646,5225.76,#,B37 7YE,
Department for Transport,Department for Transport,23/12/2014,Agency Staff Costs,Rail Strategy & Funding,CAPITA BUSINESS SERVICES LTD,2000019642,4510.62,#,DL1 9HN,
Department for Transport,Department for Transport,23/12/2014,Agency Staff Costs,Rail Strategy & Funding,CAPITA BUSINESS SERVICES LTD,2000019642,4833.9,#,DL1 9HN,
Department for Transport,Department for Transport,23/12/2014,Agency Staff Costs,Rail Strategy & Funding,CAPITA BUSINESS SERVICES LTD,2000019642,7130.05,#,DL1 9HN,
Department for Transport,Department for Transport,23/12/2014,Agency Staff Costs,Rail Strategy & Funding,CAPITA BUSINESS SERVICES LTD,2000019642,4510.62,#,DL1 9HN,
Department for Transport,Department for Transport,23/12/2014,Agency Staff Costs,Rail Strategy & Funding,CAPITA BUSINESS SERVICES LTD,2000019642,9021.24,#,DL1 9HN,
Department for Transport,Department for Transport,23/12/2014,Agency Staff Costs,Network Rail Sponsorship,CAPITA BUSINESS SERVICES LTD,2000019642,1386.66,#,DL1 9HN,
Department for Transport,Department for Transport,23/12/2014,Agency Staff Costs,Group Finance,Experis Ltd,2000019653,3657.8,#,EC2M 2RB,
Department for Transport,Department for Transport,23/12/2014,Agency Staff Costs,Rail Franchising,Experis Ltd,2000019653,5526.72,#,EC2M 2RB,
Department for Transport,Department for Transport,23/12/2014,Cap Grt Loc Auth,"Energy, Technology and International",BLACKPOOL COUNCIL,2000019685,500000,CVTF payment - Blackpool Council #500K,FY3 7HW,
Department for Transport,Department for Transport,23/12/2014,Cap Grt Loc Auth,"Energy, Technology and International",PLYMOUTH CITY COUNCIL,2000019705,484921,CVTF payment-Suffolk #494K,PL1 2AA,
Department for Transport,Department for Transport,23/12/2014,Cap Grt Pri Sec-Cos.,Major Projects & Growth,C2C RAIL LIMITED,2000019675,124795.24,c2c Rail Limted,EC1V 9NR,
Department for Transport,Department for Transport,23/12/2014,Cap Grt Pri Sec-Cos.,"Energy, Technology and International",Audi UK,2000019703,180000,"""PiCG Audi November 2014 #180,000""",MK14 5AN,
Department for Transport,Department for Transport,23/12/2014,Electricity,Air Accident Investigation Branch,Watson Petroleum T/A Hall Fuels,2000019699,4178.16,#,TW19 7LN,
Department for Transport,Department for Transport,23/12/2014,Financial Consultanc,Motoring Services,BDO LLP,2000019697,1131,#,W1U 7EU,
Department for Transport,Department for Transport,23/12/2014,Gas,Group Procurement & Estate,CORONA ENERGY RETAIL 4 LTD,2000019652,1977.4,Corona - 1.12.14,WD17 1JW,
Department for Transport,Department for Transport,23/12/2014,Insurance,Group Human Resource,MARSH LTD,2000019657,1139.5,#,SG6 3TT,
Department for Transport,Department for Transport,23/12/2014,Insurance,Group Human Resource,MARSH LTD,2000019657,1322.86,#,SG6 3TT,
Department for Transport,Department for Transport,23/12/2014,Investigation Servic,Rail Accident Investigation Branch,BRITISH STANDARDS INSTITUTION,2000019647,3819,#,W4 4AL,
Department for Transport,Department for Transport,23/12/2014,Investigation Servic,Rail Accident Investigation Branch,SERCO LIMITED,2000019662,3352.8,#,RG27 9UY,
Department for Transport,Department for Transport,23/12/2014,IT Consultancy,Environment & International Transport Analysis,Fisher Associates,2000019648,5472,#,SO41 5SJ,
Department for Transport,Department for Transport,23/12/2014,IT Ser Running Costs,Transport Direct&Travel,TRAPEZE GROUP (UK) LTD,2000019667,89991.83,#,BA14 6PH,
Department for Transport,Department for Transport,23/12/2014,IT Ser Running Costs,General Counsel's Office,Actica Consulting Limited,2000019676,3060,#,GU1 4AF,
Department for Transport,Department for Transport,23/12/2014,Machinery Rental,Air Accident Investigation Branch,CANON (UK) LTD,2000019649,897.34,#,RH2 8BF,
Department for Transport,Department for Transport,23/12/2014,Maintenance Other,"Motoring, Freight & London",TDC SYSTEMS LIMITED,2000019665,6571.5,#,BS24 9BP,
Department for Transport,Department for Transport,23/12/2014,Management Consultan,Strategic Roads & Smart Ticketing,Rail Settlement Plan,2000019660,301178.93,#,EC1A 4HD,
Department for Transport,Department for Transport,23/12/2014,Management Consultan,Strategic Roads & Smart Ticketing,Rail Settlement Plan,2000019660,369312.91,#,EC1A 4HD,
Department for Transport,Department for Transport,23/12/2014,Management Consultan,Strategic Roads & Smart Ticketing,Rail Settlement Plan,2000019660,107499.6,#,EC1A 4HD,
Department for Transport,Department for Transport,23/12/2014,Other Professional F,Group Procurement & Estate,ITC CONCEPTS LIMITED,2000019704,192290.82,#,CR0 4RE,
Department for Transport,Department for Transport,23/12/2014,Prog&ProjMgmt Consul,Local,STEER DAVIES & GLEAVE LTD,2000019663,49255.1,#,SE1 9PD,
Department for Transport,Department for Transport,23/12/2014,Prog&ProjMgmt Consul,Motoring Services,Kier Construction Ltd,2000019702,83971.31,#,ME20 6XS,
Department for Transport,Department for Transport,23/12/2014,Publications for Res,Group Communication,CREATIVE CHOICE CIC,2000019683,1257,#,SW1H 0DJ,
Department for Transport,Department for Transport,23/12/2014,Publications for Res,Group Human Resource,CREATIVE CHOICE CIC,2000019683,1318,#,SW1H 0DJ,
Department for Transport,Department for Transport,23/12/2014,Publications for Res,Strategy and Engagement,CREATIVE CHOICE CIC,2000019683,1860,#,SW1H 0DJ,
Department for Transport,Department for Transport,23/12/2014,Publicity,Group Communication,FORSTER LAMOND LTD,2000019686,716.4,#,SE1 1RU,
Department for Transport,Department for Transport,23/12/2014,Research,Local,Release the Chicken Ltd,2000019701,1500,#,HA1 4DP,
Department for Transport,Department for Transport,23/12/2014,Research,"Energy, Technology and International",LOUGHBOROUGH UNIVERSITY,2000019655,133158.58,#,LE11 3TU,
Department for Transport,Department for Transport,23/12/2014,Research,Local,TRANSPORT RESEARCH LABORATORY,2000019666,4693.33,#,RG40 3GA,
Department for Transport,Department for Transport,23/12/2014,Small Software,Transport Direct&Travel,TRAPEZE GROUP (UK) LTD,2000019667,83555.99,#,BA14 6PH,
Department for Transport,Department for Transport,23/12/2014,Small Software,Group Procurement & Estate,BIP SOLUTIONS LTD,2000019672,600,#,G51 1DZ,
Department for Transport,Department for Transport,23/12/2014,Support Services,"Motoring, Freight & London",Environmental Scientifics Group,2000019643,5580,#,OX9 3SZ,
Department for Transport,Department for Transport,23/12/2014,Support Services,"Motoring, Freight & London",Environmental Scientifics Group,2000019643,5208,#,OX9 3SZ,
Department for Transport,Department for Transport,23/12/2014,Support Services,General Counsel's Office,Charles Lucas & Marshall,2000019696,64000,#,RG14 5EU,
Department for Transport,Department for Transport,23/12/2014,Support Services,Aviation,FCO FOREIGN & COMMONWEALTH OFFICE,2000019637,3800.69,#,MK10 1PX,
Department for Transport,Department for Transport,23/12/2014,Support Services,Strategic Roads & Smart Ticketing,HIGHWAYS AGENCY,2000019638,138819.38,#,B1 1RN,
Department for Transport,Department for Transport,23/12/2014,Telephone charges,Air Accident Investigation Branch,ALTERNATIVE NETWORKS PLC,2000019680,2438.7,#,SW11 3UL,
Department for Transport,Department for Transport,23/12/2014,Telephone charges,Motoring Services,VODAFONE LTD,2000019670,5236.42,Vodafone bill for 138 mobiles,RG14 5FF,
Department for Transport,Department for Transport,23/12/2014,Telephone charges,Motoring Services,VODAFONE LTD,2000019670,2954.45,Vodafone bill for 167 mobiles,RG14 5FF,
Department for Transport,Department for Transport,23/12/2014,Telephone charges,Motoring Services,VODAFONE LTD,2000019670,11277.57,Vodafone bill for 606 mobiles,RG14 5FF,
Department for Transport,Department for Transport,23/12/2014,Telephone charges,Motoring Services,VODAFONE LTD,2000019670,8967.46,Vodafone - 432 mobiles - December 2014,RG14 5FF,
Department for Transport,Department for Transport,23/12/2014,Training,Air Accident Investigation Branch,HELI AIR LIMITED,2000019687,687.5,#,CV35 9EU,
Department for Transport,Department for Transport,23/12/2014,Training,Analysis & Strategy,UNIVERSITY COLLEGE LONDON,2000019668,10000,#,WC1E 6BT,
Department for Transport,Department for Transport,23/12/2014,Transport  Consult,Centrally held prog-NATs,Ashurst LLP,2000019698,3896.4,#,EC2A 2HA,
Department for Transport,Department for Transport,23/12/2014,Transport  Consult,Major Projects & Growth,PARSONS BRINCKERHOFF LTD,2000019659,3121.7,#,NE4 7YQ,
Department for Transport,Department for Transport,23/12/2014,Transport  Consult,Rail Commercial & Programme Office,TRANSPORT RESEARCH LABORATORY,2000019666,21656.99,#,RG40 3GA,
Department for Transport,Department for Transport,23/12/2014,Transport  Consult,Analysis & Strategy,Frontier Economics,2000019700,16260,#,WC1V 6DA,
Department for Transport,Department for Transport,23/12/2014,Transport  Consult,Rail Franchising,FIRST CLASS PARTNERSHIPS LTD,2000019673,23370,#,YO10 3EB,
Department for Transport,Department for Transport,23/12/2014,Transport  Consult,Aviation,JACOBS UK LTD,2000019654,181044.72,#,G2 7HX,
Department for Transport,Department for Transport,23/12/2014,Transport  Consult,Rail Commercial & Programme Office,PARSONS BRINCKERHOFF LTD,2000019659,10943.7,#,NE4 7YQ,
Department for Transport,Department for Transport,23/12/2014,Transport  Consult,Rail Commercial & Programme Office,PARSONS BRINCKERHOFF LTD,2000019659,8750.27,#,NE4 7YQ,
Department for Transport,Department for Transport,23/12/2014,Transport  Consult,Rail Franchising,PARSONS BRINCKERHOFF LTD,2000019659,263516.93,#,NE4 7YQ,
Department for Transport,Department for Transport,23/12/2014,Transport  Consult,Aviation,Systra Ltd,2000019658,5322.04,#,GU21 5BH,
Department for Transport,Department for Transport,23/12/2014,Transport  Consult,Aviation,Systra Ltd,2000019658,39300.3,#,GU21 5BH,
Department for Transport,Department for Transport,23/12/2014,Transport  Consult,Rail Commercial & Programme Office,TRANSPORT RESEARCH LABORATORY,2000019666,7237.94,#,RG40 3GA,
Department for Transport,Department for Transport,23/12/2014,Travel Exp Overseas,"Motoring, Freight & London",Environmental Scientifics Group,2000019643,735.75,#,OX9 3SZ,
Department for Transport,Department for Transport,23/12/2014,Treasury Solicitors,General Counsel's Office,TREASURY SOLICITOR,2000019635,17793.96,#,WC2B 4TS,
Department for Transport,Department for Transport,23/12/2014,Treasury Solicitors,General Counsel's Office,TREASURY SOLICITOR,2000019635,12018.88,#,WC2B 4TS,
Department for Transport,Department for Transport,24/12/2014,Agency Staff Costs,General Counsel's Office,CAPITA BUSINESS SERVICES LTD,2000019779,2885.76,#,DL1 9HN,
Department for Transport,Department for Transport,24/12/2014,Agency Staff Costs,Group Human Resource,NETWORKERS INTERNATIONAL (UK) PLC,2000019802,1013.52,#,BR1 1HP,
Department for Transport,Department for Transport,24/12/2014,Agency Staff Costs,Group Finance,MICHAEL PAGE INTERNATIONAL,2000019795,3240,#,SL1 3SA,
Department for Transport,Department for Transport,24/12/2014,Agency Staff Costs,Group Finance,MICHAEL PAGE INTERNATIONAL,2000019795,2156.4,#,SL1 3SA,
Department for Transport,Department for Transport,24/12/2014,Agency Staff Costs,Group Finance,NETWORKERS INTERNATIONAL (UK) PLC,2000019802,3391.26,#,BR1 1HP,
Department for Transport,Department for Transport,24/12/2014,Agency Staff Costs,Rail Commercial & Programme Office,BROOK STREET (UK) LIMITED,2000019791,599.72,#,AL1 4JB,
Department for Transport,Department for Transport,24/12/2014,Agency Staff Costs,Rail Commercial & Programme Office,NETWORKERS INTERNATIONAL (UK) PLC,2000019802,4126.26,#,BR1 1HP,
Department for Transport,Department for Transport,24/12/2014,Agency Staff Costs,Rail Commercial & Programme Office,Badenoch & Clark c/o Lauren Rogers,2000019780,3180,#,B37 7YE,
Department for Transport,Department for Transport,24/12/2014,Agency Staff Costs,Rail Commercial & Programme Office,Badenoch & Clark c/o Lauren Rogers,2000019780,3180,#,B37 7YE,
Department for Transport,Department for Transport,24/12/2014,Agency Staff Costs,Rail Commercial & Programme Office,Capita Resourcing Limited,2000019796,18720,#,EC4A 1EN,
Department for Transport,Department for Transport,24/12/2014,Agency Staff Costs,Rail Strategy & Funding,Badenoch & Clark c/o Lauren Rogers,2000019780,4231.02,#,B37 7YE,
Department for Transport,Department for Transport,24/12/2014,Agency Staff Costs,Rail Strategy & Funding,Badenoch & Clark c/o Lauren Rogers,2000019780,4231.02,#,B37 7YE,
Department for Transport,Department for Transport,24/12/2014,Agency Staff Costs,Rail Strategy & Funding,Badenoch & Clark c/o Lauren Rogers,2000019780,4231.02,#,B37 7YE,
Department for Transport,Department for Transport,24/12/2014,Agency Staff Costs,Rail Strategy & Funding,Badenoch & Clark c/o Lauren Rogers,2000019780,4231.02,#,B37 7YE,
Department for Transport,Department for Transport,24/12/2014,Agency Staff Costs,Group Finance,NETWORKERS INTERNATIONAL (UK) PLC,2000019802,1925.7,#,BR1 1HP,
Department for Transport,Department for Transport,24/12/2014,Agency Staff Costs,Group Finance,NETWORKERS INTERNATIONAL (UK) PLC,2000019802,861,#,BR1 1HP,
Department for Transport,Department for Transport,24/12/2014,Agency Staff Costs,Group Finance,CAPITA BUSINESS SERVICES LTD,2000019779,1608.08,#,DL1 9HN,
Department for Transport,Department for Transport,24/12/2014,Agency Staff Costs,"Policy, Legislation and Funding",Badenoch & Clark c/o Lauren Rogers,2000019780,3660,#,B37 7YE,
Department for Transport,Department for Transport,24/12/2014,Agency Staff Costs,"Policy, Legislation and Funding",Badenoch & Clark c/o Lauren Rogers,2000019780,3660,#,B37 7YE,
Department for Transport,Department for Transport,24/12/2014,Agency Staff Costs,"Policy, Legislation and Funding",Badenoch & Clark c/o Lauren Rogers,2000019780,3660,#,B37 7YE,
Department for Transport,Department for Transport,24/12/2014,Agency Staff Costs,"Policy, Legislation and Funding",Badenoch & Clark c/o Lauren Rogers,2000019780,3660,#,B37 7YE,
Department for Transport,Department for Transport,24/12/2014,Agency Staff Costs,Network Rail Sponsorship,CAPITA BUSINESS SERVICES LTD,2000019779,1468.26,#,DL1 9HN,
Department for Transport,Department for Transport,24/12/2014,Agency Staff Costs,Rail Commercial & Programme Office,CAPITA BUSINESS SERVICES LTD,2000019779,2887.92,#,DL1 9HN,
Department for Transport,Department for Transport,24/12/2014,Agency Staff Costs,Rail Franchising,Capita Resourcing Limited,2000019796,17331.6,#,EC4A 1EN,
Department for Transport,Department for Transport,24/12/2014,Agency Staff Costs,Rail Franchising,Experis Ltd,2000019785,3560.83,#,EC2M 2RB,
Department for Transport,Department for Transport,24/12/2014,Agency Staff Costs,Rail Commercial & Programme Office,MICHAEL PAGE INTERNATIONAL,2000019795,723.9,#,SL1 3SA,
Department for Transport,Department for Transport,24/12/2014,Agency Staff Costs,Rail Franchising,NETWORKERS INTERNATIONAL (UK) PLC,2000019802,1183.92,#,BR1 1HP,
Department for Transport,Department for Transport,24/12/2014,Agency Staff Costs,Rail Franchising,NETWORKERS INTERNATIONAL (UK) PLC,2000019802,1183.92,#,BR1 1HP,
Department for Transport,Department for Transport,24/12/2014,Agents Fees,Group Communication,GROUPM UK LIMITED,2000019808,113.95,#,WC1X 8RX,
Department for Transport,Department for Transport,24/12/2014,Cap Grt Pri Sec-Cos.,"Policy, Legislation and Funding",Eversheds LLP,2000019813,3840,#,CF10 5BT,
Department for Transport,Department for Transport,24/12/2014,Cap Grt Pri Sec-Cos.,Major Projects & Growth,NETWORK RAIL INFRASTRUCTURE LTD,2000019805,414060.44,WP3&5-App#9,M60 7WY,
Department for Transport,Department for Transport,24/12/2014,Cap Grt Pri Sec-Cos.,"Policy, Legislation and Funding",Eversheds LLP,2000019813,399613,#,CF10 5BT,
Department for Transport,Department for Transport,24/12/2014,Computer equipment,Air Accident Investigation Branch,DELL CORPORATION LTD,2000019783,1763.64,#,RG12 1LF,
Department for Transport,Department for Transport,24/12/2014,Computer equipment,Motoring Services,E-Cycle Limited,2000019812,1903.8,#,CF39 9BW,
Department for Transport,Department for Transport,24/12/2014,Contract Cleaning,Air Accident Investigation Branch,Interserve,2000019806,2328.63,#,B70 1DA,
Department for Transport,Department for Transport,24/12/2014,Curr Grt Other CG Bo,Major Projects & Growth,TECHNOLOGY STRATEGY BOARD,2000019804,2677547,Q2 Co-Funding for TSC Fund,SN2 1JF,
Department for Transport,Department for Transport,24/12/2014,CurrGrt Las in AEF/A,Major Projects & Growth,NEXUS,2000019794,2048456,NEXUSResource-Nov14,NE1 4AX,
Department for Transport,Department for Transport,24/12/2014,CurrGrtPriSec-P&NPIS,"Energy, Technology and International",ENERGY SAVING TRUST,2000019793,8000,Oct EV Readiness #8k,SW1H 9BP,
Department for Transport,Department for Transport,24/12/2014,Further Educ Cost,Group Finance,Kaplan Financial,2000019786,155.9,#,NE1 3PA,
Department for Transport,Department for Transport,24/12/2014,Grant Payments,Rail Commercial & Programme Office,GREATER MANCHESTER PTA,2000019800,3556514.8,1510 Wk3 Northern IFA - Franchise Payment Incl Ind,M1 3BG,
Department for Transport,Department for Transport,24/12/2014,Grant Payments,Rail Commercial & Programme Office,MERSEYTRAVEL,2000019797,705097.23,1510 Wk3 Northern IFA - Franchise Payment 14-15 -,L3 2AN,
Department for Transport,Department for Transport,24/12/2014,Grant Payments,Rail Commercial & Programme Office,NEXUS (TYNE & WEAR),2000019798,210237.33,1510 Wk3 Northern IFA - Franchise Payments 14-15 -,NE1 4AX,
Department for Transport,Department for Transport,24/12/2014,Grant Payments,Rail Commercial & Programme Office,SOUTH YORKSHIRE PTE,2000019799,1349022.86,1510 Wk3 Northern IFA - Franchise Payment Incl Ind,S2 5YT,
Department for Transport,Department for Transport,24/12/2014,Grant Payments,Rail Commercial & Programme Office,WEST YORKSHIRE PTA,2000019801,3241158.81,1510 Wk3 Northern IFA - Franchise Payment Incl Ind,LS1 2DE,
Department for Transport,Department for Transport,24/12/2014,Legal Consultancy,"Policy, Legislation and Funding",xxxxxx,2000019810,9120,#,xxxxxx,
Department for Transport,Department for Transport,24/12/2014,Legal Consultancy,Rail Franchising,NORTON ROSE LLP,2000019803,38797.56,#,SE1 2AQ,
Department for Transport,Department for Transport,24/12/2014,Legal Consultancy,"Policy, Legislation and Funding",xxxxxx,2000019809,9120,#,xxxxxx,
Department for Transport,Department for Transport,24/12/2014,Legal Consultancy,"Policy, Legislation and Funding",WINCKWORTH SHERWOOD,2000019790,283453.8,#,SE1 9BB,
Department for Transport,Department for Transport,24/12/2014,Mobile Phone charges,Centrally held prog-NATs,VODAFONE LTD,2000019792,34811.31,Vodafone 432 Mobiles,RG14 5FF,
Department for Transport,Department for Transport,24/12/2014,Occup Health Scheme,Group Human Resource,HEALTH MANAGEMENT LTD,2000019788,1140,#,BN8 5NN,
Department for Transport,Department for Transport,24/12/2014,Property Maintenance,Air Accident Investigation Branch,Interserve,2000019806,10594.56,#,B70 1DA,
Department for Transport,Department for Transport,24/12/2014,Pte Cost Of Servs Ch,Rail Commercial & Programme Office,GREATER MANCHESTER PTA,2000019800,115531.71,1510 Wk3 Admin Grant 14-15 - Transport for Greater,M1 3BG,
Department for Transport,Department for Transport,24/12/2014,Pte Cost Of Servs Ch,Rail Commercial & Programme Office,NEXUS (TYNE & WEAR),2000019798,19702.28,1510 Wk3 Admin Grant 14-15 - Nexus,NE1 4AX,
Department for Transport,Department for Transport,24/12/2014,Pte Cost Of Servs Ch,Rail Commercial & Programme Office,SOUTH YORKSHIRE PTE,2000019799,95004.21,1510 Wk3 Admin Grant 14-15 - South Yorkshire PTE,S2 5YT,
Department for Transport,Department for Transport,24/12/2014,Pte Cost Of Servs Ch,Rail Commercial & Programme Office,WEST YORKSHIRE PTA,2000019801,69215.87,1510 Wk3 Admin Grant 14-15 - West Yorkshire PTE,LS1 2DE,
Department for Transport,Department for Transport,24/12/2014,Publicity,Group Communication,GROUPM UK LIMITED,2000019808,137890.48,#,WC1X 8RX,
Department for Transport,Department for Transport,24/12/2014,Research,Strategic Roads & Smart Ticketing,OFFICE OF RAIL REGULATION,2000019776,63109.33,#,WC2B 4AN,
Department for Transport,Department for Transport,24/12/2014,Security,General Counsel's Office,FCO SERVICES,2000019774,4632,#,MK19 7BH,
Department for Transport,Department for Transport,24/12/2014,Storage & Distributi,Group Communication,WILLIAMS LEA LIMITED,2000019807,10082.68,#,NR3 1PD,
Department for Transport,Department for Transport,24/12/2014,Support Services,Aviation,Civil Aviation Authority,2000019782,381358,#,RH6 0YR,
Department for Transport,Department for Transport,24/12/2014,Support Services,Aviation,Civil Aviation Authority,2000019782,24599.5,#,RH6 0YR,
Department for Transport,Department for Transport,24/12/2014,Support Services,General Counsel's Office,CABINET OFFICE,2000019773,103305,#,CF14 3UW,
Department for Transport,Department for Transport,24/12/2014,Support Services,Aviation,Civil Aviation Authority,2000019782,56000,#,RH6 0YR,
Department for Transport,Department for Transport,24/12/2014,Support Services,Aviation,FCO FOREIGN & COMMONWEALTH OFFICE,2000019777,30521.02,#,MK10 1PX,
Department for Transport,Department for Transport,24/12/2014,Support Services,Aviation,OECD,2000019789,52200,#,SG6 1HN,
